{"text_format":"1","workbook":"xlsx","n_sheets":9,"sheets":["Input Parameter","Data","Recommended Config","Detailed Product Structure","Gen2 Ready Program","Competitive Pricing","Version History","Bundles","Pulldowns"],"not_rendered":{"charts":0,"images":0,"macros":1,"external_links":2,"defined_names":15,"comments":2,"pivot_tables":0},"unopened":[],"bounds":{"document_bytes":16777216,"sheet_cells":100000,"rows_first":2000,"rows_last":500,"rows_between":2000,"halvings":0,"cell_chars":16384,"cell_head_chars":4096},"cells_cut":0,"cells_raw":0,"read":"whole","date_system":"1900"}

{"sheet":"Input Parameter","index":0,"n_rows":34,"n_cols":4,"rows_kept":34,"cut":false,"hidden":false,"merged":[]}
["PCIe Product Configurator"]
[]
[null,null,null,"1.) Select the appropriate configuration below."]
[null,null,null,"2.) Start the configuration with the butten to the left"]
[null,null,null,"3.) Find the result in the next workbook."]
[]
[]
["PCIe Configuration Parameter",null,null,"Please select the  configuration parameters: "]
[]
["Type:",null,null,"Type: Select if you want to configure an analyzer, an exerciser, a PTC, a Jammer or a combination.  The only supported combination right now is the analyzer/exerciser combination  "]
[]
["Linkwidth:",null,null,"Link width: Select the desired link width.  For both analyzer & exerciser, the maximum link width is x16.  For Jammer, the max link width possible is x8 "]
[]
["Speed:",null,null,"Link Speed Select the desired speed.  All Analyzer, exerciser and Jammer products are available to be licensed at 2.5Gb/s or 5.0Gb/s speed.   Gen2Ready is H/W capable of 5.0Gb/s, but licensed to 2.5Gb/s only.  Customer can upgrade at a later time."]
[]
["Probing:",null,null,"Probing: Select the desired type of probing: interposer probing or midbus probing.  \nNote: We always recommend probing that supports full PCIe2 speed (5Gb/s), even for Gen2 ready systems. In that case, the customer only has to do a SW licence upgrade to go from Gen1 to Gen2 speed, whereas he has to upgrade the probing also if he selects 2.5Gb/s probing. Only configure Gen1 probing in case the customer really demands the lowest price possible. "]
[null,null,null,"Note: This tool does not configure the split x4 midbus probe or swizzled x16 probe. Please look into the pricing tools or contact factory. "]
[]
["P2L",null,null,"P2L: Select \"yes\" if the customer wants to connect Agilent logic analyzers with the PCIe System. (Only applies to PCIe Gen2 or Gen2Rdy systems)"]
[]
["Extended Interface Module : ",null,null,"Extended Interface Module : Select \"yes\" if the customer wants to use the extended interface module for fast sync . (Only applies to PCIe Gen2 or Gen2Rdy)"]
[]
[]
[]
[]
["Customer Parameter"]
[]
["Your companies PAD:",0,null,"Please select the your Customers Parameter: "]
[null,null,null,"PAD: Type in the PAD of your customer into the according cell."]
[]
[]
[]
["Version 2.12 - July 2010"]
["Please report any errors back to Yenyi Fu"]

{"sheet":"Data","index":1,"n_rows":15,"n_cols":8,"rows_kept":15,"cut":false,"hidden":true,"merged":[]}
["String of selected value",{"$f":"INDEX(B5:B11,B2)","v":"Analyzer/Exerciser"},{"$f":"INDEX(C5:C15,C2)","v":"Interposer - 8Gb/s"},{"$f":"INDEX(D5:D8,D2)","v":"x16"},{"$f":"INDEX(E5:E7,E2)","v":"Gen3 - 8 Gb/s"},{"$f":"INDEX(F5:F8,F2)","v":"n/a"},{"$f":"INDEX(G5:G8,G2)","v":"n/a"},{"$f":"INDEX(H5:H8,H2)","v":"no"}]
["Index of selected value",3,11,4,3,1,3,2]
[]
[null,"Type","Probing","Linkwidth","Speed","Probing Type","P2L","Extended Receiver"]
[null,"Analyzer","Midbus - 5Gb/s","x1","Gen2 ready - 2.5Gb/s","n/a","P2L with 4 Flag Lines","yes"]
[null,"Exerciser","Interposer - 5Gb/s","x4","Gen2 - 5 Gb/s",null,"P2L with no Flags","no"]
[null,"Analyzer/Exerciser","Flying Lead - 5Gb/s","x8","Gen3 - 8 Gb/s","uni-directional","n/a"]
[null,"PTC II","Midbus - 2.5Gb/s","x16"]
[null,"Jammer","Interposer - 2.5Gb/s"]
[null,null,"Flying Lead - 2.5Gb/s"]
[null,null,"Express Card - 2.5Gb/s"]
[null,null,"Half Size Midbus - 5Gb/s"]
[null,null,"Half Size Midbus - 2.5Gb/s"]
[null,null,"Midbus - 8Gb/s"]
[null,null,"Interposer - 8Gb/s"]

{"sheet":"Recommended Config","index":2,"n_rows":154,"n_cols":12,"rows_kept":154,"cut":false,"hidden":false,"merged":[]}
[null,"Recommended Configuration for PCI Express Protocol Test"]
["yes","Line item",null,null,"Product #","Description","Qty","Price Ea.",null,"PAD","Net Price Ea.","Extend Price"]
["yes","Line item",null,null,"Product #","Description","Qty","Price Ea.","Price Ea.","PAD","Net Price Ea.","Extend Price"]
[{"$f":"IF(Data!E1=Data!E7,\"yes\",\"no\")","v":"yes"},{"$f":"IF(A4=\"yes\",B60+1,0)","v":1},"Gen3 Products (Digital Test Console)"]
[{"$f":"IF(AND(OR(Data!B1=Data!B5,Data!B1=Data!B7), A4=\"yes\"),\"yes\",\"no\")","v":"yes"},null,null,"Chassis","U4002A",{"$f":"VLOOKUP(E5, 'Detailed Product Structure'!E$9:J$331, 4, FALSE)","v":"Digital Test Console Chassis two slot chassis"},{"$f":"IF(A5=\"yes\",1,0)","v":1},{"$f":"VLOOKUP(E5, 'Detailed Product Structure'!$E$9:$J$331, 6, FALSE)","v":7500},null,{"$f":"'Input Parameter'!$B$28","v":0},{"$f":"(1-J5)*H5","v":7500},{"$f":"G5*K5","v":7500}]
[{"$f":"$A$5","v":"yes"},null,null,null,"U4002A-SFT",{"$f":"VLOOKUP(E6, 'Detailed Product Structure'!E$9:J$331, 4, FALSE)","v":"Soft carrying bag for Digital test console two slot chassis"},{"$f":"IF(A6=\"yes\",1,0)","v":1},{"$f":"VLOOKUP(E6, 'Detailed Product Structure'!$E$9:$J$331, 6, FALSE)","v":156},null,{"$f":"'Input Parameter'!$B$28","v":0},{"$f":"(1-J6)*H6","v":156},{"$f":"G6*K6","v":156}]
[{"$f":"$A$5","v":"yes"},null,null,null,"U4002A-PCH",{"$f":"VLOOKUP(E7, 'Detailed Product Structure'!E$9:J$331, 4, FALSE)","v":"Accessories pouch kit for Digital test console two slot chassis"},1,{"$f":"VLOOKUP(E7, 'Detailed Product Structure'!$E$9:$J$331, 6, FALSE)","v":156},null,{"$f":"'Input Parameter'!$B$28","v":0},156,156]
["yes",null,null,null,null,"Note: These soft carry case or accessory pouch are optional"]
["yes",null,null,null,"U4002A-2MC",{"$f":"VLOOKUP(E9, 'Detailed Product Structure'!E$9:J$331, 4, FALSE)","v":"PCIe cable (2.0m)"},1,{"$f":"VLOOKUP(E9, 'Detailed Product Structure'!$E$9:$J$331, 6, FALSE)","v":250},null,{"$f":"'Input Parameter'!$B$28","v":0},{"$f":"(1-J9)*H9","v":250},{"$f":"G9*K9","v":250}]
["yes",null,null,null,"U4002A-5MC",{"$f":"VLOOKUP(E10, 'Detailed Product Structure'!E$9:J$331, 4, FALSE)","v":"PCIe cable (5.0m)"},1,{"$f":"VLOOKUP(E10, 'Detailed Product Structure'!$E$9:$J$331, 6, FALSE)","v":450},null,{"$f":"'Input Parameter'!$B$28","v":0},{"$f":"(1-J10)*H10","v":450},{"$f":"G10*K10","v":450}]
["yes",null,null,null,null,"Note: Only one cable is required for operation, either the 2.0 m or 5.0 m.  "]
["yes",null,null,null,"U4002A-EXP",{"$f":"VLOOKUP(E12, 'Detailed Product Structure'!E$9:J$331, 4, FALSE)","v":"PCI Express cable to express card adapter for laptop connections"},1,{"$f":"VLOOKUP(E12, 'Detailed Product Structure'!$E$9:$J$331, 6, FALSE)","v":450},null,{"$f":"'Input Parameter'!$B$28","v":0},{"$f":"(1-J12)*H12","v":450},{"$f":"G12*K12","v":450}]
["yes",null,null,null,"U4002A-SLT",{"$f":"VLOOKUP(E13, 'Detailed Product Structure'!E$9:J$331, 4, FALSE)","v":"PCI Express cable to slot adapter for desktop connections"},1,{"$f":"VLOOKUP(E13, 'Detailed Product Structure'!$E$9:$J$331, 6, FALSE)","v":450},null,{"$f":"'Input Parameter'!$B$28","v":0},{"$f":"(1-J13)*H13","v":450},{"$f":"G13*K13","v":450}]
["yes",null,null,null,null,"Note: One of the two cable adapters are required to be able to connect to a PC controller"]
[{"$f":"IF(AND(OR(Data!$B$1=Data!$B$5,Data!$B$1=Data!$B$7), A4=\"yes\"),\"yes\",\"no\")","v":"yes"},null,null,"Analyzer","U4301A",{"$f":"VLOOKUP(E15, 'Detailed Product Structure'!E$9:J$331, 4, FALSE)","v":"Analyzer module for PCIe 8Gbps"},{"$f":"IF(AND(A19=\"yes\",A15=\"yes\"),2,IF(A15=\"yes\",1,))","v":2},{"$f":"VLOOKUP(E15, 'Detailed Product Structure'!$E$9:$J$331, 6, FALSE)","v":0},null,{"$f":"'Input Parameter'!$B$28","v":0},{"$f":"(1-J15)*H15","v":0},{"$f":"G15*K15","v":0}]
[{"$f":"IF(AND($A$15=\"yes\",Data!$D$1=Data!$D$5),\"yes\",\"no\")","v":"no"},null,null,null,"U4301A-A01",{"$f":"VLOOKUP(E16, 'Detailed Product Structure'!E$9:J$331, 4, FALSE)","v":"Analyzer linkwidth x1 "},0,{"$f":"VLOOKUP(E16, 'Detailed Product Structure'!$E$9:$J$331, 6, FALSE)","v":27606},null,{"$f":"'Input Parameter'!$B$28","v":0},{"$f":"(1-J16)*H16","v":27606},{"$f":"G16*K16","v":0}]
[{"$f":"IF(AND($A$15=\"yes\",Data!$D$1=Data!$D$6),\"yes\",\"no\")","v":"no"},null,null,null,"U4301A-A04",{"$f":"VLOOKUP(E17, 'Detailed Product Structure'!E$9:J$331, 4, FALSE)","v":"Analyzer linkwidth x4"},0,{"$f":"VLOOKUP(E17, 'Detailed Product Structure'!$E$9:$J$331, 6, FALSE)","v":34056},null,{"$f":"'Input Parameter'!$B$28","v":0},34056,0]
[{"$f":"IF(AND($A$15=\"yes\",Data!$D$1=Data!$D$7),\"yes\",\"no\")","v":"no"},null,null,null,"U4301A-A08",{"$f":"VLOOKUP(E18, 'Detailed Product Structure'!E$9:J$331, 4, FALSE)","v":"Analyzer linkwidth x8"},0,{"$f":"VLOOKUP(E18, 'Detailed Product Structure'!$E$9:$J$331, 6, FALSE)","v":41950.8},null,{"$f":"'Input Parameter'!$B$28","v":0},41950.8,0]
[{"$f":"IF(AND($A$15=\"yes\",Data!$D$1=Data!$D$8),\"yes\",\"no\")","v":"yes"},null,null,null,"U4301A-A16",{"$f":"VLOOKUP(E19, 'Detailed Product Structure'!E$9:J$331, 4, FALSE)","v":"Analyzer linkwidth x16"},{"$f":"G15","v":2},{"$f":"VLOOKUP(E19, 'Detailed Product Structure'!$E$9:$J$331, 6, FALSE)","v":38184},null,{"$f":"'Input Parameter'!$B$28","v":0},38184,76368]
[{"$f":"A15","v":"yes"},null,null,null,"U4301A-004",{"$f":"VLOOKUP(E20, 'Detailed Product Structure'!E$9:J$331, 4, FALSE)","v":"Analyzer software license for trace memory 4GB"},{"$f":"G15","v":2},{"$f":"VLOOKUP(E20, 'Detailed Product Structure'!$E$9:$J$331, 6, FALSE)","v":-2060},null,{"$f":"'Input Parameter'!$B$28","v":0},-2060,-4120]
[{"$f":"IF(AND($A$15=\"yes\",Data!$E$1=Data!$E$7),\"yes\",\"no\")","v":"yes"},null,null,null,"U4301A-v07",{"$f":"VLOOKUP(E21, 'Detailed Product Structure'!E$9:J$331, 4, FALSE)","v":"Analyzer software license for PCIe 8Gbps, Spec version 0.7 (Available in August, 2010)"},{"$f":"G15","v":2},{"$f":"VLOOKUP(E21, 'Detailed Product Structure'!$E$9:$J$331, 6, FALSE)","v":15435},null,{"$f":"'Input Parameter'!$B$28","v":0},15435,30870]
[{"$f":"IF(AND($A$15=\"yes\",Data!$E$1=Data!$E$7),\"yes\",\"no\")","v":"yes"},null,null,null,"U4301A-AN3",{"$f":"VLOOKUP(E22, 'Detailed Product Structure'!E$9:J$331, 4, FALSE)","v":"Analyzer software license for PCIe 8Gbps (Available in November, 2010)"},{"$f":"G15","v":2},{"$f":"VLOOKUP(E22, 'Detailed Product Structure'!$E$9:$J$331, 6, FALSE)","v":23175},null,{"$f":"'Input Parameter'!$B$28","v":0},23175,46350]
[{"$f":"IF(AND($A$15=\"yes\",Data!$E$1=Data!$E$7),\"yes\",\"no\")","v":"yes"},null,null,null,"U4301U-v10",{"$f":"VLOOKUP(E23, 'Detailed Product Structure'!E$9:J$331, 4, FALSE)","v":"Analyzer software license upgrade from Spec version 0.7 to Spec version 1.0 for PCIe 8Gbps"},{"$f":"G15","v":2},{"$f":"VLOOKUP(E23, 'Detailed Product Structure'!$E$9:$J$331, 6, FALSE)","v":5103},null,{"$f":"'Input Parameter'!$B$28","v":0},5103,10206]
[{"$f":"IF(COUNTIF(A21:A23, \"yes\"), \"yes\", \"no\")","v":"yes"},null,null,null,null,"Note: If a customer needs the analyzer in August, quote U4301A-v07 with U4301U-v10.  This way, the customer can take delivery in August (with Agilent Release 1.0, spec version 0.7).  When release 2.0 is available in November (spec version 1.0) they will get the software upgrade.  For customers that need equipment November and later quote ONLY U4301A-AN3.  v07 and v10 will be discontinued after November (Release 2.0), only for early customers."]
[{"$f":"IF(AND(OR(Data!B1=Data!B6,Data!B1=Data!B7,Data!B1=Data!B8), A4=\"yes\"),\"yes\",\"no\")","v":"yes"},null,null,"Exerciser","U4305A",{"$f":"VLOOKUP(E25, 'Detailed Product Structure'!E$9:J$331, 4, FALSE)","v":"Exerciser module for PCIe 8Gbps"},1,{"$f":"VLOOKUP(E25, 'Detailed Product Structure'!$E$9:$J$331, 6, FALSE)","v":0},null,{"$f":"'Input Parameter'!$B$28","v":0},{"$f":"(1-J25)*H25","v":0},{"$f":"G25*K25","v":0}]
[{"$f":"IF(AND($A$25=\"yes\",Data!$D$1=Data!$D5),\"yes\",\"no\")","v":"no"},null,null,null,"U4305A-E01",{"$f":"VLOOKUP(E26, 'Detailed Product Structure'!E$9:J$331, 4, FALSE)","v":"Exerciser board x1 for PCIe 8Gbps"},0,{"$f":"VLOOKUP(E26, 'Detailed Product Structure'!$E$9:$J$331, 6, FALSE)","v":17028},null,{"$f":"'Input Parameter'!$B$28","v":0},{"$f":"(1-J26)*H26","v":17028},{"$f":"G26*K26","v":0}]
[{"$f":"IF(AND($A$25=\"yes\",Data!$D$1=Data!$D6),\"yes\",\"no\")","v":"no"},null,null,null,"U4305A-E04",{"$f":"VLOOKUP(E27, 'Detailed Product Structure'!E$9:J$331, 4, FALSE)","v":"Exerciser board x4 for PCIe 8Gbps"},0,{"$f":"VLOOKUP(E27, 'Detailed Product Structure'!$E$9:$J$331, 6, FALSE)","v":37926},null,{"$f":"'Input Parameter'!$B$28","v":0},37926,0]
[{"$f":"IF(AND($A$25=\"yes\",Data!$D$1=Data!$D7),\"yes\",\"no\")","v":"no"},null,null,null,"U4305A-E08",{"$f":"VLOOKUP(E28, 'Detailed Product Structure'!E$9:J$331, 4, FALSE)","v":"Exerciser board x8 for PCIe 8Gbps"},0,{"$f":"VLOOKUP(E28, 'Detailed Product Structure'!$E$9:$J$331, 6, FALSE)","v":53664},null,{"$f":"'Input Parameter'!$B$28","v":0},53664,0]
[{"$f":"IF(AND($A$25=\"yes\",Data!$D$1=Data!$D8),\"yes\",\"no\")","v":"yes"},null,null,null,"U4305A-E16",{"$f":"VLOOKUP(E29, 'Detailed Product Structure'!E$9:J$331, 4, FALSE)","v":"Exerciser board x16 for PCIe 8Gbps"},1,{"$f":"VLOOKUP(E29, 'Detailed Product Structure'!$E$9:$J$331, 6, FALSE)","v":69144},null,{"$f":"'Input Parameter'!$B$28","v":0},69144,69144]
[{"$f":"IF(AND($A$25=\"yes\",Data!$E$1=Data!$E$7),\"yes\",\"no\")","v":"yes"},null,null,null,"U4305A-EX3",{"$f":"VLOOKUP(E30, 'Detailed Product Structure'!E$9:J$331, 4, FALSE)","v":"Exerciser software license for PCIe 8Gbps"},1,{"$f":"VLOOKUP(E30, 'Detailed Product Structure'!$E$9:$J$331, 6, FALSE)","v":35604},null,{"$f":"'Input Parameter'!$B$28","v":0},35604,35604]
[{"$f":"IF(AND($A$25=\"yes\",Data!$E$1=Data!$E$7),\"yes\",\"no\")","v":"yes"},null,null,null,"U4305A-LT3",{"$f":"VLOOKUP(E31, 'Detailed Product Structure'!E$9:J$331, 4, FALSE)","v":"LTSSM software license"},1,{"$f":"VLOOKUP(E31, 'Detailed Product Structure'!$E$9:$J$331, 6, FALSE)","v":17028},null,{"$f":"'Input Parameter'!$B$28","v":0},17028,17028]
[{"$f":"IF(AND($A$25=\"yes\",Data!$E$1=Data!$E$7),\"yes\",\"no\")","v":"yes"},null,null,null,"U4305U-EX3",{"$f":"VLOOKUP(E32, 'Detailed Product Structure'!E$9:J$331, 4, FALSE)","v":"Exerciser software license for PCIe 8Gbps"},1,{"$f":"VLOOKUP(E32, 'Detailed Product Structure'!$E$9:$J$331, 6, FALSE)","v":35604},null,{"$f":"'Input Parameter'!$B$28","v":0},35604,35604]
[{"$f":"IF(COUNTIF(A30:A32, \"yes\"), \"yes\", \"no\")","v":"yes"},null,null,null,null,"Note: If a customer needs the stimulus in July quote U4305A-LTSSM with U4301U-EX3.  This way, the customer can take delivery in July (with Agilent Release 1.0).  When release 2.0 is available in November  (spec version 1.0) they will get the exerciser software upgrade.  For customers that need equipment November and later quote both U4305A-LTSSM and U4305A-EX3.  "]
[{"$f":"A25","v":"yes"},null,null,null,"N5316A",{"$f":"VLOOKUP(E34, 'Detailed Product Structure'!E$9:J$331, 4, FALSE)","v":"Test Backplane for PCIe Gen2 & Gen3"},1,{"$f":"VLOOKUP(E34, 'Detailed Product Structure'!$E$9:$J$331, 6, FALSE)","v":6194},null,{"$f":"'Input Parameter'!$B$28","v":0},{"$f":"(1-J34)*H34","v":6194},{"$f":"G34*K34","v":6194}]
[{"$f":"IF(AND($A$15=\"yes\",Data!$C$1=Data!$C$15),\"yes\",\"no\")","v":"yes"},null,null,"Probes","U4321A",{"$f":"VLOOKUP(E35, 'Detailed Product Structure'!E$9:J$331, 4, FALSE)","v":"Slot interposer 3.0 for PCIe 8 Gbps"},1,{"$f":"VLOOKUP(E35, 'Detailed Product Structure'!$E$9:$J$331, 6, FALSE)","v":0},null,{"$f":"'Input Parameter'!$B$28","v":0},{"$f":"(1-J35)*H35","v":0},{"$f":"G35*K35","v":0}]
[{"$f":"IF(AND($A$35=\"yes\",Data!$D$1=Data!$D5),\"yes\",\"no\")","v":"no"},null,null,null,"U4321A-A01",{"$f":"VLOOKUP(E36, 'Detailed Product Structure'!E$9:J$331, 4, FALSE)","v":"Slot interposer 3.0 for PCIe 8Gbps x1"},0,{"$f":"VLOOKUP(E36, 'Detailed Product Structure'!$E$9:$J$331, 6, FALSE)","v":11352},null,{"$f":"'Input Parameter'!$B$28","v":0},11352,0]
[{"$f":"IF(AND($A$35=\"yes\",Data!$D$1=Data!$D6),\"yes\",\"no\")","v":"no"},null,null,null,"U4321A-A04",{"$f":"VLOOKUP(E37, 'Detailed Product Structure'!E$9:J$331, 4, FALSE)","v":"Slot interposer 3.0 for PCIe 8Gbps x4"},0,{"$f":"VLOOKUP(E37, 'Detailed Product Structure'!$E$9:$J$331, 6, FALSE)","v":14964},null,{"$f":"'Input Parameter'!$B$28","v":0},14964,0]
[{"$f":"IF(AND($A$35=\"yes\",Data!$D$1=Data!$D7),\"yes\",\"no\")","v":"no"},null,null,null,"U4321A-A08",{"$f":"VLOOKUP(E38, 'Detailed Product Structure'!E$9:J$331, 4, FALSE)","v":"Slot interposer 3.0 for PCIe 8Gbps x8"},0,{"$f":"VLOOKUP(E38, 'Detailed Product Structure'!$E$9:$J$331, 6, FALSE)","v":17028},null,{"$f":"'Input Parameter'!$B$28","v":0},17028,0]
[{"$f":"IF(AND($A$35=\"yes\",Data!$D$1=Data!$D8),\"yes\",\"no\")","v":"yes"},null,null,null,"U4321A-A16",{"$f":"VLOOKUP(E39, 'Detailed Product Structure'!E$9:J$331, 4, FALSE)","v":"Slot interposer 3.0 for PCIe 8Gbps x16"},1,{"$f":"VLOOKUP(E39, 'Detailed Product Structure'!$E$9:$J$331, 6, FALSE)","v":19917.600000000002},null,{"$f":"'Input Parameter'!$B$28","v":0},19917.600000000002,19917.600000000002]
[{"$f":"IF(AND($A$15=\"yes\",Data!$C$1=Data!$C$14),\"yes\",\"no\")","v":"no"},null,null,null,"U4322A",{"$f":"VLOOKUP(E40, 'Detailed Product Structure'!E$9:J$331, 4, FALSE)","v":"Mid-bus probe 3.0 for PCIe 8Gbps (bi-directional x8)"},{"$f":"IF(AND(A19=\"yes\",A40=\"yes\"),2,IF(A40=\"yes\",1,))","v":0},{"$f":"VLOOKUP(E40, 'Detailed Product Structure'!$E$9:$J$331, 6, FALSE)","v":26832},null,{"$f":"'Input Parameter'!$B$28","v":0},26832,0]
["yes"]
[{"$f":"IF(OR(Data!E1=Data!E5, Data!E1=Data!E6),\"yes\",\"no\")","v":"no"},{"$f":"IF(A42=\"yes\",1,0)","v":0},"E2960B Series - Gen2 or Gen2Rdy"]
[]
[{"$f":"IF(AND(OR(Data!B1=Data!B5,Data!B1=Data!B7),NOT(AND(Data!D1=Data!D8,Data!H1=Data!H5)), A42=\"yes\"),\"yes\",\"no\")","v":"no"},null,null,null,"N5302A",{"$f":"'Detailed Product Structure'!H169","v":"2-slot portable chassis"},{"$f":"IF(A44=\"yes\",1,0)","v":0},4513,{"$f":"H44*G44","v":0},{"$f":"'Input Parameter'!$B$28","v":0},{"$f":"(1-J44)*H44","v":4513},{"$f":"G44*K44","v":0}]
[{"$f":"IF(AND(OR(Data!B1=Data!B5,Data!B1=Data!B7),AND(Data!D1=Data!D8,Data!H1=Data!H5), A42=\"yes\"),\"yes\",\"no\")","v":"no"},null,null,null,"N5304A",{"$f":"'Detailed Product Structure'!H171","v":"4-slot chassis"},{"$f":"IF(A45=\"yes\",1,0)","v":0},5701,{"$f":"H45*G45","v":0},{"$f":"'Input Parameter'!$B$28","v":0},{"$f":"(1-J45)*H45","v":5701},{"$f":"G45*K45","v":0}]
[{"$f":"IF(AND(OR(Data!B1=Data!B5,Data!B1=Data!B7), A42=\"yes\"),\"yes\",\"no\")","v":"no"},null,null,null,"E2960B-LAN",{"$f":"'Detailed Product Structure'!H12","v":"USB to LAN Adapter for Chassis to Controller Connectivity"},{"$f":"IF(A46=\"yes\",1,0)","v":0},65.650000000000006,{"$f":"H46*G46","v":0},{"$f":"'Input Parameter'!$B$28","v":0},{"$f":"(1-J46)*H46","v":65.650000000000006},0]
[{"$f":"A48","v":"no"}]
[{"$f":"IF(AND(OR(Data!$B$1=Data!$B$5,Data!$B$1=Data!$B$7), A42=\"yes\"),\"yes\",\"no\")","v":"no"},null,null,"Analyzer",{"$f":"'Detailed Product Structure'!E20","v":"N5306A"},{"$f":"'Detailed Product Structure'!H20","v":"Analyzer Module for PCIe 5Gb/s (requires 2 for x 16)"},{"$f":"IF(AND(OR(A52=\"yes\",A56=\"yes\"),A48=\"yes\"),2,IF(A48=\"yes\",1,))","v":0},30300,0,{"$f":"'Input Parameter'!$B$28","v":0},{"$f":"(1-J48)*H48","v":30300},{"$f":"G48*K48","v":0}]
[{"$f":"IF(AND($A$48=\"yes\",Data!$D$1=Data!$D$5,Data!$E$1=Data!$E$6),\"yes\",\"no\")","v":"no"},null,null,null,{"$f":"'Detailed Product Structure'!E25","v":"N5306A-A01"},{"$f":"'Detailed Product Structure'!H25","v":"Analyzer SW License x1 for PCIe 5Gb/s"},{"$f":"IF(A49=\"yes\",1,0)","v":0},12995,0,{"$f":"'Input Parameter'!$B$28","v":0},{"$f":"(1-J49)*H49","v":12995},0]
[{"$f":"IF(AND($A$48=\"yes\",Data!$D$1=Data!$D$6,Data!$E$1=Data!$E$6),\"yes\",\"no\")","v":"no"},null,null,null,{"$f":"'Detailed Product Structure'!E26","v":"N5306A-A04"},{"$f":"'Detailed Product Structure'!H26","v":"Analyzer SW License x4 for PCIe 5Gb/s"},0,19110,0,{"$f":"'Input Parameter'!$B$28","v":0},{"$f":"(1-J50)*H50","v":19110},0]
[{"$f":"IF(AND($A$48=\"yes\",Data!$D$1=Data!$D$7,Data!$E$1=Data!$E$6),\"yes\",\"no\")","v":"no"},null,null,null,{"$f":"'Detailed Product Structure'!E27","v":"N5306A-A08"},{"$f":"'Detailed Product Structure'!H27","v":"Analyzer SW License x8 for PCIe 5Gb/s"},0,25443,0,{"$f":"'Input Parameter'!$B$28","v":0},{"$f":"(1-J51)*H51","v":25443},0]
[{"$f":"IF(AND(A48=\"yes\",Data!$D$1=Data!$D$8,Data!$E$1=Data!$E$6),\"yes\",\"no\")","v":"no"},null,null,null,{"$f":"'Detailed Product Structure'!E28","v":"N5306A-A16"},{"$f":"'Detailed Product Structure'!H28","v":"Analyzer SW License x16 for PCIe 5Gb/s"},{"$f":"IF(A52=\"yes\",2,0)","v":0},21730,0,{"$f":"'Input Parameter'!$B$28","v":0},{"$f":"(1-J52)*H52","v":21730},0]
[{"$f":"IF(AND(A48=\"yes\",Data!$D$1=Data!$D$5,Data!$E$1=Data!$E$5),\"yes\",\"no\")","v":"no"},null,null,null,{"$f":"'Detailed Product Structure'!E29","v":"N5306A-G01"},{"$f":"'Detailed Product Structure'!H29","v":"Analyzer SW License x1 for PCIe 2.5 Gb/s"},0,-24886,0,{"$f":"'Input Parameter'!$B$28","v":0},{"$f":"H53","v":-24886},{"$f":"G53*K53","v":0}]
[{"$f":"IF(AND(A48=\"yes\",Data!$D$1=Data!$D$6,Data!$E$1=Data!$E$5),\"yes\",\"no\")","v":"no"},null,null,null,{"$f":"'Detailed Product Structure'!E30","v":"N5306A-G04"},{"$f":"'Detailed Product Structure'!H30","v":"Analyzer SW License x4 for PCIe 2.5 Gb/s"},0,-19416,0,{"$f":"'Input Parameter'!$B$28","v":0},{"$f":"H54","v":-19416},0]
[{"$f":"IF(AND(A48=\"yes\",Data!$D$1=Data!$D$7,Data!$E$1=Data!$E$5),\"yes\",\"no\")","v":"no"},null,null,null,{"$f":"'Detailed Product Structure'!E31","v":"N5306A-G08"},{"$f":"'Detailed Product Structure'!H31","v":"Analyzer SW License x8 for PCIe 2.5 Gb/s"},0,179,0,{"$f":"'Input Parameter'!$B$28","v":0},{"$f":"H55","v":179},0]
[{"$f":"IF(AND(A48=\"yes\",Data!$D$1=Data!$D$8,Data!$E$1=Data!$E$5),\"yes\",\"no\")","v":"no"},null,null,null,{"$f":"'Detailed Product Structure'!E32","v":"N5306A-G16"},{"$f":"'Detailed Product Structure'!H32","v":"Analyzer SW License x16 for PCIe 2.5Gb/s"},{"$f":"IF(A56=\"yes\",2,0)","v":0},-8639,0,{"$f":"'Input Parameter'!$B$28","v":0},{"$f":"H56","v":-8639},0]
[{"$f":"IF(AND(A48=\"yes\",Data!$H$1=Data!$H$5),\"yes\",\"no\")","v":"no"},null,null,null,{"$f":"'Detailed Product Structure'!E33","v":"N5322A"},{"$f":"'Detailed Product Structure'!H33","v":"Extended Interface Module for PCIe 5Gb/s "},{"$f":"IF(AND(OR(A52=\"yes\",A56=\"yes\"),A57=\"yes\"),2,IF(A57=\"yes\",1,))","v":0},14856,0,{"$f":"'Input Parameter'!$B$28","v":0},{"$f":"(1-J57)*H57","v":14856},0]
["no"]
[{"$f":"A60","v":"no"}]
[{"$f":"IF(AND(Data!B1=Data!B8, Data!D1=Data!D5, , A42=\"yes\"),\"yes\",\"no\")","v":"no"},null,null,"Exerciser","E2969B",{"$f":"'Detailed Product Structure'!H16","v":"PTC 2.0"},{"$f":"IF(A60=\"yes\",1,0)","v":0},{"$f":"'Detailed Product Structure'!J16","v":0},{"$f":"H60*G60","v":0},{"$f":"'Input Parameter'!$B$28","v":0},{"$f":"(1-J60)*H60","v":0},{"$f":"G60*K60","v":0}]
[{"$f":"A60","v":"no"},null,null,null,null,"Note: The E2969B product number is for backward compatibility (PTC1 is E2969A) the actual hardware and options for PTCII is listed below."]
[{"$f":"IF(AND(OR(Data!B1=Data!B6,Data!B1=Data!B7,Data!B1=Data!B8), A42=\"yes\"),\"yes\",\"no\")","v":"no"},null,null,null,{"$f":"'Detailed Product Structure'!E35","v":"N5309A"},{"$f":"'Detailed Product Structure'!H35","v":"Half Size Exerciser Module for PCIe 5Gb/s"},0,{"$f":"'Detailed Product Structure'!J35","v":0},0,{"$f":"'Input Parameter'!$B$28","v":0},0,0]
[{"$f":"IF(AND($A$62=\"yes\",Data!$D$1=Data!$D5),\"yes\",\"no\")","v":"no"},null,null,null,{"$f":"'Detailed Product Structure'!E54","v":"N5309A-E01"},{"$f":"'Detailed Product Structure'!H54","v":"Half Sized Exerciser and LTSSM Board x1 for PCIe 5Gb/s"},0,9359,0,{"$f":"'Input Parameter'!$B$28","v":0},9359,0]
[{"$f":"IF(AND($A$62=\"yes\",Data!$D$1=Data!$D6),\"yes\",\"no\")","v":"no"},null,null,null,{"$f":"'Detailed Product Structure'!E55","v":"N5309A-E04"},{"$f":"'Detailed Product Structure'!H55","v":"Half Sized Exerciser and LTSSM Board x4 for PCIe 5Gb/s"},0,21226,0,{"$f":"'Input Parameter'!$B$28","v":0},21226,0]
[{"$f":"IF(AND($A$62=\"yes\",Data!$D$1=Data!$D7),\"yes\",\"no\")","v":"no"},null,null,null,{"$f":"'Detailed Product Structure'!E56","v":"N5309A-E08"},{"$f":"'Detailed Product Structure'!H56","v":"Half Sized Exerciser and LTSSM Board x8 for PCIe 5Gb/s"},0,32260,0,{"$f":"'Input Parameter'!$B$28","v":0},32260,0]
[{"$f":"IF(AND($A$62=\"yes\",Data!$D$1=Data!$D8),\"yes\",\"no\")","v":"no"},null,null,null,{"$f":"'Detailed Product Structure'!E57","v":"N5309A-E16"},{"$f":"'Detailed Product Structure'!H57","v":"Half Sized Exerciser and LTSSM Board x16 for PCIe 5Gb/s"},0,43491,0,{"$f":"'Input Parameter'!$B$28","v":0},43491,0]
[{"$f":"IF(AND(OR(Data!B1=Data!B6,Data!B1=Data!B7),Data!$E$1=Data!$E5),\"yes\",\"no\")","v":"no"},null,null,null,{"$f":"'Detailed Product Structure'!E59","v":"N5309A-EX1"},{"$f":"'Detailed Product Structure'!H59","v":"Exerciser SW License and LTSSM for PCIe 2.5Gb/s"},0,28129,0,{"$f":"'Input Parameter'!$B$28","v":0},28129,0]
[{"$f":"IF(AND(OR(Data!B1=Data!B6,Data!B1=Data!B7),Data!$E$1=Data!$E6),\"yes\",\"no\")","v":"no"},null,null,null,{"$f":"'Detailed Product Structure'!E60","v":"N5309A-EX2"},{"$f":"'Detailed Product Structure'!H60","v":"Exerciser SW License and LTSSM for PCIe 5Gb/s"},0,49054,0,{"$f":"'Input Parameter'!$B$28","v":0},49054,0]
[{"$f":"IF(AND($A$62=\"yes\"),\"yes\",\"no\")","v":"no"},null,null,null,{"$f":"'Detailed Product Structure'!E62","v":"N5309A-PTC"},{"$f":"'Detailed Product Structure'!H62","v":"Exerciser SW License PTC"},0,{"$f":"'Detailed Product Structure'!J62","v":0},0,{"$f":"'Input Parameter'!$B$28","v":0},0,0]
[{"$f":"IF(AND($A$62=\"yes\"),\"yes\",\"no\")","v":"no"},null,null,null,{"$f":"'Detailed Product Structure'!E63","v":"N5309A-COM"},{"$f":"'Detailed Product Structure'!H63","v":"Exerciser SW License Compliance Assured Test Package"},0,16059,0,{"$f":"'Input Parameter'!$B$28","v":0},16059,0]
[{"$f":"A62","v":"no"},null,null,null,null,"Note: We always recommend the Exerciser Compliacne Assured Test Package with every Exerciser or PTC"]
[{"$f":"IF(OR(Data!B10=Data!B15,Data!B10=Data!B16,Data!B10=Data!B17),\"yes\",\"no\")","v":"yes"}]
[{"$f":"IF(AND(Data!B1=Data!B9, A42=\"yes\"),\"yes\",\"no\")","v":"no"},null,null,"Jammer",{"$f":"'Detailed Product Structure'!E142","v":"N5323A"},{"$f":"'Detailed Product Structure'!H142","v":"Jammer Module for PCIe 5Gb/s"},{"$f":"IF(A73=\"yes\",1,0)","v":0},{"$f":"'Detailed Product Structure'!J142","v":0},{"$f":"H73*G73","v":0},{"$f":"'Input Parameter'!$B$28","v":0},{"$f":"(1-J73)*H73","v":0},{"$f":"G73*K73","v":0}]
[{"$f":"IF(AND($A$73=\"yes\",Data!$D$1=Data!$D5),\"yes\",\"no\")","v":"no"},null,null,null,{"$f":"'Detailed Product Structure'!E161","v":"N5323A-J01"},{"$f":"'Detailed Product Structure'!H161","v":"Jammer Module x1 for PCIe 5Gb/s"},0,9442,0,{"$f":"'Input Parameter'!$B$28","v":0},9442,0]
[{"$f":"IF(AND($A$73=\"yes\",Data!$D$1=Data!$D6),\"yes\",\"no\")","v":"no"},null,null,null,{"$f":"'Detailed Product Structure'!E162","v":"N5323A-J04"},{"$f":"'Detailed Product Structure'!H162","v":"Jammer Module x4 for PCIe 5Gb/s"},0,28812,0,{"$f":"'Input Parameter'!$B$28","v":0},28812,0]
[{"$f":"IF(AND($A$73=\"yes\",Data!$D$1=Data!$D7),\"yes\",\"no\")","v":"no"},null,null,null,{"$f":"'Detailed Product Structure'!E163","v":"N5323A-J08"},{"$f":"'Detailed Product Structure'!H163","v":"Jammer Module x8 for PCIe 5Gb/s"},0,39102,0,{"$f":"'Input Parameter'!$B$28","v":0},39102,0]
[{"$f":"IF(AND($A$73=\"yes\",Data!$D$1=Data!$D8),\"yes\",\"no\")","v":"no"},null,null,null," ","Note: There is no x16 linkwidth Jammer.  Max linkwidth is x8.  Please go back and select x8 linkwidth for the right configuration"]
[{"$f":"IF(AND(Data!B1=Data!B9,Data!$E$1=Data!$E5),\"yes\",\"no\")","v":"no"},null,null,null,{"$f":"'Detailed Product Structure'!E165","v":"N5323A-JM1"},{"$f":"'Detailed Product Structure'!H165","v":"Gen2 Ready Jammer SW License : Jammer at 2.5Gb/s"},0,17493,0,{"$f":"'Input Parameter'!$B$28","v":0},17493,0]
[{"$f":"IF(AND(Data!B1=Data!B9,Data!$E$1=Data!$E6),\"yes\",\"no\")","v":"no"},null,null,null,{"$f":"'Detailed Product Structure'!E166","v":"N5323A-JM2"},{"$f":"'Detailed Product Structure'!H166","v":"Jammer SW License : Jammer at 5 Gb/s"},0,41160,0,{"$f":"'Input Parameter'!$B$28","v":0},41160,0]
[{"$f":"IF(AND($A$73=\"yes\"),\"yes\",\"no\")","v":"no"},null,null,null,{"$f":"'Detailed Product Structure'!E167","v":"N5323A-SCR"},{"$f":"'Detailed Product Structure'!H167","v":"Jammer SW License : Jammer Scripts"},0,10310,0,{"$f":"'Input Parameter'!$B$28","v":0},10310,0]
[{"$f":"A73","v":"no"},null,null,null,null,"Note: We always recommend the Jammer Scripts Package with every Jammer"]
["yes"]
[{"$f":"IF(OR(A96=\"yes\", AND($A$48=\"yes\",OR(Data!$C$1=Data!$C$5, Data!$C$1=Data!$C$8),OR(Data!$D$1=Data!$D$5,Data!$D$1=Data!$D$6,Data!$D$1=Data!$D$7, Data!$D$1=Data!$D$8))),\"yes\",\"no\")","v":"no"},null,null,"Probes",{"$f":"'Detailed Product Structure'!E65","v":"N4241A"},{"$f":"'Detailed Product Structure'!H65","v":"Midbus Probe 2.0 bi-directional x8 for PCIe 5Gb/s"},{"$f":"IF(AND(A83=\"yes\"),IF(Data!$D$1=Data!$D$8,2,1),)","v":0},22268,0,{"$f":"'Input Parameter'!$B$28","v":0},22268,0]
[{"$f":"A83","v":"no"},null,null,null,null,"Note: We always recommend the Gen2 Mid-bus over the Gen1 Mid-bus probe (N4221A)"]
[{"$f":"A83","v":"no"},null,null,null,{"$f":"'Detailed Product Structure'!E68","v":"N4241A-MBI"},{"$f":"'Detailed Product Structure'!H68","v":"Set of Midbus Interposer x1, x4, x8, x16 for straight midbus"},{"$f":"IF(AND(A85=\"yes\"),IF(Data!$D$1=Data!$D$8,2,1),)","v":0},1919,0,{"$f":"'Input Parameter'!$B$28","v":0},1919,0]
[{"$f":"A83","v":"no"},null,null,null,null,"Note: We always recommend the midbus interposer if the customer purchases midbus probe."]
[{"$f":"IF(AND($A$48=\"yes\",OR(Data!$C$1=Data!$C$12, Data!$C$1=Data!$C$13)),\"yes\",\"no\")","v":"no"},null,null,null,{"$f":"'Detailed Product Structure'!E70","v":"N5328A"},{"$f":"'Detailed Product Structure'!H70","v":"Midbus Probe 2.0 bi-directional x4 for PCIe 5Gb/s"},{"$f":"IF((A87=\"yes\"),1,0)","v":0},24902,0,{"$f":"'Input Parameter'!$B$28","v":0},24902,0]
[{"$f":"A87","v":"no"},null,null,null,null,"Note: We always recommend the Gen2 half size Midbus Probe over the Gen1 half size Midbus Probe (N4228A)"]
[{"$f":"IF(AND($A$87=\"yes\",Data!$D$1=Data!$D$8),\"yes\",\"no\")","v":"no"},null,null,null,null,"Note: The half size probe can not probe a x16 link.  Double check to ensure you have the right probe selected.  The full size probe part number is N4241A."]
[{"$f":"IF(AND($A$48=\"yes\",OR(Data!$C$1=Data!$C$7, Data!$C$1=Data!$C$10)),\"yes\",\"no\")","v":"no"},null,null,null,{"$f":"'Detailed Product Structure'!E74","v":"N4241F"},{"$f":"'Detailed Product Structure'!H76","v":"Flying Lead Probe 2.0 Kit bi-directional x8 for PCIe 5Gb/s"},{"$f":"IF(AND(A90=\"yes\"),IF(Data!$D$1=Data!$D$8,2,1),)","v":0},25675,{"$f":"H90*G90","v":0},{"$f":"'Input Parameter'!$B$28","v":0},{"$f":"(1-J90)*H90","v":25675},{"$f":"G90*K90","v":0}]
[{"$f":"IF(AND($A$48=\"yes\",OR(Data!$C$1=Data!$C$7, Data!$C$1=Data!$C$10)),\"yes\",\"no\")","v":"no"},null,null,null,"N4241Z",{"$f":"'Detailed Product Structure'!H78","v":"ZIF Flying Lead Probe 2.0 bi-directional x8 for PCIe 5Gb/s"},{"$f":"IF(AND(A90=\"yes\"),IF(Data!$D$1=Data!$D$8,2,1),)","v":0},{"$f":"'Detailed Product Structure'!J78","v":25725},0,{"$f":"'Input Parameter'!$B$28","v":0},25725,0]
[{"$f":"A90","v":"no"},null,null,null,null,"Note: We always recommend the Gen2 Flying Leads Probe (N4241F or N4241Z) over the Gen1 Flying Lead Probe (N4221F)"]
[{"$f":"A92","v":"no"},null,null,null,null,"Note: We recently introduced the N4241Z ZIF Flying Leads Probe.  We recommend the N4241Z probe over the N4241F, Pub 5990-4123EN has more information"]
[{"$f":"IF(AND(A48=\"yes\",Data!$C$1=Data!$C$5,Data!$D$1=Data!$D$8,Data!$F$1=Data!$F$6),\"yes\",\"no\")","v":"no"},null,null,null,{"$f":"'Detailed Product Structure'!E84","v":"N4242A"},{"$f":"'Detailed Product Structure'!H84","v":"Midbus Probe 2.0 swizzled x16 for PCIe 5Gb/s"},{"$f":"IF(A94=\"yes\",1,0)","v":0},45820,0,{"$f":"'Input Parameter'!$B$28","v":0},45820,0]
["no",null,null,null,{"$f":"'Detailed Product Structure'!E88","v":"N4243A"},{"$f":"'Detailed Product Structure'!H88","v":"Midbus Probe 2.0 split x4 for PCIe 5Gb/s"},{"$f":"IF(A95=\"yes\",1,0)","v":0},24623,0,{"$f":"'Input Parameter'!$B$28","v":0},24623,0]
[{"$f":"IF(AND($A$48=\"yes\",Data!$C$1=Data!$C$11),\"yes\",\"no\")","v":"no"},null,null,null,{"$f":"'Detailed Product Structure'!E11","v":"E2960B-MEC"},{"$f":"'Detailed Product Structure'!H11","v":"Express Card Adapter for PCIe 2.5Gb/s for N4241A"},{"$f":"IF(A96=\"yes\",1,0)","v":0},531,0,{"$f":"'Input Parameter'!$B$28","v":0},531,{"$f":"G96*K96","v":0}]
[{"$f":"A96","v":"no"},null,null,null,null,"Note: Express card adapter requires an N4241A "]
["no",null,null,"Upgrades",{"$f":"'Detailed Product Structure'!E93","v":"N5310U"},{"$f":"'Detailed Product Structure'!H93","v":"Upgrade of Analyzer SW License for E2960B"},{"$f":"IF(A98=\"yes\",1,0)","v":0},{"$f":"'Detailed Product Structure'!J93","v":0},0,{"$f":"'Input Parameter'!$B$28","v":0},0,0]
["no",null,null,null,{"$f":"'Detailed Product Structure'!E94","v":"N5310U-E12"},{"$f":"'Detailed Product Structure'!H94","v":"Exerciser SW License Upgrade for Exerciser and LTSSM from 2.5Gb/s to 5Gb/s"},{"$f":"IF(A99=\"yes\",1,0)","v":0},25694,0,{"$f":"'Input Parameter'!$B$28","v":0},25694,0]
["no",null,null,null,{"$f":"'Detailed Product Structure'!E95","v":"N5310U-EX1"},{"$f":"'Detailed Product Structure'!H95","v":"Exerciser SW License and LTSSM at 5Gb/s"},0,27577,0,{"$f":"'Input Parameter'!$B$28","v":0},27577,0]
["no",null,null,null,{"$f":"'Detailed Product Structure'!E96","v":"N5310U-EX2"},{"$f":"'Detailed Product Structure'!H96","v":"Exerciser SW License and LTSSM at 2.5Gb/s"},0,48569,0,{"$f":"'Input Parameter'!$B$28","v":0},48569,0]
["no",null,null,null,{"$f":"'Detailed Product Structure'!E102","v":"N5310U-J12"},{"$f":"'Detailed Product Structure'!H102","v":"Jammer SW License Upgrade from 2.5Gb/s to 5Gb/s"},null,28400,0,{"$f":"'Input Parameter'!$B$28","v":0},28400,0]
["no",null,null,null,{"$f":"'Detailed Product Structure'!E103","v":"N5310U-JM1"},{"$f":"'Detailed Product Structure'!H103","v":"Jammer SW License at 2.5Gb/s"},null,17000,0,{"$f":"'Input Parameter'!$B$28","v":0},17000,0]
["no",null,null,null,{"$f":"'Detailed Product Structure'!E104","v":"N5310U-JM2"},{"$f":"'Detailed Product Structure'!H104","v":"Jammer SW License at 5Gb/s"},null,40000,0,{"$f":"'Input Parameter'!$B$28","v":0},40000,0]
["no",null,null,null,{"$f":"'Detailed Product Structure'!E105","v":"N5310U-SCR"},{"$f":"'Detailed Product Structure'!H105","v":"Jammer SW Licnese : Jammer Scripts "},null,10310,0,{"$f":"'Input Parameter'!$B$28","v":0},10310,0]
["no",null,null,null,{"$f":"'Detailed Product Structure'!E97","v":"N5310U-G14"},{"$f":"'Detailed Product Structure'!H97","v":"Analyzer SW License Upgrade from x1 at 2.5Gb/s to x4 at 2.5Gb/s"},0,4378,{"$f":"H106*G106","v":0},{"$f":"'Input Parameter'!$B$28","v":0},4378,{"$f":"G106*K106","v":0}]
["no",null,null,null,{"$f":"'Detailed Product Structure'!E98","v":"N5310U-G18"},{"$f":"'Detailed Product Structure'!H98","v":"Analyzer SW License Upgrade from x1 at 2.5Gb/s to x8 at 2.5Gb/s"},0,29400,0,{"$f":"'Input Parameter'!$B$28","v":0},29400,0]
["no",null,null,null,{"$f":"'Detailed Product Structure'!E100","v":"N5310U-G48"},{"$f":"'Detailed Product Structure'!H100","v":"Analyzer SW License Upgrade from x4 at 2.5Gb/s to x8 at 2.5Gb/s"},0,24157,0,{"$f":"'Input Parameter'!$B$28","v":0},24157,0]
["no",null,null,null,{"$f":"'Detailed Product Structure'!E106","v":"N5310U-U21"},{"$f":"'Detailed Product Structure'!H106","v":"Analyzer SW License Upgrade from x1 at 2.5Gb/s to x1 at 5Gb/s"},0,39841,0,{"$f":"'Input Parameter'!$B$28","v":0},39841,0]
["no",null,null,null,{"$f":"'Detailed Product Structure'!E107","v":"N5310U-U24"},{"$f":"'Detailed Product Structure'!H107","v":"Analyzer SW License Upgrade from x4 at 2.5Gb/s to x4 at 5Gb/s"},0,44119,0,{"$f":"'Input Parameter'!$B$28","v":0},44119,0]
["no",null,null,null,{"$f":"'Detailed Product Structure'!E108","v":"N5310U-U26"},{"$f":"'Detailed Product Structure'!H108","v":"Analyzer SW License Upgrade from x16 at 2.5Gb/s to x16 at 5Gb/s"},0,36019,0,{"$f":"'Input Parameter'!$B$28","v":0},36019,0]
["no",null,null,null,{"$f":"'Detailed Product Structure'!E109","v":"N5310U-U28"},{"$f":"'Detailed Product Structure'!H109","v":"Analyzer SW License Upgrade from x8 at 2.5Gb/s to x8 at 5Gb/s"},0,30588,0,{"$f":"'Input Parameter'!$B$28","v":0},30588,0]
["no",null,null,null,{"$f":"'Detailed Product Structure'!E110","v":"N5310U-U46"},{"$f":"'Detailed Product Structure'!H110","v":"Analyzer SW License Upgrade from x4 at 5Gb/s to x16 at 5Gb/s"},0,28648,0,{"$f":"'Input Parameter'!$B$28","v":0},28648,0]
["no",null,null,null,{"$f":"'Detailed Product Structure'!E111","v":"N5310U-U48"},{"$f":"'Detailed Product Structure'!H111","v":"Analyzer SW License Upgrade from x4 at 5Gb/s to x8 at 5Gb/s"},0,7465,0,{"$f":"'Input Parameter'!$B$28","v":0},7465,0]
["no",null,null,null,{"$f":"'Detailed Product Structure'!E112","v":"N5310U-U86"},{"$f":"'Detailed Product Structure'!H112","v":"Analyzer SW License Upgrade from x8 at 5Gb/s to x16 at 5Gb/s"},0,21197,0,{"$f":"'Input Parameter'!$B$28","v":0},21197,0]
["no",null,null,null,{"$f":"'Detailed Product Structure'!E113","v":"N5310U-COM"},{"$f":"'Detailed Product Structure'!H113","v":"Exerciser SW License Compliance Package"},0,16059,0,{"$f":"'Input Parameter'!$B$28","v":0},16059,0]
[]
[{"$f":"IF(AND(Data!$G$1=Data!$G$6, A42=\"yes\"),\"yes\",\"no\")","v":"no"},null,null,null,{"$f":"'Detailed Product Structure'!E117","v":"N5313A"},{"$f":"'Detailed Product Structure'!H117","v":"P2L gateway cable to connect 16900A to E2960B Analyzer"},0,1429,0,{"$f":"'Input Parameter'!$B$28","v":0},1429,0]
[{"$f":"IF(AND(Data!$G$1=Data!$G$5, A42=\"yes\"),\"yes\",\"no\")","v":"no"},null,null,null,{"$f":"'Detailed Product Structure'!E135","v":"N5319A"},{"$f":"'Detailed Product Structure'!H135","v":"P2L gateway cable with Flags support to connect 16900A to E2960B Analyzer"},0,1723,0,{"$f":"'Input Parameter'!$B$28","v":0},1723,0]
[]
[{"$f":"IF(AND($A$48=\"yes\",OR(Data!$C$1=Data!$C$6, Data!$C$1=Data!$C$9)),\"yes\",\"no\")","v":"no"},null,null,"Interposer",{"$f":"'Detailed Product Structure'!E120","v":"N5315A"},{"$f":"'Detailed Product Structure'!H120","v":"Slot Interposer for PCIe 5Gb/s"},0,{"$f":"'Detailed Product Structure'!J120","v":0},0,{"$f":"'Input Parameter'!$B$28","v":0},0,0]
[{"$f":"IF(AND($A$121=\"yes\",Data!$D$1=Data!$D$5),\"yes\",\"no\")","v":"no"},null,null,null,{"$f":"'Detailed Product Structure'!E124","v":"N5315A-A01"},{"$f":"'Detailed Product Structure'!H124","v":"Slot Interposer x1 for PCIe 5Gb/s"},0,10137,0,{"$f":"'Input Parameter'!$B$28","v":0},10137,0]
[{"$f":"IF(AND(A121=\"yes\",Data!$D$1=Data!$D$6),\"yes\",\"no\")","v":"no"},null,null,null,{"$f":"'Detailed Product Structure'!E125","v":"N5315A-A04"},{"$f":"'Detailed Product Structure'!H125","v":"Slot Interposer x4 for PCIe 5Gb/s"},{"$f":"IF(A123=\"yes\",1,0)","v":0},12364,0,{"$f":"'Input Parameter'!$B$28","v":0},12364,0]
[{"$f":"IF(AND(A121=\"yes\",Data!$D$1=Data!$D$7),\"yes\",\"no\")","v":"no"},null,null,null,{"$f":"'Detailed Product Structure'!E126","v":"N5315A-A08"},{"$f":"'Detailed Product Structure'!H126","v":"Slot Interposer x8 for PCIe 5Gb/s"},{"$f":"IF(A124=\"yes\",1,0)","v":0},14613,0,{"$f":"'Input Parameter'!$B$28","v":0},14613,0]
[{"$f":"IF(AND(A121=\"yes\",Data!$D$1=Data!$D$8),\"yes\",\"no\")","v":"no"},null,null,null,{"$f":"'Detailed Product Structure'!E127","v":"N5315A-A16"},{"$f":"'Detailed Product Structure'!H127","v":"Slot Interposer x16 for PCIe 5Gb/s"},{"$f":"IF(A125=\"yes\",1,0)","v":0},16861,0,{"$f":"'Input Parameter'!$B$28","v":0},16861,0]
[]
[{"$f":"IF(AND(OR(Data!$B$1=Data!$B$6,Data!$B$1=Data!$B$7), A42=\"yes\"),\"yes\",\"no\")","v":"no"},null,null,null,{"$f":"'Detailed Product Structure'!E130","v":"N5316A"},{"$f":"'Detailed Product Structure'!H130","v":"Test Backplane for PCIe Gen2 & Gen3"},{"$f":"IF(A127=\"yes\",1,0)","v":0},6194,0,{"$f":"'Input Parameter'!$B$28","v":0},6194,0]
[{"$f":"A127","v":"no"},null,null,null,null,"Note: We recommend the backplane with every Exerciser."]
[{"$f":"IF(A133=\"yes\",\"yes\",\"no\")","v":"no"},null,null,null,{"$f":"'Detailed Product Structure'!E133","v":"N5317A"},{"$f":"'Detailed Product Structure'!H133","v":"Cable to connect E2960A probe to E2960B series"},{"$f":"IF(A129=\"yes\",1,0)","v":0},2708,0,{"$f":"'Input Parameter'!$B$28","v":0},2708,0]
[{"$f":"A129","v":"no"},null,null,null,null,"Note: N5317A is required if using Gen1 only probes (see Gen1 only Products section of config.)"]
["yes"]
[{"$f":"A133","v":"No"}]
["No",{"$f":"IF(A133=\"yes\",B42+1,0)","v":0},"Gen1 only Products"]
["no",null,null,null,"E2945A","x1 passive probe board",{"$f":"IF(A134=\"yes\",1,0)","v":0},3070,0,{"$f":"'Input Parameter'!$B$28","v":0},3070,0]
["no",null,null,null,"E2946A","x4 passive probe board",0,3424,0,{"$f":"'Input Parameter'!$B$28","v":0},{"$f":"(1-J135)*H135","v":3424},0]
["no",null,null,null,"E2947A","x8 passive probe board",0,3544,0,{"$f":"'Input Parameter'!$B$28","v":0},3544,0]
["no",null,null,null,null,"Note: We recommend the use of the Gen2 Slot Interposers (N5315A) instead of Gen 1 Interposers.  Both are shown in this config, only one type is required."]
["no",null,null,null,"E2941B","Midbus Probe (required for N4221A, N4221F or N4228A)",{"$f":"IF(A138=\"yes\",IF(OR(G139=2,G146=1),2,1),0)","v":0},8678,0,{"$f":"'Input Parameter'!$B$28","v":0},8678,0]
["no",null,null,null,"N4221A","Midbus Probe Cable (Full size soft touch)",{"$f":"IF(A139=\"yes\",IF(OR(G140=2,G147=1),2,1),0)","v":0},6522,0,{"$f":"'Input Parameter'!$B$28","v":0},6522,0]
["no",null,null,null,null,"Note: We strongly recommend the use of the Gen2 midbus probes"]
["no",null,null,null,null,"Note: You have configured an uni-directional footprint which is\nsupported by the Gen1 midbus probe."]
["no",null,null,null,"N4228A","Midbus Probe Cable (1/2 size soft touch)",{"$f":"IF(A142=\"yes\",1,0)","v":0},6641,0,{"$f":"'Input Parameter'!$B$28","v":0},{"$f":"(1-J142)*H142","v":6641},0]
["no",null,null,null,null,"Note: We strongly recommend the use of the Gen2 midbus probes"]
["no",null,null,null,"N4221F","Flying Lead Probe 1.0 bi-directional x8 for PCIe 2.5Gb/s",{"$f":"IF(A144=\"yes\",1,0)","v":0},7506,0,{"$f":"'Input Parameter'!$B$28","v":0},{"$f":"(1-J144)*H144","v":7506},0]
["no",null,null,null,null,"Note: We strongly recommend the Gen2 Flying Lead Probs (N4241F) instead"]
["no",null,null,null,"N4223A","x16 interposer (2.5Gb/s x16 slot interposer includes 2 cables)",{"$f":"IF(A146=\"yes\",1,0)","v":0},10404,0,{"$f":"'Input Parameter'!$B$28","v":0},{"$f":"(1-J146)*H146","v":10404},0]
["no",null,null,null,null,"Note: We strongly recommend the use of the N5315A-A16!"]
[]
["yes",null,null,null,null,"Subtotal:",null,null,{"$f":"SUM(I44:I146)","v":0},null,null,{"$f":"SUM(L4:L148)","v":352577.6}]
["no"]
["no"]
["yes"]
["yes",null,null,null,null,"Note: All Prices are US-List prices. Please check OPAL for local prices."]
["yes",null,null,null,null,"Note: All information in here is subject to change. Please use Oracle to create all customer quotes."]

{"sheet":"Detailed Product Structure","index":3,"n_rows":331,"n_cols":18,"rows_kept":331,"cut":false,"hidden":false,"merged":[[10,16,10,17],[1,4,1,17],[7,16,7,17],[8,16,8,17],[9,16,9,17],[2,16,2,17],[3,16,3,17],[4,14,4,15],[4,16,4,17],[5,1,5,2],[6,1,6,2],[2,14,2,15],[3,10,3,11],[3,14,3,15],[4,1,4,2],[2,1,2,2],[3,1,3,2],[190,16,190,17],[191,16,191,17],[192,16,192,17],[193,16,193,17],[12,16,12,17],[92,16,92,17],[19,16,19,17],[14,16,14,17],[15,16,15,17]]}
[]
[]
[null," ",null,null,"Owner (Product Mgr.)",null,null,"Yenyi Fu TN 345 8716",null,null,null,null,null,null,"Date:"]
[null," ",null,null,"CPL Date",null,null,null,null,"Update:","2007-12-21",null,null,null,"CP passed: "]
[null," ",null,null,"RMU: Sub-Family",null,null,"256462 : SPT",null,"Status Pre-Production, PW protected",null,null,null,null,"next CP: "]
[null," ",null,null,"Default Warranty",null,null,"1 Year RTA",null,"ECR: "]
[null," ",null,null,"Calibration Intervall",null,null,"1 Year"]
["NOTES","New / Change","Min/ Max","Level","Product #","Master Item type","Org Item type","Product Description\nmax. 80 Character","WW-Ref. Price (US$) Config=YES","US List Price (*1,03 US$) Config=NO","SRT/ATP\nweeks","internal order (Y/N)","required  / Opt. (R/O)","CPL Exclude (Y/N)","Plg.-%","Zoll Class. (Y/N)","Comments"]
[null,null,null,null,"E29600","Merchandizing","Merchandizing","System Protocol Tester PCIe series "]
[null,null,null,0,"E2960B","PTO","PTO","System Protocol Tester Series for PCIe 5Gb/s",0,{"$f":"+I10*1.03","v":0},88,null,null,"Y"]
[null,null,null,1,"E2960B-MEC","PTO","PTO","Express Card Adapter for PCIe 2.5Gb/s for N4241A",0,530,88,null,null,"Y"]
[null,null,null,1,"E2960B-LAN","PTO","PTO","USB to LAN Adapter for Chassis to Controller Connectivity",null,52]
[null,null,null,1,"E2960B-ATP001","ATPLT","ATPLT","ATP Lead-time item",0,{"$f":"+I13*1.03","v":0},88,null,null,"Y"]
[null,null,null,1,"E2960B-KIT","PTO Kit Config Only","PTO Kit Config Only",null,null,null,null,null,null,"Y"]
[null,null,null,null,"PS-S20-01",null,null,"1 Day of start-up assistance",null,null,null,null,null,"Y"]
[null,null,null,1,"E2969B","PTO Model","PTO Model","PTC 2.0",0,0,88]
[null,null,null,2,"N5309A-E01","PTO Kit config","PTO Kit config","Exerciser for PCIe 5Gb/s",0,9158,88,null,null,"Y",null,null,"rule: per optional rule add I/O cable N5312A"]
[null,null,null,2,"N5309A-PTC","PTO Kit config","PTO Kit config","Exerciser for PCIe 5Gb/s",0,0,88,null,null,"Y",null,null,"rule: per optional rule add I/O cable N5312A"]
[null,null,null,2,"N5309A-COM","PTO Kit config","PTO Kit config","Exerciser SW License Compliance Assured Test Package",0,16027,88,null,null,"Y",null,null,"rule: per optional rule add I/O cable N5312A"]
[null,null,null,1,"N5306A","PTO Model","PTO Model","Analyzer Module for PCIe 5Gb/s (requires 2 for x 16)",26700,{"$f":"'Recommended Config'!H48","v":30300},88]
[null,null,null,2,"N5306A-KIT","PTO Kit config","PTO Kit config","Analyzer Module Kit for PCIe 5Gb/s",0,0,88,null,null,"Y",null,null,"rule: per optional rule add I/O cable N5312A"]
[null,null,null,2,"N5306A-ATO","ATO","ATO","Analyzer Board for PCIe 5Gb/s",0,0,88,null,null,"Y",null,null,"hint: 2 analyzers needed per License x16"]
[null,null,null,3,"N5306A-CORE","Tangible","Phantom","Core of Analyzer Module for PCIe 5Gb/s",0,0,88,null,null,"Y",null,null,"hint: 2 analyzers needed per License x16"]
[null,null,null,3,"N5306A-OC-LINKWIDTH","AOC","AOC","Option Class Analyzer SW License Link Width",0,0,88,null,null,"Y"]
[null,null,null,4,"N5306A-A01","FG BOM Config Only","Phantom","Analyzer SW License x1 for PCIe 5Gb/s",null,{"$f":"'Recommended Config'!H49","v":12995},88,null,null,"Y"]
[null,null,null,4,"N5306A-A04","FG BOM Config Only","Phantom","Analyzer SW License x4 for PCIe 5Gb/s",null,{"$f":"'Recommended Config'!H50","v":19110},88,null,null,"Y"]
[null,null,null,4,"N5306A-A08","FG BOM Config Only","Phantom","Analyzer SW License x8 for PCIe 5Gb/s",null,{"$f":"'Recommended Config'!H51","v":25443},88,null,null,"Y"]
[null,null,null,4,"N5306A-A16","FG BOM Config Only","Phantom","Analyzer SW License x16 for PCIe 5Gb/s",null,{"$f":"'Recommended Config'!H52","v":21730},88,null,null,"Y",null,null,"hint: includes additional analyzer board + trigger cable "]
[null,null,null,4,"N5306A-G01","FG BOM Config Only","Phantom","Analyzer SW License x1 for PCIe 2.5 Gb/s",null,{"$f":"'Recommended Config'!H53","v":-24886}]
[null,null,null,4,"N5306A-G04","FG BOM Config Only","Phantom","Analyzer SW License x4 for PCIe 2.5 Gb/s",null,{"$f":"'Recommended Config'!H54","v":-19416}]
[null,null,null,4,"N5306A-G08","FG BOM Config Only","Phantom","Analyzer SW License x8 for PCIe 2.5 Gb/s",null,{"$f":"'Recommended Config'!H55","v":179},88,null,null,"Y"]
[null,null,null,4,"N5306A-G16","FG BOM Config Only","Phantom","Analyzer SW License x16 for PCIe 2.5Gb/s",null,{"$f":"'Recommended Config'!H56","v":-8639},88,null,null,"Y",null,null,"hint: includes additional analyzer board + trigger cable "]
[null,null,null,2,"N5322A",null,null,"Extended Interface Module for PCIe 5Gb/s ",null,{"$f":"'Recommended Config'!H57","v":14856},null,null,null,"Y"]
[null,null,null,2,"R1280A",null,null,"Service"]
[null,null,null,1,"N5309A","PTO Model","PTO Model","Half Size Exerciser Module for PCIe 5Gb/s",null,{"$f":"+I35*1.03","v":0},88]
[null,null,null,2,"N5309A-KIT","PTO Kit config","PTO Kit config","Half Sized Exerciser Module Kit for PCIe 5Gb/s",0,{"$f":"+I36*1.03","v":0},88,null,null,"Y",null,null,"includes license, USB-cable, Power Supply"]
[null,null,null,2,"E2960B-OC-PWRCRD","POC","POC","Power Cord Option Class",0,0,88,null,null,"Y",null,null,"country selection for all modules - # is contributed from the modules to this Kit"]
[null,null,null,3,"  E2991A-900","PKITCO","PKITCO","POWER CORD - UNITED KINGDOM  ",null,0,88,null,null,"Y"]
[null,null,null,3,"  E2991A-901","PKITCO","PKITCO","POWER CORD - AUSTRALIA AND NEW ZEALAND  ",null,0,88,null,null,"Y"]
[null,null,null,3,"  E2991A-902","PKITCO","PKITCO","POWER CORD - CONTINENTAL EUROPE  ",null,0,88,null,null,"Y"]
[null,null,null,3,"  E2991A-903","PKITCO","PKITCO","POWER CORD - UNITED STATES AND CANADA (120V)  ",null,0,88,null,null,"Y"]
[null,null,null,3,"  E2991A-906","PKITCO","PKITCO","POWER CORD - SWITZERLAND  ",null,0,88,null,null,"Y"]
[null,null,null,3,"  E2991A-912","PKITCO","PKITCO","POWER CORD - DENMARK  ",null,0,88,null,null,"Y"]
[null,null,null,3,"  E2991A-917","PKITCO","PKITCO","POWER CORD - SOUTH AFRICA AND INDIA  ",null,0,88,null,null,"Y"]
[null,null,null,3,"  E2991A-918","PKITCO","PKITCO","POWER CORD - JAPAN  ",null,0,88,null,null,"Y"]
[null,null,null,3,"  E2991A-919","PKITCO","PKITCO","POWER CORD - ISRAEL  ",null,0,88,null,null,"Y"]
[null,null,null,3,"  E2991A-920","PKITCO","PKITCO","POWER CORD - ARGENTINA  ",null,0,88,null,null,"Y"]
[null,null,null,3,"  E2991A-921","PKITCO","PKITCO","POWER CORD - CHILE  ",null,0,88,null,null,"Y"]
[null,null,null,3,"  E2991A-922","PKITCO","PKITCO","POWER CORD - CHINA  ",null,0,88,null,null,"Y"]
[null,null,null,3,"  E2991A-927","PKITCO","PKITCO","POWER CORD - BRAZIL AND THAILAND  ",null,0,88,null,null,"Y"]
[null,null,null,2,"N5309A-ATO","ATO","ATO","Half Sized Exerciser Board for PCIe 5Gb/s",0,0,88,null,null,"Y",null,null,"hint: 2 analyzers needed per License x16"]
[null,null,null,3,"N5309A-CORE","Tangible","Phantom","Core of Exerciser Module for PCIe 5Gb/s",0,0,88,null,null,"Y",null,null,"hint: 2 analyzers needed per License x16"]
[null,null,null,3,"N5309A-OC-LINKWIDTH","AOC","AOC","Option Class Exerciser Module Link Width",0,0,88,null,null,"Y"]
[null,null,null,4,"N5309A-E01","FG BOM Config Only","Phantom","Half Sized Exerciser and LTSSM Board x1 for PCIe 5Gb/s",null,{"$f":"'Recommended Config'!H63","v":9359},88,null,null,"Y",null,null,"add one Power Supply 5*5"]
[null,null,null,4,"N5309A-E04","FG BOM Config Only","Phantom","Half Sized Exerciser and LTSSM Board x4 for PCIe 5Gb/s",null,{"$f":"'Recommended Config'!H64","v":21226},88,null,null,"Y",null,null,"add one Power Supply 5*5"]
[null,null,null,4,"N5309A-E08","FG BOM Config Only","Phantom","Half Sized Exerciser and LTSSM Board x8 for PCIe 5Gb/s",null,{"$f":"'Recommended Config'!H65","v":32260},88,null,null,"Y",null,null,"add one Power Supply 5*5"]
[null,null,null,4,"N5309A-E16","FG BOM Config Only","Phantom","Half Sized Exerciser and LTSSM Board x16 for PCIe 5Gb/s",null,{"$f":"'Recommended Config'!H66","v":43491},88,null,null,"Y",null,null,"add two Power Supply 5*5"]
[null,null,null,3,"N5309A-OC-EXSW","AOC","AOC","Option Class Exerciser SW",null,0,88,null,null,"Y",null,null,"add two Power Supply 5*5"]
[null,null,null,4,"N5309A-EX1","FG BOM Config Only","Phantom","Exerciser SW License and LTSSM for PCIe 2.5Gb/s",null,{"$f":"'Recommended Config'!H67","v":28129},88,null,null,"Y",null,null,"add one Power Supply 5*5"]
[null,null,null,4,"N5309A-EX2","FG BOM Config Only","Phantom","Exerciser SW License and LTSSM for PCIe 5Gb/s",null,{"$f":"'Recommended Config'!H68","v":49054},88,null,null,"Y",null,null,"add one Power Supply 5*5"]
[null,null,null,3,"N5309A-OC-PTC","AOC","AOC","Option Class SW Compliance",null,0,88,null,null,"Y",null,null,"add two Power Supply 5*5"]
[null,null,null,4,"N5309A-PTC","FG BOM Config Only","Phantom","Exerciser SW License PTC",0,0,88,null,null,"Y",null,null,"add one Power Supply 5*5"]
[null,null,null,4,"N5309A-COM","FG BOM Config Only","Phantom","Exerciser SW License Compliance Assured Test Package",null,{"$f":"'Recommended Config'!H70","v":16059},88,null,null,"Y",null,null,"add one Power Supply 5*5"]
[null,null,null,2,"R1280A",null,null,"Service",null,null,88,null,null,"Y"]
[null,null,null,1,"N4241A","PTO Model","PTO Model","Midbus Probe 2.0 bi-directional x8 for PCIe 5Gb/s",null,{"$f":"'Recommended Config'!H83","v":22268},88,null,null,"Y",null,null,"set up and designed by PL 1B"]
[null,null,null,2,"N4241A-FG",null,null,"Midbus Probe 2.0 bi-directional x8 for PCIe 5Gb/s",0,0,88,null,null,"Y",null,null,"hint: 2 analyzers needed per License x16"]
[null,null,null,2,"N4241A-KIT",null,null,"Midbus Probe 2.0 Kit bi-directional x8 for PCIe 5Gb/s",0,0,88,null,null,"Y",null,null,"hint: 2 analyzers needed per License x16"]
[null,null,null,1,"N4241A-MBI",null,null,"Set of Midbus Interposer x1, x4, x8, x16 for straight midbus",0,{"$f":"'Recommended Config'!H85","v":1919},88,null,null,"Y",null,null,"hint: 2 analyzers needed per License x16"]
[null,null,null,2,"R1280A",null,null,"Return-to-Agilent - warranty and service plan",null,null,88,null,null,"Y"]
[null,null,null,1,"N5328A","PTO Model","PTO Model","Midbus Probe 2.0 bi-directional x4 for PCIe 5Gb/s",null,{"$f":"'Recommended Config'!H87","v":24902},88,null,null,"Y",null,null,"set up and designed by PL 1B"]
[null,null,null,2,"N5328A-FG",null,null,"Midbus Probe 2.0 bi-directional x4 for PCIe 5Gb/s",0,{"$f":"+I71*1.03","v":0},88,null,null,"Y",null,null,"hint: 2 analyzers needed per License x16"]
[null,null,null,2,"N5328A-KIT",null,null,"Midbus Probe 2.0 Kit bi-directional x4 for PCIe 5Gb/s",0,0,88,null,null,"Y",null,null,"hint: 2 analyzers needed per License x16"]
[null,null,null,2,"R1280A",null,null,"Return-to-Agilent - warranty and service plan",null,null,88,null,null,"Y"]
[null,null,null,1,"N4241F","PTO Model","PTO Model","Flying Lead Probe 2.0 bi-directional x8 for PCIe 5Gb/s",null,25725,88,null,null,"Y",null,null,"set up and designed by PL 1B"]
[null,null,null,2,"N4241F-FG",null,null,"Flying Lead Probe 2.0 bi-directional x8 for PCIe 5Gb/s",0,0,88,null,null,"Y",null,null,"hint: 2 analyzers needed per License x16"]
[null,null,null,2,"N4241F-KIT",null,null,"Flying Lead Probe 2.0 Kit bi-directional x8 for PCIe 5Gb/s",0,0,88,null,null,"Y",null,null,"hint: 2 analyzers needed per License x16"]
[null,null,null,2,"R1280A",null,null,"Return-to-Agilent - warranty and service plan",null,null,88,null,null,"Y"]
[null,null,null,1,"N4241Z","PTO Model","PTO Model","ZIF Flying Lead Probe 2.0 bi-directional x8 for PCIe 5Gb/s",null,25725,88,null,null,"Y",null,null,"set up and designed by PL 1B"]
[null,null,null,2,"N4241Z-FG",null,null,"ZIF Flying Lead Probe 2.0 bi-directional x8 for PCIe 5Gb/s",0,{"$f":"+I79*1.03","v":0},88,null,null,"Y",null,null,"hint: 2 analyzers needed per License x16"]
[null,null,null,2,"N4241Z-OC-ZIFTIP",null,null,"Option Class Exerciser Module Link Width",0,0,88,null,null,"Y"]
[null,null,null,3,"N5426A",null,null,"12GHz InfiniiMax ZIF Tip â€“ Kit of 10",null,{"$f":"'Recommended Config'!H92","v":0},88,null,null,"Y",null,null,"add one Power Supply 5*5"]
[null,null,null,3,"N5451A",null,null,"4GHz InfiniiMax Long Wired Differential ZIF Tip",null,null,88,null,null,"Y",null,null,"add one Power Supply 5*5"]
[null,null,null,2,"R1280A",null,null,"Return-to-Agilent - warranty and service plan",null,null,88,null,null,"Y"]
[null,null,null,1,"N4242A","PTO Model","PTO Model","Midbus Probe 2.0 swizzled x16 for PCIe 5Gb/s",null,{"$f":"'Recommended Config'!H94","v":45820},88,null,null,"Y",null,null,"set up and designed by PL 1B"]
[null,null,null,2,"N4242A-FG",null,null,"Midbus Probe 2.0 swizzled x16 for PCIe 5Gb/s",0,{"$f":"+I85*1.03","v":0},88,null,null,"Y",null,null,"hint: 2 analyzers needed per License x16"]
[null,null,null,2,"N4242A-KIT",null,null,"Midbus Probe 2.0 Kit swizzled x16 for PCIe 5Gb/s",0,{"$f":"+I86*1.03","v":0},88,null,null,"Y",null,null,"hint: 2 analyzers needed per License x16"]
[null,null,null,2,"R1280A",null,null,"Return-to-Agilent - warranty and service plan",null,null,88,null,null,"Y"]
[null,null,null,1,"N4243A","PTO Model","PTO Model","Midbus Probe 2.0 split x4 for PCIe 5Gb/s",null,{"$f":"'Recommended Config'!H95","v":24623},88,null,null,"Y",null,null,"set up and designed by PL 1B"]
[null,null,null,2,"N4243A-FG",null,null,"Midbus Probe 2.0 split x4 for PCIe 5Gb/s",0,{"$f":"+I89*1.03","v":0},88,null,null,"Y",null,null,"hint: 2 analyzers needed per License x16"]
[null,null,null,2,"N4243A-KIT",null,null,"Midbus Probe 2.0 Kit split x4 for PCIe 5Gb/s",0,{"$f":"+I90*1.03","v":0},88,null,null,"Y",null,null,"hint: 2 analyzers needed per License x16"]
[null,null,null,2,"R1280A",null,null,"Return-to-Agilent - warranty and service plan",null,null,88,null,null,"Y"]
[null,null,null,1,"R1380-PCIXPRESSEBC",null,null,"Services for PCIe 5Gb/s",null,null,88]
[null,null,null,1,"N5310U","PTO Model","PTO Model","Upgrade of Analyzer SW License for E2960B",null,null,88]
[null,null,null,2,"N5310U-E12","PTO Kit config","PTO Kit config","Exerciser SW License Upgrade for Exerciser and LTSSM from 2.5Gb/s to 5Gb/s",null,{"$f":"'Recommended Config'!H99","v":25694},88]
[null,null,null,2,"N5310U-EX1","PTO Kit config","PTO Kit config","Exerciser SW License and LTSSM at 5Gb/s",null,{"$f":"'Recommended Config'!H100","v":27577},88,null,null,"Y"]
[null,null,null,2,"N5310U-EX2","PTO Kit config","PTO Kit config","Exerciser SW License and LTSSM at 2.5Gb/s",null,{"$f":"'Recommended Config'!H101","v":48569},88,null,null,"Y"]
[null,null,null,2,"N5310U-G14","PTO Kit config","PTO Kit config","Analyzer SW License Upgrade from x1 at 2.5Gb/s to x4 at 2.5Gb/s",null,{"$f":"'Recommended Config'!H106","v":4378},88,null,null,"Y"]
[null,null,null,2,"N5310U-G18","PTO Kit config","PTO Kit config","Analyzer SW License Upgrade from x1 at 2.5Gb/s to x8 at 2.5Gb/s",null,{"$f":"'Recommended Config'!H107","v":29400},88]
[null,"New",null,2,"N5310U-G16","PTO Kit config","PTO Kit config","Analyzer SW License Upgrade from x1 at 2.5Gb/s to x16 at 2.5Gb/s",null,18700]
[null,null,null,2,"N5310U-G48","PTO Kit config","PTO Kit config","Analyzer SW License Upgrade from x4 at 2.5Gb/s to x8 at 2.5Gb/s",null,{"$f":"'Recommended Config'!H108","v":24157},88,null,null,"Y"]
[null,"New",null,2,"N5310U-G46","PTO Kit config","PTO Kit config","Analyzer SW License Upgrade from x4 at 2.5Gb/s to x16 at 2.5Gb/s",null,12500]
[null,null,null,2,"N5310U-J12","PTO Kit config","PTO Kit config","Jammer SW License Upgrade from 2.5Gb/s to 5Gb/s",null,{"$f":"'Recommended Config'!H102","v":28400},88]
[null,null,null,2,"N5310U-JM1","PTO Kit config","PTO Kit config","Jammer SW License at 2.5Gb/s",null,{"$f":"'Recommended Config'!H103","v":17000},88,null,null,"Y"]
[null,null,null,2,"N5310U-JM2","PTO Kit config","PTO Kit config","Jammer SW License at 5Gb/s",null,{"$f":"'Recommended Config'!H104","v":40000},88,null,null,"Y"]
[null,null,null,2,"N5310U-SCR","PTO Kit config","PTO Kit config","Jammer SW Licnese : Jammer Scripts ",null,{"$f":"'Recommended Config'!H105","v":10310}]
[null,null,null,2,"N5310U-U21","PTO Kit config","PTO Kit config","Analyzer SW License Upgrade from x1 at 2.5Gb/s to x1 at 5Gb/s",null,{"$f":"'Recommended Config'!H109","v":39841},88,null,null,"Y"]
[null,null,null,2,"N5310U-U24","PTO Kit config","PTO Kit config","Analyzer SW License Upgrade from x4 at 2.5Gb/s to x4 at 5Gb/s",null,{"$f":"'Recommended Config'!H110","v":44119},88,null,null,"Y"]
[null,null,null,2,"N5310U-U26","PTO Kit config","PTO Kit config","Analyzer SW License Upgrade from x16 at 2.5Gb/s to x16 at 5Gb/s",null,{"$f":"'Recommended Config'!H111","v":36019},88,null,null,"Y"]
[null,null,null,2,"N5310U-U28","PTO Kit config","PTO Kit config","Analyzer SW License Upgrade from x8 at 2.5Gb/s to x8 at 5Gb/s",null,{"$f":"'Recommended Config'!H112","v":30588},88,null,null,"Y"]
[null,null,null,2,"N5310U-U46","PTO Kit config","PTO Kit config","Analyzer SW License Upgrade from x4 at 5Gb/s to x16 at 5Gb/s",null,{"$f":"'Recommended Config'!H113","v":28648},88,null,null,"Y"]
[null,null,null,2,"N5310U-U48","PTO Kit config","PTO Kit config","Analyzer SW License Upgrade from x4 at 5Gb/s to x8 at 5Gb/s",null,{"$f":"'Recommended Config'!H114","v":7465},88,null,null,"Y"]
[null,null,null,2,"N5310U-U86","PTO Kit config","PTO Kit config","Analyzer SW License Upgrade from x8 at 5Gb/s to x16 at 5Gb/s",null,{"$f":"'Recommended Config'!H115","v":21197},88,null,null,"Y"]
[null,null,null,2,"N5310U-COM","PTO Kit config","PTO Kit config","Exerciser SW License Compliance Package",null,{"$f":"'Recommended Config'!H116","v":16059}]
[null,null,null,1,"N5312A","PTO Model","PTO Model","I/O Cable for N5306A module",null,null,88,null,null,"Y"]
[null,null,null,2,"N5312A-KIT","PTO Kit Config Only","PTO Kit Config Only","I/O Cable to connect N5307A to Analyzer Module.  Never released.",null,null,88,null,null,"Y"]
[null,null,null,2,"R1280A",null,null,"Service",0,{"$f":"(I116*1.03)","v":0},88,null,null,"Y"]
[null,null,null,1,"N5313A","PTO Model","PTO Model","P2L gateway cable to connect 16900A to E2960B Analyzer",null,969,88,null,null,"Y"]
[null,null,null,2,"N5313A-KIT","PTO Kit Config Only","PTO Kit Config Only","P2L gateway cable to connect 16900A to E2960B Analyzer",null,null,88,null,null,"Y"]
[null,null,null,2,"R1280A",null,null,"Service",0,{"$f":"(I119*1.03)","v":0},88,null,null,"Y"]
[null,null,null,1,"N5315A","PTO Model","PTO Model","Slot Interposer for PCIe 5Gb/s",null,{"$f":"(I120*1.03)","v":0},88,null,null,"Y"]
[null,null,null,2,"N5315A-ATO","ATO","ATO","Slot Interposer for PCIe 5Gb/s",null,{"$f":"+I121*1.03","v":0},88,null,null,"Y",null,null,"hint: 2 analyzers needed per License x16"]
[null,null,null,3,"N5315A-CORE","Tangible","Phantom","Core of Slot Interposer for PCIe 5Gb/s",null,{"$f":"+I122*1.03","v":0},88,null,null,"Y",null,null,"hint: 2 analyzers needed per License x16"]
[null,null,null,3,"N5315A-OC-LINKWIDTH","AOC","AOC","Option Class Slot InterposerLink Width",null,{"$f":"+I123*1.03","v":0},88,null,null,"Y"]
[null,null,null,4,"N5315A-A01","FG BOM Config Only","Phantom","Slot Interposer x1 for PCIe 5Gb/s",null,{"$f":"'Recommended Config'!H122","v":10137},88,null,null,"Y",null,null,"add one Power Supply 5*5"]
[null,null,null,4,"N5315A-A04","FG BOM Config Only","Phantom","Slot Interposer x4 for PCIe 5Gb/s",null,{"$f":"'Recommended Config'!H123","v":12364},88,null,null,"Y",null,null,"add one Power Supply 5*5"]
[null,null,null,4,"N5315A-A08","FG BOM Config Only","Phantom","Slot Interposer x8 for PCIe 5Gb/s",null,{"$f":"'Recommended Config'!H124","v":14613},88,null,null,"Y",null,null,"add one Power Supply 5*5"]
[null,null,null,4,"N5315A-A16","FG BOM Config Only","Phantom","Slot Interposer x16 for PCIe 5Gb/s",null,{"$f":"'Recommended Config'!H125","v":16861},88,null,null,"Y",null,null,"add two Power Supply 5*5"]
[null,null,null,2,"N5315A-KIT","PTO Kit Config Only","PTO Kit Config Only","Slot Interposer Kit for PCIe 5Gb/s",null,null,88,null,null,"Y"]
[null,null,null,2,"R1280A",null,null,"Service",0,{"$f":"(I129*1.03)","v":0},88,null,null,"Y"]
[null,null,null,1,"N5316A","PTO Model","PTO Model","Test Backplane for PCIe Gen2 & Gen3",null,{"$f":"'Recommended Config'!H127","v":6194}]
[null,null,null,2,"N5316A-FG","PTO Kit Config Only","PTO Kit Config Only","Test Backplane for PCIe 5Gb/s",null,null,88,null,null,"Y"]
[null,null,null,2,"N5316A-KIT","PTO Kit Config Only","PTO Kit Config Only","Test Backplane for PCIe 5Gb/s",null,null,88,null,null,"Y"]
[null,null,null,1,"N5317A","PTO Model","PTO Model","Cable to connect E2960A probe to E2960B series",null,{"$f":"'Recommended Config'!H129","v":2708}]
[null,null,null,2,"N5317A-KIT","PTO Kit Config Only","PTO Kit Config Only","Cable to connect E2960A probe to E2960B series",null,null,88,null,null,"Y"]
[null,null,null,1,"N5319A","PTO Model","PTO Model","P2L gateway cable with Flags support to connect 16900A to E2960B Analyzer",null,1495,88,null,null,"Y"]
[null,null,null,2,"N5319A-KIT","PTO Kit Config Only","PTO Kit Config Only","P2L gateway cable with Flags support to connect 16900A to E2960B Analyzer",null,null,88,null,null,"Y"]
[null,null,null,2,"R1280A",null,null,"Service",0,{"$f":"(I137*1.03)","v":0},88,null,null,"Y"]
[null,null,null,1,"N5322A","PTO Model","PTO Model","Extended Interface Module for PCIe 5Gb/s",null,{"$f":"J33","v":14856},88,null,null,"Y"]
[null,null,null,2,"N5322A-FG","PTO Kit Config Only","PTO Kit Config Only","Extended Interface Module for PCIe 5Gb/s",null,null,88,null,null,"Y"]
[null,null,null,2,"N5322A-KIT",null,null,"Extended Interface Module for PCIe 5Gb/s Kit"]
[null,null,null,2,"R1280A",null,null,"Service",0,{"$f":"(I141*1.03)","v":0},88,null,null,"Y"]
[null,null,null,1,"N5323A","PTO Model","PTO Model","Jammer Module for PCIe 5Gb/s",null,{"$f":"+I142*1.03","v":0},88]
[null,null,null,2,"N5323A-KIT","PTO Kit config","PTO Kit config","Jammer Module Kit for PCIe 5Gb/s",0,{"$f":"+I143*1.03","v":0},88,null,null,"Y",null,null,"includes license, USB-cable, Power Supply"]
[null,null,null,2,"E2960B-OC-PWRCRD","POC","POC","Power Cord Option Class",0,0,88,null,null,"Y",null,null,"country selection for all modules - # is contributed from the modules to this Kit"]
[null,null,null,3,"  E2991A-900","PKITCO","PKITCO","POWER CORD - UNITED KINGDOM  ",null,0,88,null,null,"Y"]
[null,null,null,3,"  E2991A-901","PKITCO","PKITCO","POWER CORD - AUSTRALIA AND NEW ZEALAND  ",null,0,88,null,null,"Y"]
[null,null,null,3,"  E2991A-902","PKITCO","PKITCO","POWER CORD - CONTINENTAL EUROPE  ",null,0,88,null,null,"Y"]
[null,null,null,3,"  E2991A-903","PKITCO","PKITCO","POWER CORD - UNITED STATES AND CANADA (120V)  ",null,0,88,null,null,"Y"]
[null,null,null,3,"  E2991A-906","PKITCO","PKITCO","POWER CORD - SWITZERLAND  ",null,0,88,null,null,"Y"]
[null,null,null,3,"  E2991A-912","PKITCO","PKITCO","POWER CORD - DENMARK  ",null,0,88,null,null,"Y"]
[null,null,null,3,"  E2991A-917","PKITCO","PKITCO","POWER CORD - SOUTH AFRICA AND INDIA  ",null,0,88,null,null,"Y"]
[null,null,null,3,"  E2991A-918","PKITCO","PKITCO","POWER CORD - JAPAN  ",null,0,88,null,null,"Y"]
[null,null,null,3,"  E2991A-919","PKITCO","PKITCO","POWER CORD - ISRAEL  ",null,0,88,null,null,"Y"]
[null,null,null,3,"  E2991A-920","PKITCO","PKITCO","POWER CORD - ARGENTINA  ",null,0,88,null,null,"Y"]
[null,null,null,3,"  E2991A-921","PKITCO","PKITCO","POWER CORD - CHILE  ",null,0,88,null,null,"Y"]
[null,null,null,3,"  E2991A-922","PKITCO","PKITCO","POWER CORD - CHINA  ",null,0,88,null,null,"Y"]
[null,null,null,3,"  E2991A-927","PKITCO","PKITCO","POWER CORD - BRAZIL AND THAILAND  ",null,0,88,null,null,"Y"]
[null,null,null,2,"N5323A-ATO","ATO","ATO","Jammer Board for PCIe 5Gb/s",0,0,88,null,null,"Y",null,null,"hint: 2 analyzers needed per License x16"]
[null,null,null,3,"N5323A-CORE","Tangible","Phantom","Core of Exerciser Module for PCIe 5Gb/s",0,0,88,null,null,"Y",null,null,"hint: 2 analyzers needed per License x16"]
[null,null,null,3,"N5323A-OC-LINKWIDTH","AOC","AOC","Option Class Jammer Module Link Width",0,0,88,null,null,"Y"]
[null,null,null,4,"N5323A-J01","FG BOM Config Only","Phantom","Jammer Module x1 for PCIe 5Gb/s",null,{"$f":"'Recommended Config'!H74","v":9442},88,null,null,"Y",null,null,"add one Power Supply 5*5"]
[null,null,null,4,"N5323A-J04","FG BOM Config Only","Phantom","Jammer Module x4 for PCIe 5Gb/s",null,{"$f":"'Recommended Config'!H75","v":28812},88,null,null,"Y",null,null,"add one Power Supply 5*5"]
[null,null,null,4,"N5323A-J08","FG BOM Config Only","Phantom","Jammer Module x8 for PCIe 5Gb/s",null,{"$f":"'Recommended Config'!H76","v":39102},88,null,null,"Y",null,null,"add one Power Supply 5*5"]
[null,null,null,3,"N5323A-OC-EXSW","AOC","AOC","Option Class SW",null,{"$f":"+I164*1.03","v":0},88,null,null,"Y",null,null,"add two Power Supply 5*5"]
[null,null,null,4,"N5323A-JM1","FG BOM Config Only","Phantom","Gen2 Ready Jammer SW License : Jammer at 2.5Gb/s",null,{"$f":"'Recommended Config'!H78","v":17493},88,null,null,"Y",null,null,"add one Power Supply 5*5"]
[null,null,null,4,"N5323A-JM2","FG BOM Config Only","Phantom","Jammer SW License : Jammer at 5 Gb/s",null,{"$f":"'Recommended Config'!H79","v":41160},88,null,null,"Y",null,null,"add one Power Supply 5*5"]
[null,null,null,4,"N5323A-SCR","FG BOM Config Only","Phantom","Jammer SW License : Jammer Scripts",null,{"$f":"'Recommended Config'!H80","v":10310},88,null,null,"Y",null,null,"add one Power Supply 5*5"]
[null,null,null,2,"R1280A",null,null,"Service",null,null,88,null,null,"Y"]
[null,null,null,1,"N5302A","PTO","PTO","2-slot portable chassis",3402,5118,null,null,null,null,null,null,"purchased as it is from DND"]
[null,null,null,2,"N5302A-050","PTO Kit Config Only","PTO Kit Config Only","Chassis to chassis cable for 2 or 4 slot chassis",null,127,88,null,null,"Y"]
[null,null,null,1,"N5302A","PTO","PTO","4-slot chassis",4298,5478,null,null,null,null,null,null,"purchased as it is from DND"]
[null,null,null,2,"N5304A-050","PTO Kit Config Only","PTO Kit Config Only","Chassis to chassis cable for 2 or 4 slot chassis",null,127,88,null,null,"Y"]
["Gen3 Products",null,null,null,null,null,null,null,null,null,88,null,null,"Y"]
["Feb, 2010","Change",null,0,"U4002A","PTO","PTO","Digital Test Console Chassis two slot chassis",null,7500,null,null,null,null,null,null,"Notice name change."]
["Feb, 2010",null,null,1,"U4002A-OC-ACCS","POC","POC","Accessories"]
["Feb, 2010",null,null,2,"U4002A-SFT","PKIT","PKIT","Soft carrying bag for Digital test console two slot chassis",150,156]
["Feb, 2010",null,null,2,"U4002A-PCH","PKIT","PKIT","Accessories pouch kit for Digital test console two slot chassis",null,156]
["Feb, 2010",null,null,1,"U4002A-OC-CABLES","POC","POC","PCIe Cables"]
["Feb, 2010",null,null,2,"U4002A-050","PKIT","PKIT","Chassis to chassis cable for Digital test console(50cm) ",150]
["Feb, 2010",null,null,2,"U4002A-300","PKIT","PKIT","Chassis to chassis cable for Digital test console(3M) ",150]
["Feb, 2010",null,null,2,"U4002A-2MC","PKITCO","PKITCO","PCIe cable (2.0m)",225,250]
["Feb, 2010",null,null,2,"U4002A-5MC","PKITCO","PKITCO","PCIe cable (5.0m)",400,450]
["Feb, 2010",null,null,1,"U4002A-OC-PCADAPTER","POC","POC","Host PC adapter cards"]
["Feb, 2010",null,null,2,"U4002A-EXP","PKITCO","PKITCO","PCI Express cable to express card adapter for laptop connections",null,450]
["Feb, 2010",null,null,2,"U4002A-SLT","PKITCO","PKITCO","PCI Express cable to slot adapter for desktop connections",null,450]
["Feb, 2010",null,null,1,"R1380-BI","POC","POC","Services"]
["Feb, 2010",null,null,1,"R1280A","SPCO","SPCO","Return to Agilent warranty and service plan"]
["Feb, 2010",null,null,1,"U4002A-KIT","PKITCO","PKITCO","Kit-shipping"]
["Feb, 2010",null,null,1,"U4002A-SPS","SPCO","SPCO"]
["On Hold",null,null,null,"U40xxA",null,null,"Controller PC with software installed"]
[null,null,null,null,null,null,null,null,null,null,null,null,null,"Y"]
[null,null,null,0,"U4300A","PTO","PTO","PCI Express Series"]
["to house all service parts for series",null,null,null,"U4300A-REP",null,null,"PCIe Gen 3 Series Service Parts ",null,null,null,null,null,"Y"]
["March, 2010",null,null,0,"U4301A","PTO Model","PTO Model","Analyzer module for PCIe 8Gbps",0,null,88]
["March, 2010",null,null,1,"U4301A-KIT","PTO Kit config","PTO Kit config","Kit-shipping",0,null,88,null,null,"Y"]
["March, 2010",null,null,1,"U4301A-ATO","ATO","ATO","Analyzer module for PCIe 8Gbps",0,null,88,null,null,"Y"]
["March, 2010",null,null,2,"U4301A-CORE","Tangible","Phantom","Core materials",0,null,88,null,null,"Y"]
["March, 2010",null,null,2,"U4301A-OC-LINKWIDTH","AOC","AOC","Analyzer linkwidth options",0,null,88,null,null,"Y"]
["March, 2010",null,null,3,"U4301A-A01","FG BOM Config Only","Phantom","Analyzer linkwidth x1 ",26750,{"$f":"I199*1.032","v":27606},88,null,null,"Y"]
["March, 2010",null,null,3,"U4301A-A04","FG BOM Config Only","Phantom","Analyzer linkwidth x4",33000,{"$f":"I200*1.032","v":34056},88,null,null,"Y"]
["March, 2010",null,null,3,"U4301A-A08","FG BOM Config Only","Phantom","Analyzer linkwidth x8",40650,41950.8,88,null,null,"Y"]
["March, 2010",null,null,3,"U4301A-A16","FG BOM Config Only","Phantom","Analyzer linkwidth x16",37000,38184,null,null,null,null,null,null,"2/17/09 To get bidirectional capability, customer must order qty. 2 each of the U4301A and qty. 2 each of A16 with jumper cable"]
["March, 2010",null,null,2,"U4301A-OC-ANsoftware","AOC","AOC","Analyzer software licences",null,null,88,null,null,"Y",null,null,"1/15/09 Tom said R&D would investigate whether or not they could limit speed in this way, so may not need the ANsoftware option class and its options."]
["July, 2010",null,null,3,"U4301A-AN2","FG BOM Config Only","Phantom","Analyzer software license for PCIe 5Gbps",8000,{"$f":"I204*1.032","v":8256},88,null,null,"Y",null,null,"1/15/09 Renumbering -AN2 for PCI Gen II"]
["March, 2010","New",null,null,"U4301A-v07","FG BOM Config Only","Phantom","Analyzer software license for PCIe 8Gbps, Spec version 0.7 (Available in August, 2010)",15000,15435]
["March, 2010",null,null,3,"U4301A-AN3","FG BOM Config Only","Phantom","Analyzer software license for PCIe 8Gbps (Available in November, 2010)",22500,{"$f":"I206*1.03","v":23175},null,null,null,null,null,null,"1/15/09 Renumbering -AN3 for PCI Gen III"]
["March, 2010",null,null,2,"U4301A-OC-MEMORY","AOC","AOC","Memory depth"]
[null,null,null,null,"U4301A-004","FG BOM Config Only","Phantom","Analyzer software license for trace memory 4GB",-2000,{"$f":"1.03*I208","v":-2060}]
["March, 2010",null,null,3,"U4301A-008","FG BOM Config Only","Phantom","Analyzer software license for trace memory 8GB",0,null,null,null,null,null,null,null,"default in Phase 1, and hidden from configurator","change per exeption meeting"]
["July, 2010",null,null,3,"U4301A-016","FG BOM Config Only","Phantom","Analyzer software license for trace memory 16GB",0]
["Remove","Remove",null,3,"U4301A-032","FG BOM Config Only","Phantom","Analyzer software license for trace memory 32GB",null,null,null,null,null,null,null,null,"1/15/09 remove.  The -032 will not be offered with U4301A."]
["Feburary 2010",null,null,2,"U4301A-OC-DEMO","AOC","AOC","Demo internal use only"]
["Feburary 2010",null,null,3,"U4301A-000","FG BOM Config Only","Phantom","Internal demo option"]
["Feburary 2010",null,null,1,"U4301A-OC-LWKIT","POC","POC","Linkwidth Kit"]
["Feburary 2010",null,null,2,"U4301A-A16-KIT","PKITCO","PKITCO","Kit for x16 for PCIe 8Gbps",null,null,null,null,null,null,null,null,"Config rule when A16 is ordered, then A16-KIT will be picked.  $0 option."]
["July, 2010",null,null,1,"U4301A-OC-ACCS","POC","POC","Accessories"]
["July. 2010",null,null,2,"U4301A-XXX","PKITCO","PKITCO","Loopback test board",null,null,null,null,null,null,null,null,"Config rule when A16 is ordered, then A16-KIT will be picked.  $0 option."]
["July. 2010",null,null,1,"R1380-BI","POC","POC","Services"]
["July. 2010",null,null,1,"R1280A","SPCO","SPCO","Return to Agilent warranty and service plan"]
["July. 2010",null,null,1,"U4301A-SPS","SPCO","SPCO","Post sales support"]
["September, 2009","Remove",null,1,"U4301A-FRMK","PKITCO","PKITCO","Factory refurbished product",null,null,null,null,null,null,null,null,"We are not going to do FRMK, going straight to RSD (RMKT)."]
["March, 2010",null,null,1,"U4301A-ATP01","ATPLT","ATPLT","ATP lead time item for U4301A"]
["March, 2010",null,null,0,"U4301U","PTO Model","PTO Model","Software license upgrades -extensions for Analyzer module for PCIe 8Gbps"]
["March, 2010",null,null,1,"    +  U4301U-KIT","PKITCO","PKITCO","Kit-shipping"]
["March, 2010",null,null,1,"    -  U4301U-ATO","ATO Model","ATO Model","Software license upgrades -extensions for Analyzer module for PCIe 8Gbps"]
["March, 2010",null,null,2,"        +  U4301U-CORE","Tangible","Phantom","Core materials"]
["March, 2010",null,null,2,"        -  U4301U-OC-ANSW","AOC","AOC","Analyzer software licenses"]
["On Hold",null,null,3,"            +  U4301U-AN1","FG BOM Config Only","Phantom","Analyzer software license for PCIe 2.5Gbps",1500,{"$f":"I228*1.032","v":1548}]
["On Hold",null,null,3,"            +  U4301U-AN2","FG BOM Config Only","Phantom","Analyzer software license for PCIe 5Gbps",11000,{"$f":"I229*1.032","v":11352}]
["March, 2010",null,null,null,"U4301U-V10","FG BOM Config Only","Phantom","Analyzer software license upgrade from Spec version 0.7 to Spec version 1.0 for PCIe 8Gbps",5000,5103]
[null,null,null,null,"U4301U-U31",null,null,"Analyzer software upgrade x1 at 5Gbps to x1 at 8Gbps",18100,{"$f":"I231*1.03","v":18643}]
[null,null,null,null,"U4301U-U34",null,null,"Analyzer software upgrade x4 at 5Gbps to x4 at 8Gbps",19400,{"$f":"I232*1.03","v":19982}]
[null,null,null,null,"U4301U-U38",null,null,"Analyzer software upgrade x8 at 5Gbps to x8 at 8Gbps",20400,21012]
[null,null,null,null,"U4301U-U36",null,null,"Analyzer software upgrade x16 at 5Gbps to x16 at 8Gbps (one per module required)",20000,20600]
["On Hold",null,null,2,"    -  U4301U-OC-MEMORY","AOC","AOC","Memory depth"]
["On Hold",null,null,3,"            +  U4301U-016","FG BOM Config Only","Phantom","Analyzer software license for trace memory 16GB"]
["March, 2010",null,null,2,"U4301U-OC-ADDLSW","FG BOM Config Only","AOC","Additional analyzer software licenses",null,null,null,null,null,"Y"]
["March, 2010",null,null,3,"U4301U-GDX","FG BOM Config Only","Phantom","Analyzer software license for GDXC- Intel Only",null,35000,null,null,null,"Y"]
["March, 2010",null,null,3,"U4301U-GDE","FG BOM Config Only","Phantom","Analyzer software license for GDXC - OEM's only",null,45000,null,null,null,"Y"]
["On Hold",null,null,1,"    -  U4301U-OC-ACCS","POC","POC","Accessories"]
["On Hold",null,null,2,"            +  U4301U-XXX","PKITCO","PKITCO","Loopback test board"]
["July, 2009",null,null,1,"U4301U-ATP01","ATPLT","ATPLt","ATP LT item for U4301U"]
["March, 2010",null,null,0,"U4305A","PTO Model","PTO Model","Exerciser module for PCIe 8Gbps",null,null,88]
["March, 2010",null,null,1,"U4305A-KIT","PTO Kit config","PTO Kit config","Kit-shipping",null,null,88,null,null,"Y"]
["March, 2010",null,null,1,"U4305A-ATO","ATO","ATO","Exerciser module for PCIe 8Gbps",null,null,88,null,null,"Y"]
["March, 2010",null,null,2,"U4305A-CORE","Tangible","Phantom","Core materials",null,null,88,null,null,"Y"]
["March, 2010",null,null,2,"U4305A-OC-LINKWIDTH","AOC","AOC","Exerciser module link width",null,null,88,null,null,"Y",null,null,"mandatory,  mutually exclusive"]
["March, 2010",null,null,3,"U4305A-E01","FG BOM Config Only","Phantom","Exerciser board x1 for PCIe 8Gbps",16500,{"$f":"I248*1.032","v":17028},88,null,null,"Y"]
["March, 2010",null,null,3,"U4305A-E04","FG BOM Config Only","Phantom","Exerciser board x4 for PCIe 8Gbps",36750,37926,88,null,null,"Y"]
["March, 2010",null,null,3,"U4305A-E08","FG BOM Config Only","Phantom","Exerciser board x8 for PCIe 8Gbps",52000,53664,88,null,null,"Y"]
["March, 2010",null,null,3,"U4305A-E16","FG BOM Config Only","Phantom","Exerciser board x16 for PCIe 8Gbps",67000,69144,88,null,null,"Y"]
["March, 2010",null,null,2,"U4305A-OC-EXSW","AOC","AOC","Exerciser software licenses",null,null,88,null,null,"Y",null,null,"optional, mutually exclusive"]
["On Hold",null,null,3,"U4305A-EX1","FG BOM Config Only","Phantom","Exerciser software license for PCIe 2.5Gbps",null,null,88,null,null,"Y"]
["On Hold",null,null,3,"U4305A-EX2","FG BOM Config Only","Phantom","Exerciser software license for PCIe 5Gbps",24000,{"$f":"I254*1.032","v":24768},88,null,null,"Y"]
["2010-03-01",null,null,3,"U4305A-EX3","FG BOM Config Only","Phantom","Exerciser software license for PCIe 8Gbps",34500,{"$f":"I255*1.032","v":35604},88,null,null,"Y"]
["On Hold",null,null,2,"U4305A-OC-JMSW","AOC","AOC","Jammer software licenses",null,null,88,null,null,"Y",null,null,"truly optional"]
["On Hold",null,null,3,"U4305A-JM1","FG BOM Config Only","Phantom","Jammer software license for PCIe 2.5Gbps",null,null,88,null,null,"Y",null,null,"JM2, JM5, JM8, are mutually exclusive"]
["On Hold",null,null,3,"U4305A-JM2","FG BOM Config Only","Phantom","Jammer software license for PCIe 5Gbps",null,null,88,null,null,"Y",null,null,"SCR may be ordered with any of them"]
["On Hold",null,null,3,"U4305A-JM3","FG BOM Config Only","Phantom","Jammer software license for PCIe 8Gbps",null,null,88]
["On Hold",null,null,3,"U4305A-SCR","FG BOM Config Only","Phantom","Jammer scripts package",null,null,88]
["March, 2010",null,null,2,"U4305A-OC-AVSW","AOC","AOC","Autumated validation software licenses",null,null,88,null,null,"Y",null,null,"mandatory, not mutually exclusive"]
["March, 2010",null,null,3,"U4305A-LT3","FG BOM Config Only","Phantom","LTSSM software license",16500,{"$f":"I262*1.032","v":17028},88,null,null,null,null,null,"this option is optional"]
["March, 2010",null,null,3,"U4305A-PTC","FG BOM Config Only","Phantom","PTC software license",0,null,88,null,null,"Y",null,null,"this option is mandatory with every model - lets hid from User, as not yet a committed project."]
["On Hold",null,null,3,"U4305A-COM","FG BOM Config Only","Phantom","Compliance assured test package software licenase",null,null,88,null,null,"Y"]
["Feburary 2010",null,null,2,"U4305A-OC-DEMO","AOC","AOC","Demo internal use only",null,null,null,null,null,"Y"]
["Feburary 2010",null,null,3,"U4305A-000","FG BOM Config Only","Phantom","Internal demo option",null,null,null,null,null,"Y"]
["March, 2010",null,null,2,"U4305A-OC-BKPLN","POC","POC","PCIe Gen3 Backplane",0]
["March, 2010",null,null,3,"U4316A","PTO","PTO","Test backplane 3.0 for PCIe 8Gbps",null,6750]
["March, 2010",null,null,2,"U4305A-OC-PWRSPLY","POC","POC","Power supply",0]
["March, 2010",null,null,3,"U4305A-1PS","PTO","PTO","Power supply - 1",0]
["March, 2010",null,null,3,"U4305A-2PS","PTO","PTO","Power supply - 2",0]
["Feburary 2010",null,null,1,"PL1B-OC-PWRCRD4","POC","POC","Power cords for PCI",null,null,88,null,null,"Y",null,null,"same as E2960B-OC-PWRCRD"]
["March, 2010",null,null,1,"    +  U4305A-KIT","PKITCO","PKITCO","Kit - shipping"]
["Feburary 2010",null,null,1,"R1380-BI","POC","POC","Services"]
["Feburary 2010",null,null,1,"R1280A",null,null,"Return to Agilent warranty and service plan",null,null,88,null,null,"Y",null,null,"1, 3, and 5 year"]
["Feburary 2010",null,null,1,"U4305A-SPS","SPCO","SPCO","Post sales support",null,null,null,null,null,"Y"]
["Feburary 2010",null,null,1,"U4305A-ATP01","ATPLT","ATPLT","ATP lead time item for U4305A",null,null,null,null,null,"Y"]
["2009-07-01",null,null,0,"U4305U","PTO Model","PTO Model","Software license upgrades - extensions for Exerciser module for PCIe 8Gbps"]
["2009-07-01",null,null,1,"    -  U4305U-ATO","ATO Model","ATO Model","Software license upgrades - extensions for Exerciser module for PCIe 8Gbps"]
["2009-07-01",null,null,2,"        +  U4305U-CORE","Tangible","Phantom","Core materials"]
["2009-07-01",null,null,2,"        -  U4305U-OC-EXSW","AOC","AOC","Exerciser software licenses"]
["On Hold",null,null,3,"            +  U4305U-EX1","AOC","AOC","Exerciser software license for PCIe 2.5Gbps"]
[null,null,null,null,"U4305U-E23","AOC","AOC","Upgrade for exerciser SW license from 5Gbps to 8Gbps",21000,{"$f":"I283*1.032","v":21672}]
["On Hold",null,null,3,"U4305U-EX2","FG BOM Config Only","Phantom","Exerciser software license for PCIe 5Gbps",25200,26006.400000000001]
["March, 2010",null,null,3,"U4305U-EX3","FG BOM Config Only","Phantom","Exerciser software license for PCIe 8Gbps",34500,35604,null,null,null,null,null,null,"Note the new dates."]
["On Hold",null,null,2,"        -  U4305U-OC-JMSW","AOC","AOC","Jammer software licenses"]
["On Hold",null,null,3,"            +  U4305U-JM1","FG BOM Config Only","Phantom","Jammer software license for PCIe 2.5Gbps"]
["On Hold",null,null,3,"            +  U4305U-JM2","FG BOM Config Only","Phantom","Jammer software license for PCIe 5Gbps"]
["On Hold",null,null,3,"            +  U4305U-JM3","FG BOM Config Only","Phantom","Jammer software license for PCIe 8Gbps"]
["On Hold",null,null,3,"            +  U4305U-SCR","FG BOM Config Only","Phantom","Jammer software license: Script package"]
["March, 2010",null,null,2,"        -  U4305U-OC-AVSW","AOC","AOC","Automated validation software licenses"]
["March, 2010",null,null,3,"U4305U-LT3","FG BOM Config Only","Phantom","LTSSM software license",16500,{"$f":"I292*1.032","v":17028}]
["On Hold",null,null,3,"U4305U-COM","FG BOM Config Only","Phantom","Compliance assured test package software licenase"]
["March, 2010",null,null,1,"    +  U4305U-KIT","PKITCO","PKITCO","Kit - shipping"]
["March, 2010",null,null,1,"U4305U-ATP01","ATPLT","ATPLT","ATP LT item for U4305U"]
["July. 2010",null,null,0,"U4316A","PTO Model","PTO Model","Test backplane 3.0 for PCIe 8Gbps",null,6750,88,null,null,"Y"]
["July. 2010",null,null,1,"U4316A-FG","Finished good","Assembly","Test backplane 3.0 for PCIe 8Gbps",null,null,88,null,null,"Y"]
["July. 2010",null,null,1,"PL1B-OC-PWRCRD4","POC","POC","Power cords for PCI",null,null,88,null,null,"Y",null,null,"same as E2960B-OC-PWRCRD"]
["July. 2010",null,null,1,"U4316A-KIT","PKITCO","PKITCO","Kit-shipping",null,null,88,null,null,"Y"]
["July. 2010",null,null,1,"R1280A",null,null,"Return to Agilent warranty and service plan",null,null,88,null,null,"Y",null,null,"1, 3, and 5 year warranty"]
["July. 2010",null,null,1,"U4316A-SPS","SPCO","SPCO","Post sales support",null,null,null,null,null,"Y"]
["July. 2010",null,null,0,"U4317A","PTO Model","PTO Model","Gen2 probe to Gen3 Analyzer Adapter",5000,{"$f":"I302*1.032","v":5160},88,null,null,"Y"]
["July. 2010",null,null,1,"U4317A-KIT","PKITCO","PKITCO","Kit-shipping",null,null,88,null,null,"Y"]
["July. 2010",null,null,1,"U4317A-SPS","SPCO","SPCO","Post sales support",null,null,null,null,null,"Y"]
["July. 2010",null,null,1,"U4317A-ATP01","ATPLT","ATPLT","ATP Lead Time item for U4317A",null,null,null,null,null,"Y"]
["March, 2010",null,null,0,"U4321A","PTO Model","PTO Model","Slot interposer 3.0 for PCIe 8 Gbps",null,null,88,null,null,"Y"]
["March, 2010",null,null,1,"U4321A-OC-LINKWIDTH","POC","POC","Slot interposer 3.0  link width",0,null,88,null,null,"Y"]
["March, 2010",null,null,2,"U4321A-A01","Finished good","PKITCO","Slot interposer 3.0 for PCIe 8Gbps x1",11000,{"$f":"I308*1.032","v":11352},88,null,null,"Y",null,null,"add one Power Supply 5*5"]
["March, 2010",null,null,2,"U4321A-A04","Finished good","PKITCO","Slot interposer 3.0 for PCIe 8Gbps x4",14500,14964,88,null,null,"Y",null,null,"add one Power Supply 5*5"]
["March, 2010",null,null,2,"U4321A-A08","Finished good","PKITCO","Slot interposer 3.0 for PCIe 8Gbps x8",16500,17028,88,null,null,"Y",null,null,"add one Power Supply 5*5"]
["March, 2010",null,null,2,"U4321A-A16","Finished good","PKITCO","Slot interposer 3.0 for PCIe 8Gbps x16",19300,19917.600000000002,88,null,null,"Y",null,null,"add two Power Supply 5*5"]
["March, 2010",null,null,1,"U4321A-KIT","PTO Kit Config Only","PTO Kit Config Only","Kit-shipping",null,null,88,null,null,"Y"]
["March, 2010",null,null,1,"PL1B-OC-PWRCRD4","POC","POC","Power cords for PCI",null,null,null,null,null,"Y"]
["March, 2010",null,null,1,"R1280A",null,null,"Return-to-Agilent - warranty and service plan",null,null,88,null,null,"Y"]
["March, 2010",null,null,1,"U4321A-SPS","SPCO","SPCO","Post sales support",null,null,null,null,null,"Y"]
["March, 2010",null,null,1,"U4321A-ATP01","ATPLT","ATPLT","ATP lead time item for U4321A",null,null,null,null,null,"Y"]
["March, 2010",null,null,0,"U4322A","PTO Model","PTO Model","Mid-bus probe 3.0 for PCIe 8Gbps (bi-directional x8)",26000,{"$f":"I317*1.032","v":26832},88,null,null,"Y",null,null,"set up and designed by PL 1B"]
["March, 2010",null,null,1,"U4322A-FG","Finished good","Assembly","Mid-bus probe 3.0 for PCIe 8Gbps (bi-directional x8)",null,null,88,null,null,"Y",null,null,"hint: 2 analyzers needed per License x16"]
["March, 2010",null,null,1,"U4322A-KIT","PKITCO","PKITCO","Kit-shipping",null,null,88,null,null,"Y",null,null,"hint: 2 analyzers needed per License x16"]
["March, 2010",null,null,1,"R-51B-001-C",null,null,"1 year warranty",null,null,88,null,null,"Y"]
["March, 2010",null,null,1,"U4322A-SPS","SPCO","SPCO","Post sales support",null,null,null,null,null,"Y"]
["On Hold",null,null,0,"U4322F","PTO Model","PTO Model","Flying lead probe for PCIe 8Gbps (bi-directional x8 )",null,null,88,null,null,"Y",null,null,"set up and designed by PL 1B"]
["On Hold",null,null,1,"U4322F-FG","Finished good","Assembly","Flying lead probe for PCIe 8Gbps (bi-directional x8 )",null,null,88,null,null,"Y",null,null,"hint: 2 analyzers needed per License x16"]
["On Hold",null,null,1,"U4322F-KIT","PKITCO","PKITCO","Kit-shipping",null,null,88,null,null,"Y",null,null,"hint: 2 analyzers needed per License x16"]
["On Hold",null,null,1,"R-51B-001-C",null,null,"1 year warranty",null,null,88,null,null,"Y"]
["On Hold",null,null,1,"U4322F-SPS","SPCO","SPCO","Post sales support",null,null,null,null,null,"Y"]
["On Hold","Change",null,0,"U4323A","PTO Model","PTO Model","Half-size mid-bus probe 3.0 for PCIe 8Gbps (bi-directional x4)","TBD",null,88,null,null,"Y",null,null,"set up and designed by PL 1B"]
["On Hold","Change",null,1,"U4323A-FG","Finished good","Assembly","Half-size mid-bus probe 3.0 for PCIe 8Gbps (bi-directional x4)",0,null,88,null,null,"Y",null,null,"hint: 2 analyzers needed per License x16"]
["On Hold","Change",null,1,"U4323A-KIT","PKITCO","PKITCO","Kit-shipping",0,null,88,null,null,"Y",null,null,"hint: 2 analyzers needed per License x16"]
["On Hold","Change",null,1,"R-51B-001-C",null,null,"1 year warranty",null,null,88,null,null,"Y"]
["On Hold","Change",null,1,"U4323A-SPS","SPCO","SPCO","Post sales support",null,null,null,null,null,"Y"]

{"sheet":"Gen2 Ready Program","index":4,"n_rows":59,"n_cols":14,"rows_kept":59,"cut":false,"hidden":true,"merged":[]}
["The Gen2 Ready Program gives our customer the ability to purchase hardware that is capable of going to Gen2 (5.0 Gb/s), but licensed at Gen1, and at a Gen1 price. "]
["This gives the customer an flexible upgrade path to Gen2 speeds at a later date."]
["For more information on Gen2Ready program, look at publication : 5990-3159EN.pdf"]
[]
[]
["Analyzer"]
[]
["Link"]
[null,"Gen1 Only",null,null,"Gen2 Ready Configuration",null,null,"Upgrade to Gen2","Gen2 Configuration",null,null,"Gen2 Ready Configuration - with Gen1 Probes"]
["x1",null,null,{"$f":"SUM(D11:D14)","v":16598},null,null,{"$f":"SUM(G11:G14)","v":20669},42117,null,null,{"$f":"SUM(K11:K14)","v":58550},null,null,{"$f":"SUM(N11:N15)","v":15994}]
[null,"E2960A-A01","Protocol Analyzer for PCI Express x1",16598,"N5306A",{"$f":"VLOOKUP(E11,'Detailed Product Structure'!$E$10:$J$171,4,FALSE)","v":"Analyzer Module for PCIe 5Gb/s (requires 2 for x 16)"},{"$f":"VLOOKUP(E11,'Detailed Product Structure'!$E$10:$J$171,6,FALSE)","v":30300},"N5310U-U21","N5306A",{"$f":"VLOOKUP(I11,'Detailed Product Structure'!$E$10:$J$171,4,FALSE)","v":"Analyzer Module for PCIe 5Gb/s (requires 2 for x 16)"},{"$f":"VLOOKUP(I11,'Detailed Product Structure'!$E$10:$J$171,6,FALSE)","v":30300},"N5306A",{"$f":"VLOOKUP(L11,'Detailed Product Structure'!$E$10:$J$171,4,FALSE)","v":"Analyzer Module for PCIe 5Gb/s (requires 2 for x 16)"},{"$f":"VLOOKUP(L11,'Detailed Product Structure'!$E$10:$J$171,6,FALSE)","v":30300}]
[null,null,null,null,"N5306A-G01",{"$f":"VLOOKUP(E12,'Detailed Product Structure'!$E$10:$J$171,4,FALSE)","v":"Analyzer SW License x1 for PCIe 2.5 Gb/s"},{"$f":"VLOOKUP(E12,'Detailed Product Structure'!$E$10:$J$171,6,FALSE)","v":-24886},{"$f":"(G10+H10)/K10-1","v":7.2348420153714788E-2},"N5306A-A01",{"$f":"VLOOKUP(I12,'Detailed Product Structure'!$E$10:$J$171,4,FALSE)","v":"Analyzer SW License x1 for PCIe 5Gb/s"},{"$f":"VLOOKUP(I12,'Detailed Product Structure'!$E$10:$J$171,6,FALSE)","v":12995},"N5306A-G01",{"$f":"VLOOKUP(L12,'Detailed Product Structure'!$E$10:$J$171,4,FALSE)","v":"Analyzer SW License x1 for PCIe 2.5 Gb/s"},{"$f":"VLOOKUP(L12,'Detailed Product Structure'!$E$10:$J$171,6,FALSE)","v":-24886}]
[null,null,null,null,"N5315A-A01",{"$f":"VLOOKUP(E13,'Detailed Product Structure'!$E$10:$J$171,4,FALSE)","v":"Slot Interposer x1 for PCIe 5Gb/s"},{"$f":"VLOOKUP(E13,'Detailed Product Structure'!$E$10:$J$171,6,FALSE)","v":10137},null,"N5315A-A01",{"$f":"VLOOKUP(I13,'Detailed Product Structure'!$E$10:$J$171,4,FALSE)","v":"Slot Interposer x1 for PCIe 5Gb/s"},{"$f":"VLOOKUP(I13,'Detailed Product Structure'!$E$10:$J$171,6,FALSE)","v":10137},"E2945A","Passive x1 probe for Gen1 Only",2754]
[null,null,null,null,"N5302A",{"$f":"VLOOKUP(E14,'Detailed Product Structure'!$E$10:$J$171,4,FALSE)","v":"2-slot portable chassis"},{"$f":"VLOOKUP(E14,'Detailed Product Structure'!$E$10:$J$171,6,FALSE)","v":5118},null,"N5302A",{"$f":"VLOOKUP(I14,'Detailed Product Structure'!$E$10:$J$171,4,FALSE)","v":"2-slot portable chassis"},{"$f":"VLOOKUP(I14,'Detailed Product Structure'!$E$10:$J$171,6,FALSE)","v":5118},"N5302A",{"$f":"VLOOKUP(L14,'Detailed Product Structure'!$E$10:$J$171,4,FALSE)","v":"2-slot portable chassis"},{"$f":"VLOOKUP(L14,'Detailed Product Structure'!$E$10:$J$171,6,FALSE)","v":5118}]
[null,null,null,null,null,null,null,null,null,null,null,"N5317A",{"$f":"VLOOKUP(L15,'Detailed Product Structure'!$E$10:$J$171,4,FALSE)","v":"Cable to connect E2960A probe to E2960B series"},{"$f":"VLOOKUP(L15,'Detailed Product Structure'!$E$10:$J$171,6,FALSE)","v":2708}]
["x4",null,null,{"$f":"SUM(D17:D21)","v":20748},null,null,{"$f":"SUM(G17:G21)","v":28366},47396,null,null,{"$f":"SUM(K17:K21)","v":66892},null,null,{"$f":"SUM(N17:N21)","v":21617}]
[null,"E2960A-A04","Protocol Analyzer for PCI Express x4",20748,"N5306A",{"$f":"VLOOKUP(E17,'Detailed Product Structure'!$E$10:$J$171,4,FALSE)","v":"Analyzer Module for PCIe 5Gb/s (requires 2 for x 16)"},{"$f":"VLOOKUP(E17,'Detailed Product Structure'!$E$10:$J$171,6,FALSE)","v":30300},"N5310U-U24","N5306A",{"$f":"VLOOKUP(I17,'Detailed Product Structure'!$E$10:$J$171,4,FALSE)","v":"Analyzer Module for PCIe 5Gb/s (requires 2 for x 16)"},{"$f":"VLOOKUP(I17,'Detailed Product Structure'!$E$10:$J$171,6,FALSE)","v":30300},"N5306A",{"$f":"VLOOKUP(L17,'Detailed Product Structure'!$E$10:$J$171,4,FALSE)","v":"Analyzer Module for PCIe 5Gb/s (requires 2 for x 16)"},{"$f":"VLOOKUP(L17,'Detailed Product Structure'!$E$10:$J$171,6,FALSE)","v":30300}]
[null,null,null,null,"N5306A-G04",{"$f":"VLOOKUP(E18,'Detailed Product Structure'!$E$10:$J$171,4,FALSE)","v":"Analyzer SW License x4 for PCIe 2.5 Gb/s"},{"$f":"VLOOKUP(E18,'Detailed Product Structure'!$E$10:$J$171,6,FALSE)","v":-19416},{"$f":"(G16+H16)/K16-1","v":0.13260180589607118},"N5306A-A04",{"$f":"VLOOKUP(I18,'Detailed Product Structure'!$E$10:$J$171,4,FALSE)","v":"Analyzer SW License x4 for PCIe 5Gb/s"},{"$f":"VLOOKUP(I18,'Detailed Product Structure'!$E$10:$J$171,6,FALSE)","v":19110},"N5306A-G04",{"$f":"VLOOKUP(L18,'Detailed Product Structure'!$E$10:$J$171,4,FALSE)","v":"Analyzer SW License x4 for PCIe 2.5 Gb/s"},{"$f":"VLOOKUP(L18,'Detailed Product Structure'!$E$10:$J$171,6,FALSE)","v":-19416}]
[null,null,null,null,"N5315A-A04",{"$f":"VLOOKUP(E19,'Detailed Product Structure'!$E$10:$J$171,4,FALSE)","v":"Slot Interposer x4 for PCIe 5Gb/s"},{"$f":"VLOOKUP(E19,'Detailed Product Structure'!$E$10:$J$171,6,FALSE)","v":12364},null,"N5315A-A04",{"$f":"VLOOKUP(I19,'Detailed Product Structure'!$E$10:$J$171,4,FALSE)","v":"Slot Interposer x4 for PCIe 5Gb/s"},{"$f":"VLOOKUP(I19,'Detailed Product Structure'!$E$10:$J$171,6,FALSE)","v":12364},"E2946A","Passive x4 probe for Gen1 Only",2907]
[null,null,null,null,null,null,null,null,null,null,null,"N5317A",{"$f":"VLOOKUP(L20,'Detailed Product Structure'!$E$10:$J$171,4,FALSE)","v":"Cable to connect E2960A probe to E2960B series"},{"$f":"VLOOKUP(L20,'Detailed Product Structure'!$E$10:$J$171,6,FALSE)","v":2708}]
[null,null,null,null,"N5302A",{"$f":"VLOOKUP(E21,'Detailed Product Structure'!$E$10:$J$171,4,FALSE)","v":"2-slot portable chassis"},{"$f":"VLOOKUP(E21,'Detailed Product Structure'!$E$10:$J$171,6,FALSE)","v":5118},null,"N5302A",{"$f":"VLOOKUP(I21,'Detailed Product Structure'!$E$10:$J$171,4,FALSE)","v":"2-slot portable chassis"},{"$f":"VLOOKUP(I21,'Detailed Product Structure'!$E$10:$J$171,6,FALSE)","v":5118},"N5302A",{"$f":"VLOOKUP(L21,'Detailed Product Structure'!$E$10:$J$171,4,FALSE)","v":"2-slot portable chassis"},{"$f":"VLOOKUP(L21,'Detailed Product Structure'!$E$10:$J$171,6,FALSE)","v":5118}]
["x8",null,null,{"$f":"SUM(D23:D27)","v":41509},null,null,{"$f":"SUM(G23:G27)","v":50210},36039,null,null,{"$f":"SUM(K23:K27)","v":75474},null,null,{"$f":"SUM(N23:N27)","v":41314}]
[null,"E2960A-A08","Protocol Analyzer for PCI Express x8",41509,"N5306A",{"$f":"VLOOKUP(E23,'Detailed Product Structure'!$E$10:$J$171,4,FALSE)","v":"Analyzer Module for PCIe 5Gb/s (requires 2 for x 16)"},{"$f":"VLOOKUP(E23,'Detailed Product Structure'!$E$10:$J$171,6,FALSE)","v":30300},"N5310U-U28","N5306A",{"$f":"VLOOKUP(I23,'Detailed Product Structure'!$E$10:$J$171,4,FALSE)","v":"Analyzer Module for PCIe 5Gb/s (requires 2 for x 16)"},{"$f":"VLOOKUP(I23,'Detailed Product Structure'!$E$10:$J$171,6,FALSE)","v":30300},"N5306A",{"$f":"VLOOKUP(L23,'Detailed Product Structure'!$E$10:$J$171,4,FALSE)","v":"Analyzer Module for PCIe 5Gb/s (requires 2 for x 16)"},{"$f":"VLOOKUP(L23,'Detailed Product Structure'!$E$10:$J$171,6,FALSE)","v":30300}]
[null,null,null,null,"N5306A-G08",{"$f":"VLOOKUP(E24,'Detailed Product Structure'!$E$10:$J$171,4,FALSE)","v":"Analyzer SW License x8 for PCIe 2.5 Gb/s"},{"$f":"VLOOKUP(E24,'Detailed Product Structure'!$E$10:$J$171,6,FALSE)","v":179},{"$f":"(G22+H22)/K22-1","v":0.14276439568593169},"N5306A-A08",{"$f":"VLOOKUP(I24,'Detailed Product Structure'!$E$10:$J$171,4,FALSE)","v":"Analyzer SW License x8 for PCIe 5Gb/s"},{"$f":"VLOOKUP(I24,'Detailed Product Structure'!$E$10:$J$171,6,FALSE)","v":25443},"N5306A-G08",{"$f":"VLOOKUP(L24,'Detailed Product Structure'!$E$10:$J$171,4,FALSE)","v":"Analyzer SW License x8 for PCIe 2.5 Gb/s"},{"$f":"VLOOKUP(L24,'Detailed Product Structure'!$E$10:$J$171,6,FALSE)","v":179}]
[null,null,null,null,"N5315A-A08",{"$f":"VLOOKUP(E25,'Detailed Product Structure'!$E$10:$J$171,4,FALSE)","v":"Slot Interposer x8 for PCIe 5Gb/s"},{"$f":"VLOOKUP(E25,'Detailed Product Structure'!$E$10:$J$171,6,FALSE)","v":14613},null,"N5315A-A08",{"$f":"VLOOKUP(I25,'Detailed Product Structure'!$E$10:$J$171,4,FALSE)","v":"Slot Interposer x8 for PCIe 5Gb/s"},{"$f":"VLOOKUP(I25,'Detailed Product Structure'!$E$10:$J$171,6,FALSE)","v":14613},"E2947A","Passive x8 probe for Gen1 Only",3009]
[null,null,null,null,null,null,null,null,null,null,null,"N5317A",{"$f":"VLOOKUP(L26,'Detailed Product Structure'!$E$10:$J$171,4,FALSE)","v":"Cable to connect E2960A probe to E2960B series"},{"$f":"VLOOKUP(L26,'Detailed Product Structure'!$E$10:$J$171,6,FALSE)","v":2708}]
[null,null,null,null,"N5302A",{"$f":"VLOOKUP(E27,'Detailed Product Structure'!$E$10:$J$171,4,FALSE)","v":"2-slot portable chassis"},{"$f":"VLOOKUP(E27,'Detailed Product Structure'!$E$10:$J$171,6,FALSE)","v":5118},null,"N5302A",{"$f":"VLOOKUP(I27,'Detailed Product Structure'!$E$10:$J$171,4,FALSE)","v":"2-slot portable chassis"},{"$f":"VLOOKUP(I27,'Detailed Product Structure'!$E$10:$J$171,6,FALSE)","v":5118},"N5302A",{"$f":"VLOOKUP(L27,'Detailed Product Structure'!$E$10:$J$171,4,FALSE)","v":"2-slot portable chassis"},{"$f":"VLOOKUP(L27,'Detailed Product Structure'!$E$10:$J$171,6,FALSE)","v":5118}]
["x16",null,null,{"$f":"SUM(D29:D35)","v":74794},null,null,{"$f":"SUM(G29:G35)","v":65301},{"$f":"VLOOKUP(H29, 'Detailed Product Structure'!E24:J176, 6,FALSE)","v":36019},null,null,{"$f":"SUM(K29:K33)","v":120921},null,null,{"$f":"SUM(N29:N35)","v":65301}]
[null,"E2960A-A16","Protocol Analyzer for PCI Express x16",74794,"N5306A",{"$f":"VLOOKUP(E29,'Detailed Product Structure'!$E$10:$J$171,4,FALSE)","v":"Analyzer Module for PCIe 5Gb/s (requires 2 for x 16)"},{"$f":"VLOOKUP(E29,'Detailed Product Structure'!$E$10:$J$171,6,FALSE)","v":30300},"N5310U-U26","N5306A",{"$f":"VLOOKUP(I29,'Detailed Product Structure'!$E$10:$J$171,4,FALSE)","v":"Analyzer Module for PCIe 5Gb/s (requires 2 for x 16)"},{"$f":"VLOOKUP(I29,'Detailed Product Structure'!$E$10:$J$171,6,FALSE)","v":30300},"N5306A",{"$f":"VLOOKUP(L29,'Detailed Product Structure'!$E$10:$J$171,4,FALSE)","v":"Analyzer Module for PCIe 5Gb/s (requires 2 for x 16)"},{"$f":"VLOOKUP(L29,'Detailed Product Structure'!$E$10:$J$171,6,FALSE)","v":30300}]
[null,null,null,null,"N5306A",{"$f":"VLOOKUP(E30,'Detailed Product Structure'!$E$10:$J$171,4,FALSE)","v":"Analyzer Module for PCIe 5Gb/s (requires 2 for x 16)"},{"$f":"VLOOKUP(E30,'Detailed Product Structure'!$E$10:$J$171,6,FALSE)","v":30300},{"$f":"(G28+H28)/K28-1","v":-0.16209756783354423},"N5306A",{"$f":"VLOOKUP(I30,'Detailed Product Structure'!$E$10:$J$171,4,FALSE)","v":"Analyzer Module for PCIe 5Gb/s (requires 2 for x 16)"},{"$f":"VLOOKUP(I30,'Detailed Product Structure'!$E$10:$J$171,6,FALSE)","v":30300},"N5306A",{"$f":"VLOOKUP(L30,'Detailed Product Structure'!$E$10:$J$171,4,FALSE)","v":"Analyzer Module for PCIe 5Gb/s (requires 2 for x 16)"},{"$f":"VLOOKUP(L30,'Detailed Product Structure'!$E$10:$J$171,6,FALSE)","v":30300}]
[null,null,null,null,"N5306A-G16",{"$f":"VLOOKUP(E31,'Detailed Product Structure'!$E$10:$J$171,4,FALSE)","v":"Analyzer SW License x16 for PCIe 2.5Gb/s"},{"$f":"VLOOKUP(E31,'Detailed Product Structure'!$E$10:$J$171,6,FALSE)","v":-8639},null,"N5306A-A16",{"$f":"VLOOKUP(I31,'Detailed Product Structure'!$E$10:$J$171,4,FALSE)","v":"Analyzer SW License x16 for PCIe 5Gb/s"},{"$f":"VLOOKUP(I31,'Detailed Product Structure'!$E$10:$J$171,6,FALSE)","v":21730},"N5306A-G16",{"$f":"VLOOKUP(L31,'Detailed Product Structure'!$E$10:$J$171,4,FALSE)","v":"Analyzer SW License x16 for PCIe 2.5Gb/s"},{"$f":"VLOOKUP(L31,'Detailed Product Structure'!$E$10:$J$171,6,FALSE)","v":-8639}]
[null,null,null,null,"N5306A-G16",{"$f":"VLOOKUP(E32,'Detailed Product Structure'!$E$10:$J$171,4,FALSE)","v":"Analyzer SW License x16 for PCIe 2.5Gb/s"},{"$f":"VLOOKUP(E32,'Detailed Product Structure'!$E$10:$J$171,6,FALSE)","v":-8639},null,"N5306A-A16",{"$f":"VLOOKUP(I32,'Detailed Product Structure'!$E$10:$J$171,4,FALSE)","v":"Analyzer SW License x16 for PCIe 5Gb/s"},{"$f":"VLOOKUP(I32,'Detailed Product Structure'!$E$10:$J$171,6,FALSE)","v":21730},"N5306A-G16",{"$f":"VLOOKUP(L32,'Detailed Product Structure'!$E$10:$J$171,4,FALSE)","v":"Analyzer SW License x16 for PCIe 2.5Gb/s"},{"$f":"VLOOKUP(L32,'Detailed Product Structure'!$E$10:$J$171,6,FALSE)","v":-8639}]
[null,null,null,null,"N5315A-A16",{"$f":"VLOOKUP(E33,'Detailed Product Structure'!$E$10:$J$171,4,FALSE)","v":"Slot Interposer x16 for PCIe 5Gb/s"},{"$f":"VLOOKUP(E33,'Detailed Product Structure'!$E$10:$J$171,6,FALSE)","v":16861},null,"N5315A-A16",{"$f":"VLOOKUP(I33,'Detailed Product Structure'!$E$10:$J$171,4,FALSE)","v":"Slot Interposer x16 for PCIe 5Gb/s"},{"$f":"VLOOKUP(I33,'Detailed Product Structure'!$E$10:$J$171,6,FALSE)","v":16861},"N5315A-A16",{"$f":"VLOOKUP(L33,'Detailed Product Structure'!$E$10:$J$171,4,FALSE)","v":"Slot Interposer x16 for PCIe 5Gb/s"},{"$f":"VLOOKUP(L33,'Detailed Product Structure'!$E$10:$J$171,6,FALSE)","v":16861}]
[]
[null,null,null,null,"N5302A",{"$f":"VLOOKUP(E35,'Detailed Product Structure'!$E$10:$J$171,4,FALSE)","v":"2-slot portable chassis"},{"$f":"VLOOKUP(E35,'Detailed Product Structure'!$E$10:$J$171,6,FALSE)","v":5118},null,"N5302A",{"$f":"VLOOKUP(I35,'Detailed Product Structure'!$E$10:$J$171,4,FALSE)","v":"2-slot portable chassis"},{"$f":"VLOOKUP(I35,'Detailed Product Structure'!$E$10:$J$171,6,FALSE)","v":5118},"N5302A",{"$f":"VLOOKUP(L35,'Detailed Product Structure'!$E$10:$J$171,4,FALSE)","v":"2-slot portable chassis"},{"$f":"VLOOKUP(L35,'Detailed Product Structure'!$E$10:$J$171,6,FALSE)","v":5118}]
[]
[]
["Exerciser"]
[]
["Link"]
[null,"Gen1 ",null,null,"Gen2 Ready Configuration",null,null,"Upgrade to Gen2","Gen2"]
["x1",null,null,{"$f":"SUM(D43:D46)","v":38958},null,null,{"$f":"SUM(G43:G44)","v":37287},{"$f":"VLOOKUP(H43,'Detailed Product Structure'!$E$10:$J$171,6,FALSE)","v":25694},null,null,{"$f":"SUM(K43:K44)","v":58212}]
[null,"E2960A-E01","Protocol Exerciser For PCI Expres x1",38958,"N5309A-E01",{"$f":"VLOOKUP(E43,'Detailed Product Structure'!$E$10:$J$171,4,FALSE)","v":"Exerciser for PCIe 5Gb/s"},{"$f":"VLOOKUP(E43,'Detailed Product Structure'!$E$10:$J$171,6,FALSE)","v":9158},"N5310U-E12","N5309A-E01",{"$f":"VLOOKUP(I43,'Detailed Product Structure'!$E$10:$J$171,4,FALSE)","v":"Exerciser for PCIe 5Gb/s"},{"$f":"VLOOKUP(I43,'Detailed Product Structure'!$E$10:$J$171,6,FALSE)","v":9158}]
[null,null,null,null,"N5309A-EX1",{"$f":"VLOOKUP(E44,'Detailed Product Structure'!$E$10:$J$171,4,FALSE)","v":"Exerciser SW License and LTSSM for PCIe 2.5Gb/s"},{"$f":"VLOOKUP(E44,'Detailed Product Structure'!$E$10:$J$171,6,FALSE)","v":28129},null,"N5309A-EX2",{"$f":"VLOOKUP(I44,'Detailed Product Structure'!$E$10:$J$171,4,FALSE)","v":"Exerciser SW License and LTSSM for PCIe 5Gb/s"},{"$f":"VLOOKUP(I44,'Detailed Product Structure'!$E$10:$J$171,6,FALSE)","v":49054}]
[]
[]
["x4",null,null,{"$f":"SUM(D48:D51)","v":46136},null,null,{"$f":"SUM(G48:G49)","v":49355},{"$f":"VLOOKUP(H48,'Detailed Product Structure'!$E$10:$J$171,6,FALSE)","v":25694},null,null,{"$f":"SUM(K48:K49)","v":70280}]
[null,"E2960A-E04","Protocol Exerciser For PCI Expres x4",46136,"N5309A-E04",{"$f":"VLOOKUP(E48,'Detailed Product Structure'!$E$10:$J$171,4,FALSE)","v":"Half Sized Exerciser and LTSSM Board x4 for PCIe 5Gb/s"},{"$f":"VLOOKUP(E48,'Detailed Product Structure'!$E$10:$J$171,6,FALSE)","v":21226},"N5310U-E12","N5309A-E04",{"$f":"VLOOKUP(I48,'Detailed Product Structure'!$E$10:$J$171,4,FALSE)","v":"Half Sized Exerciser and LTSSM Board x4 for PCIe 5Gb/s"},{"$f":"VLOOKUP(I48,'Detailed Product Structure'!$E$10:$J$171,6,FALSE)","v":21226}]
[null,null,null,null,"N5309A-EX1",{"$f":"VLOOKUP(E49,'Detailed Product Structure'!$E$10:$J$171,4,FALSE)","v":"Exerciser SW License and LTSSM for PCIe 2.5Gb/s"},{"$f":"VLOOKUP(E49,'Detailed Product Structure'!$E$10:$J$171,6,FALSE)","v":28129},null,"N5309A-EX2",{"$f":"VLOOKUP(I49,'Detailed Product Structure'!$E$10:$J$171,4,FALSE)","v":"Exerciser SW License and LTSSM for PCIe 5Gb/s"},{"$f":"VLOOKUP(I49,'Detailed Product Structure'!$E$10:$J$171,6,FALSE)","v":49054}]
[]
[]
["x8",null,null,{"$f":"SUM(D53:D56)","v":67458},null,null,{"$f":"SUM(G53:G54)","v":60389},{"$f":"VLOOKUP(H53,'Detailed Product Structure'!$E$10:$J$171,6,FALSE)","v":25694},null,null,{"$f":"SUM(K53:K54)","v":81314}]
[null,"E2960A-E08","Protocol Exerciser For PCI Expres x8",67458,"N5309A-E08",{"$f":"VLOOKUP(E53,'Detailed Product Structure'!$E$10:$J$171,4,FALSE)","v":"Half Sized Exerciser and LTSSM Board x8 for PCIe 5Gb/s"},{"$f":"VLOOKUP(E53,'Detailed Product Structure'!$E$10:$J$171,6,FALSE)","v":32260},"N5310U-E12","N5309A-E08",{"$f":"VLOOKUP(I53,'Detailed Product Structure'!$E$10:$J$171,4,FALSE)","v":"Half Sized Exerciser and LTSSM Board x8 for PCIe 5Gb/s"},{"$f":"VLOOKUP(I53,'Detailed Product Structure'!$E$10:$J$171,6,FALSE)","v":32260}]
[null,null,null,null,"N5309A-EX1",{"$f":"VLOOKUP(E54,'Detailed Product Structure'!$E$10:$J$171,4,FALSE)","v":"Exerciser SW License and LTSSM for PCIe 2.5Gb/s"},{"$f":"VLOOKUP(E54,'Detailed Product Structure'!$E$10:$J$171,6,FALSE)","v":28129},null,"N5309A-EX2",{"$f":"VLOOKUP(I54,'Detailed Product Structure'!$E$10:$J$171,4,FALSE)","v":"Exerciser SW License and LTSSM for PCIe 5Gb/s"},{"$f":"VLOOKUP(I54,'Detailed Product Structure'!$E$10:$J$171,6,FALSE)","v":49054}]
[]
[]
["x16",null,null,null,null,null,{"$f":"SUM(G58:G59)","v":71620},{"$f":"VLOOKUP(H58,'Detailed Product Structure'!$E$10:$J$171,6,FALSE)","v":25694},null,null,{"$f":"SUM(K58:K59)","v":92545}]
[null,null,null,null,"N5309A-E16",{"$f":"VLOOKUP(E58,'Detailed Product Structure'!$E$10:$J$171,4,FALSE)","v":"Half Sized Exerciser and LTSSM Board x16 for PCIe 5Gb/s"},{"$f":"VLOOKUP(E58,'Detailed Product Structure'!$E$10:$J$171,6,FALSE)","v":43491},"N5310U-E12","N5309A-E16",{"$f":"VLOOKUP(I58,'Detailed Product Structure'!$E$10:$J$171,4,FALSE)","v":"Half Sized Exerciser and LTSSM Board x16 for PCIe 5Gb/s"},{"$f":"VLOOKUP(I58,'Detailed Product Structure'!$E$10:$J$171,6,FALSE)","v":43491}]
[null,null,null,null,"N5309A-EX1",{"$f":"VLOOKUP(E59,'Detailed Product Structure'!$E$10:$J$171,4,FALSE)","v":"Exerciser SW License and LTSSM for PCIe 2.5Gb/s"},{"$f":"VLOOKUP(E59,'Detailed Product Structure'!$E$10:$J$171,6,FALSE)","v":28129},null,"N5309A-EX2",{"$f":"VLOOKUP(I59,'Detailed Product Structure'!$E$10:$J$171,4,FALSE)","v":"Exerciser SW License and LTSSM for PCIe 5Gb/s"},{"$f":"VLOOKUP(I59,'Detailed Product Structure'!$E$10:$J$171,6,FALSE)","v":49054}]

{"sheet":"Competitive Pricing","index":5,"n_rows":120,"n_cols":35,"rows_kept":120,"cut":false,"hidden":false,"merged":[[79,16,80,16],[17,5,18,5],[79,5,80,5],[17,27,18,27],[79,27,80,27]]}
["Gen2 ","Gen2 Analyzer"]
[null,null,"2004 Prices",null,null,null,null,null,null,null,null,null,null,"2007 Prices",null,null,null,null,null,null,null,null,null,null,"2008 Prices"]
[null,"Link","Agilent 2004 Prices",null,null,"LeCroy Pricing (2004 Prices)",null,null,null,"Tek Pricing (2004)",null,null,null,null,null,null,"LeCroy Pricing (Feb 07)",null,null,null,"Tek Pricing",null,null,null,null,null,null,"LeCroy Pricing (unless specified, last updated Feb 07)",null,null,null,"Tek Pricing"]
[null,null,null,null,null,"US","Japan","Asia","Europe","US","Japan","Asia","Europe","Gen2 Configuration (Slot interposer probes)",null,null,"US","Japan","Asia","Europe","US","Japan","Asia","Europe","Gen2 Configuration (Slot interposer probes)",null,null,"US","Japan","Asia","Europe","US","Japan","Asia","Europe"]
[null,"x1",null,null,null,null,null,null,null,null,null,null,null,null,null,{"$f":"SUM(P6:P9)","v":{"$error":"#N/A"}},null,null,null,null,null,null,null,null,null,null,{"$f":"SUM(AA6:AA9)","v":{"$error":"#N/A"}}]
[null,null,null,null,null,null,null,null,null,null,null,null,null,"N5306A",{"$f":"VLOOKUP(N6,'Detailed Product Structure'!$E$10:$J$171,4,FALSE)","v":"Analyzer Module for PCIe 5Gb/s (requires 2 for x 16)"},{"$f":"VLOOKUP(N6,'Detailed Product Structure'!$E$10:$J$171,6,FALSE)","v":30300},null,null,null,null,55000,null,null,null,"N5306A",{"$f":"VLOOKUP(Y6,'Detailed Product Structure'!$E$10:$J$171,4,FALSE)","v":"Analyzer Module for PCIe 5Gb/s (requires 2 for x 16)"},{"$f":"VLOOKUP(Y6,'Detailed Product Structure'!$E$10:$J$171,6,FALSE)","v":30300}]
[null,null,"N/A",null,null,null,null,null,null,null,null,null,null,"N5306A-A01",{"$f":"VLOOKUP(N7,'Detailed Product Structure'!$E$10:$J$171,4,FALSE)","v":"Analyzer SW License x1 for PCIe 5Gb/s"},{"$f":"VLOOKUP(N7,'Detailed Product Structure'!$E$10:$J$171,6,FALSE)","v":12995},null,null,null,null,null,null,null,null,"N5306A-A01",{"$f":"VLOOKUP(Y7,'Detailed Product Structure'!$E$10:$J$171,4,FALSE)","v":"Analyzer SW License x1 for PCIe 5Gb/s"},{"$f":"VLOOKUP(Y7,'Detailed Product Structure'!$E$10:$J$171,6,FALSE)","v":12995}]
[null,null,null,null,null,null,null,null,null,null,null,null,null,"N5315A-A01",{"$f":"VLOOKUP(N8,'Detailed Product Structure'!$E$10:$J$171,4,FALSE)","v":"Slot Interposer x1 for PCIe 5Gb/s"},{"$f":"VLOOKUP(N8,'Detailed Product Structure'!$E$10:$J$171,6,FALSE)","v":10137},null,null,null,null,null,null,null,null,"N5315A-A01",{"$f":"VLOOKUP(Y8,'Detailed Product Structure'!$E$10:$J$171,4,FALSE)","v":"Slot Interposer x1 for PCIe 5Gb/s"},{"$f":"VLOOKUP(Y8,'Detailed Product Structure'!$E$10:$J$171,6,FALSE)","v":10137}]
[null,null,null,null,null,null,null,null,null,null,null,null,null,"N5540A",{"$f":"VLOOKUP(N9,'Detailed Product Structure'!$E$10:$J$171,4,FALSE)","v":{"$error":"#N/A"}},{"$f":"VLOOKUP(N9,'Detailed Product Structure'!$E$10:$J$171,6,FALSE)","v":{"$error":"#N/A"}},null,null,null,null,null,null,null,null,"N5540A",{"$f":"VLOOKUP(Y9,'Detailed Product Structure'!$E$10:$J$171,4,FALSE)","v":{"$error":"#N/A"}},{"$f":"VLOOKUP(Y9,'Detailed Product Structure'!$E$10:$J$171,6,FALSE)","v":{"$error":"#N/A"}}]
[]
[null,"x4",null,null,null,null,null,null,null,null,null,null,null,null,null,{"$f":"SUM(P12:P16)","v":{"$error":"#N/A"}},null,null,null,null,null,null,null,null,null,null,{"$f":"SUM(AA12:AA16)","v":{"$error":"#N/A"}},50000]
[null,null,null,null,null,null,null,null,null,null,null,null,null,"N5306A",{"$f":"VLOOKUP(N12,'Detailed Product Structure'!$E$10:$J$171,4,FALSE)","v":"Analyzer Module for PCIe 5Gb/s (requires 2 for x 16)"},{"$f":"VLOOKUP(N12,'Detailed Product Structure'!$E$10:$J$171,6,FALSE)","v":30300},null,null,null,null,55000,null,null,null,"N5306A",{"$f":"VLOOKUP(Y12,'Detailed Product Structure'!$E$10:$J$171,4,FALSE)","v":"Analyzer Module for PCIe 5Gb/s (requires 2 for x 16)"},{"$f":"VLOOKUP(Y12,'Detailed Product Structure'!$E$10:$J$171,6,FALSE)","v":30300}]
[null,null,null,null,null,null,null,null,null,null,null,null,null,"N5306A-A04",{"$f":"VLOOKUP(N13,'Detailed Product Structure'!$E$10:$J$171,4,FALSE)","v":"Analyzer SW License x4 for PCIe 5Gb/s"},{"$f":"VLOOKUP(N13,'Detailed Product Structure'!$E$10:$J$171,6,FALSE)","v":19110},null,null,null,null,null,null,null,null,"N5306A-A04",{"$f":"VLOOKUP(Y13,'Detailed Product Structure'!$E$10:$J$171,4,FALSE)","v":"Analyzer SW License x4 for PCIe 5Gb/s"},{"$f":"VLOOKUP(Y13,'Detailed Product Structure'!$E$10:$J$171,6,FALSE)","v":19110}]
[null,null,null,null,null,null,null,null,null,null,null,null,null,"N5315A-A04",{"$f":"VLOOKUP(N14,'Detailed Product Structure'!$E$10:$J$171,4,FALSE)","v":"Slot Interposer x4 for PCIe 5Gb/s"},{"$f":"VLOOKUP(N14,'Detailed Product Structure'!$E$10:$J$171,6,FALSE)","v":12364},null,null,null,null,null,null,null,null,"N5315A-A04",{"$f":"VLOOKUP(Y14,'Detailed Product Structure'!$E$10:$J$171,4,FALSE)","v":"Slot Interposer x4 for PCIe 5Gb/s"},{"$f":"VLOOKUP(Y14,'Detailed Product Structure'!$E$10:$J$171,6,FALSE)","v":12364}]
[]
[null,null,null,null,null,null,null,null,null,null,null,null,null,"N5540A",{"$f":"VLOOKUP(N16,'Detailed Product Structure'!$E$10:$J$171,4,FALSE)","v":{"$error":"#N/A"}},{"$f":"VLOOKUP(N16,'Detailed Product Structure'!$E$10:$J$171,6,FALSE)","v":{"$error":"#N/A"}},null,null,null,null,null,null,null,null,"N5540A",{"$f":"VLOOKUP(Y16,'Detailed Product Structure'!$E$10:$J$171,4,FALSE)","v":{"$error":"#N/A"}},{"$f":"VLOOKUP(Y16,'Detailed Product Structure'!$E$10:$J$171,6,FALSE)","v":{"$error":"#N/A"}}]
[null,"x8",null,null,null,null,null,null,null,null,null,null,null,null,null,{"$f":"SUM(P18:P22)","v":{"$error":"#N/A"}},null,null,null,null,null,null,null,null,null,null,{"$f":"SUM(AA18:AA22)","v":{"$error":"#N/A"}},70000]
[null,null,null,null,null,null,null,null,null,null,null,null,null,"N5306A",{"$f":"VLOOKUP(N18,'Detailed Product Structure'!$E$10:$J$171,4,FALSE)","v":"Analyzer Module for PCIe 5Gb/s (requires 2 for x 16)"},{"$f":"VLOOKUP(N18,'Detailed Product Structure'!$E$10:$J$171,6,FALSE)","v":30300},69950,null,null,null,75000,null,null,null,"N5306A",{"$f":"VLOOKUP(Y18,'Detailed Product Structure'!$E$10:$J$171,4,FALSE)","v":"Analyzer Module for PCIe 5Gb/s (requires 2 for x 16)"},{"$f":"VLOOKUP(Y18,'Detailed Product Structure'!$E$10:$J$171,6,FALSE)","v":30300},69950]
[null,null,null,null,null,null,null,null,null,null,null,null,null,"N5306A-A08",{"$f":"VLOOKUP(N19,'Detailed Product Structure'!$E$10:$J$171,4,FALSE)","v":"Analyzer SW License x8 for PCIe 5Gb/s"},{"$f":"VLOOKUP(N19,'Detailed Product Structure'!$E$10:$J$171,6,FALSE)","v":25443},null,null,null,null,null,null,null,null,"N5306A-A08",{"$f":"VLOOKUP(Y19,'Detailed Product Structure'!$E$10:$J$171,4,FALSE)","v":"Analyzer SW License x8 for PCIe 5Gb/s"},{"$f":"VLOOKUP(Y19,'Detailed Product Structure'!$E$10:$J$171,6,FALSE)","v":25443}]
[null,null,null,null,null,null,null,null,null,null,null,null,null,"N5315A-A08",{"$f":"VLOOKUP(N20,'Detailed Product Structure'!$E$10:$J$171,4,FALSE)","v":"Slot Interposer x8 for PCIe 5Gb/s"},{"$f":"VLOOKUP(N20,'Detailed Product Structure'!$E$10:$J$171,6,FALSE)","v":14613},null,null,null,null,60000,null,null,null,"N5315A-A08",{"$f":"VLOOKUP(Y20,'Detailed Product Structure'!$E$10:$J$171,4,FALSE)","v":"Slot Interposer x8 for PCIe 5Gb/s"},{"$f":"VLOOKUP(Y20,'Detailed Product Structure'!$E$10:$J$171,6,FALSE)","v":14613}]
[]
[null,null,null,null,null,null,null,null,null,null,null,null,null,"N5540A",{"$f":"VLOOKUP(N22,'Detailed Product Structure'!$E$10:$J$171,4,FALSE)","v":{"$error":"#N/A"}},{"$f":"VLOOKUP(N22,'Detailed Product Structure'!$E$10:$J$171,6,FALSE)","v":{"$error":"#N/A"}},null,null,null,null,null,null,null,null,"N5540A",{"$f":"VLOOKUP(Y22,'Detailed Product Structure'!$E$10:$J$171,4,FALSE)","v":{"$error":"#N/A"}},{"$f":"VLOOKUP(Y22,'Detailed Product Structure'!$E$10:$J$171,6,FALSE)","v":{"$error":"#N/A"}}]
[null,"x16",null,null,null,null,null,null,null,null,null,null,null,null,null,{"$f":"SUM(P24:P28)","v":120921},119950,null,null,null,null,null,null,null,null,null,{"$f":"SUM(AA24:AA28)","v":120921},115000]
[null,null,null,null,null,null,null,null,null,null,null,null,null,"N5306A",{"$f":"VLOOKUP(N24,'Detailed Product Structure'!$E$10:$J$171,4,FALSE)","v":"Analyzer Module for PCIe 5Gb/s (requires 2 for x 16)"},{"$f":"VLOOKUP(N24,'Detailed Product Structure'!$E$10:$J$171,6,FALSE)","v":30300},null,null,null,null,150000,null,null,null,"N5306A",{"$f":"VLOOKUP(Y24,'Detailed Product Structure'!$E$10:$J$171,4,FALSE)","v":"Analyzer Module for PCIe 5Gb/s (requires 2 for x 16)"},{"$f":"VLOOKUP(Y24,'Detailed Product Structure'!$E$10:$J$171,6,FALSE)","v":30300}]
[null,null,null,null,null,null,null,null,null,null,null,null,null,"N5306A",{"$f":"VLOOKUP(N25,'Detailed Product Structure'!$E$10:$J$171,4,FALSE)","v":"Analyzer Module for PCIe 5Gb/s (requires 2 for x 16)"},{"$f":"VLOOKUP(N25,'Detailed Product Structure'!$E$10:$J$171,6,FALSE)","v":30300},null,null,null,null,null,null,null,null,"N5306A",{"$f":"VLOOKUP(Y25,'Detailed Product Structure'!$E$10:$J$171,4,FALSE)","v":"Analyzer Module for PCIe 5Gb/s (requires 2 for x 16)"},{"$f":"VLOOKUP(Y25,'Detailed Product Structure'!$E$10:$J$171,6,FALSE)","v":30300}]
[null,null,null,null,null,null,null,null,null,null,null,null,null,"N5306A-A16",{"$f":"VLOOKUP(N26,'Detailed Product Structure'!$E$10:$J$171,4,FALSE)","v":"Analyzer SW License x16 for PCIe 5Gb/s"},{"$f":"VLOOKUP(N26,'Detailed Product Structure'!$E$10:$J$171,6,FALSE)","v":21730},null,null,null,null,null,null,null,null,"N5306A-A16",{"$f":"VLOOKUP(Y26,'Detailed Product Structure'!$E$10:$J$171,4,FALSE)","v":"Analyzer SW License x16 for PCIe 5Gb/s"},{"$f":"VLOOKUP(Y26,'Detailed Product Structure'!$E$10:$J$171,6,FALSE)","v":21730}]
[null,null,null,null,null,null,null,null,null,null,null,null,null,"N5306A-A16",{"$f":"VLOOKUP(N27,'Detailed Product Structure'!$E$10:$J$171,4,FALSE)","v":"Analyzer SW License x16 for PCIe 5Gb/s"},{"$f":"VLOOKUP(N27,'Detailed Product Structure'!$E$10:$J$171,6,FALSE)","v":21730},null,null,null,null,null,null,null,null,"N5306A-A16",{"$f":"VLOOKUP(Y27,'Detailed Product Structure'!$E$10:$J$171,4,FALSE)","v":"Analyzer SW License x16 for PCIe 5Gb/s"},{"$f":"VLOOKUP(Y27,'Detailed Product Structure'!$E$10:$J$171,6,FALSE)","v":21730}]
[null,null,null,null,null,null,null,null,null,null,null,null,null,"N5315A-A16",{"$f":"VLOOKUP(N28,'Detailed Product Structure'!$E$10:$J$171,4,FALSE)","v":"Slot Interposer x16 for PCIe 5Gb/s"},{"$f":"VLOOKUP(N28,'Detailed Product Structure'!$E$10:$J$171,6,FALSE)","v":16861},15000,null,null,null,60000,null,null,null,"N5315A-A16",{"$f":"VLOOKUP(Y28,'Detailed Product Structure'!$E$10:$J$171,4,FALSE)","v":"Slot Interposer x16 for PCIe 5Gb/s"},{"$f":"VLOOKUP(Y28,'Detailed Product Structure'!$E$10:$J$171,6,FALSE)","v":16861},15000]
[]
[null,null,null,null,null,null,null,null,null,null,null,null,null,"N5540A",{"$f":"VLOOKUP(N30,'Detailed Product Structure'!$E$10:$J$171,4,FALSE)","v":{"$error":"#N/A"}},{"$f":"VLOOKUP(N30,'Detailed Product Structure'!$E$10:$J$171,6,FALSE)","v":{"$error":"#N/A"}},null,null,null,null,null,null,null,null,"N5540A",{"$f":"VLOOKUP(Y30,'Detailed Product Structure'!$E$10:$J$171,4,FALSE)","v":{"$error":"#N/A"}},{"$f":"VLOOKUP(Y30,'Detailed Product Structure'!$E$10:$J$171,6,FALSE)","v":{"$error":"#N/A"}}]
[null,"Probes"]
[null,null,null,null,null,null,null,null,null,null,null,null,null,"N4241A","Mid-bus probe",{"$f":"'Detailed Product Structure'!#REF!","v":{"$error":"#REF!"}},15000,null,null,null,null,null,null,null,"N4241A","Mid-bus probe",{"$f":"'Detailed Product Structure'!J65","v":22268},15000]
[null,null,null,null,null,null,null,null,null,null,null,null,null,"N4241F","Flying Leads Probe",{"$f":"'Detailed Product Structure'!#REF!","v":{"$error":"#REF!"}},"Available in Nov 2008?",null,null,null,null,null,null,null,"N4241F","Flying Leads Probe",{"$f":"'Detailed Product Structure'!J74","v":25725},"Available in Nov 2008?"]
[null,null,null,null,null,null,null,null,null,null,null,null,null,"N5315A-A16","Slot Interposer x16",16027,15000,null,null,null,null,null,null,null,"N5315A-A16","Slot Interposer x16",16027,15000]
[]
[null,"Gen2 Exerciser"]
[]
[null,"Link",null,null,null,"LeCroy Pricing (2004)",null,null,null,"Tek Pricing",null,null,null,null,null,null,"LeCroy Pricing",null,null,null,"Tek Pricing",null,null,null,null,null,null,"LeCroy Pricing",null,null,null,"Tek Pricing"]
[null,null,null,null,null,"US","Japan","Asia","Europe","US","Japan","Asia","Europe","Gen2",null,null,"US","Japan","Asia","Europe","US","Japan","Asia","Europe","Gen2",null,null,"US","Japan","Asia","Europe","US","Japan","Asia","Europe"]
[null,"x1",null,null,null,null,null,null,null,null,null,null,null,null,null,{"$f":"SUM(P41:P42)","v":58212},null,null,null,null,null,null,null,null,null,null,{"$f":"SUM(AA41:AA42)","v":58212}]
[null,null,null,null,null,null,null,null,null,null,null,null,null,"N5309A-E01",{"$f":"VLOOKUP(N41,'Detailed Product Structure'!$E$10:$J$171,4,FALSE)","v":"Exerciser for PCIe 5Gb/s"},{"$f":"VLOOKUP(N41,'Detailed Product Structure'!$E$10:$J$171,6,FALSE)","v":9158},null,null,null,null,null,null,null,null,"N5309A-E01",{"$f":"VLOOKUP(Y41,'Detailed Product Structure'!$E$10:$J$171,4,FALSE)","v":"Exerciser for PCIe 5Gb/s"},{"$f":"VLOOKUP(Y41,'Detailed Product Structure'!$E$10:$J$171,6,FALSE)","v":9158}]
[null,null,null,null,null,null,null,null,null,null,null,null,null,"N5309A-EX2",{"$f":"VLOOKUP(N42,'Detailed Product Structure'!$E$10:$J$171,4,FALSE)","v":"Exerciser SW License and LTSSM for PCIe 5Gb/s"},{"$f":"VLOOKUP(N42,'Detailed Product Structure'!$E$10:$J$171,6,FALSE)","v":49054},null,null,null,null,null,null,null,null,"N5309A-EX2",{"$f":"VLOOKUP(Y42,'Detailed Product Structure'!$E$10:$J$171,4,FALSE)","v":"Exerciser SW License and LTSSM for PCIe 5Gb/s"},{"$f":"VLOOKUP(Y42,'Detailed Product Structure'!$E$10:$J$171,6,FALSE)","v":49054}]
[]
[]
[null,"x4",null,null,null,null,null,null,null,null,null,null,null,null,null,{"$f":"SUM(P46:P47)","v":70280},null,null,null,null,null,null,null,null,null,null,{"$f":"SUM(AA46:AA47)","v":70280}]
[null,null,null,null,null,null,null,null,null,null,null,null,null,"N5309A-E04",{"$f":"VLOOKUP(N46,'Detailed Product Structure'!$E$10:$J$171,4,FALSE)","v":"Half Sized Exerciser and LTSSM Board x4 for PCIe 5Gb/s"},{"$f":"VLOOKUP(N46,'Detailed Product Structure'!$E$10:$J$171,6,FALSE)","v":21226},null,null,null,null,null,null,null,null,"N5309A-E04",{"$f":"VLOOKUP(Y46,'Detailed Product Structure'!$E$10:$J$171,4,FALSE)","v":"Half Sized Exerciser and LTSSM Board x4 for PCIe 5Gb/s"},{"$f":"VLOOKUP(Y46,'Detailed Product Structure'!$E$10:$J$171,6,FALSE)","v":21226}]
[null,null,null,null,null,null,null,null,null,null,null,null,null,"N5309A-EX2",{"$f":"VLOOKUP(N47,'Detailed Product Structure'!$E$10:$J$171,4,FALSE)","v":"Exerciser SW License and LTSSM for PCIe 5Gb/s"},{"$f":"VLOOKUP(N47,'Detailed Product Structure'!$E$10:$J$171,6,FALSE)","v":49054},null,null,null,null,null,null,null,null,"N5309A-EX2",{"$f":"VLOOKUP(Y47,'Detailed Product Structure'!$E$10:$J$171,4,FALSE)","v":"Exerciser SW License and LTSSM for PCIe 5Gb/s"},{"$f":"VLOOKUP(Y47,'Detailed Product Structure'!$E$10:$J$171,6,FALSE)","v":49054}]
[]
[]
[null,"x8",null,null,null,null,null,null,null,null,null,null,null,null,null,{"$f":"SUM(P51:P52)","v":81314},70000,null,null,null,null,null,null,null,null,null,{"$f":"SUM(AA51:AA52)","v":81314},70000]
[null,null,null,null,null,null,null,null,null,null,null,null,null,"N5309A-E08",{"$f":"VLOOKUP(N51,'Detailed Product Structure'!$E$10:$J$171,4,FALSE)","v":"Half Sized Exerciser and LTSSM Board x8 for PCIe 5Gb/s"},{"$f":"VLOOKUP(N51,'Detailed Product Structure'!$E$10:$J$171,6,FALSE)","v":32260},null,null,null,null,null,null,null,null,"N5309A-E08",{"$f":"VLOOKUP(Y51,'Detailed Product Structure'!$E$10:$J$171,4,FALSE)","v":"Half Sized Exerciser and LTSSM Board x8 for PCIe 5Gb/s"},{"$f":"VLOOKUP(Y51,'Detailed Product Structure'!$E$10:$J$171,6,FALSE)","v":32260}]
[null,null,null,null,null,null,null,null,null,null,null,null,null,"N5309A-EX2",{"$f":"VLOOKUP(N52,'Detailed Product Structure'!$E$10:$J$171,4,FALSE)","v":"Exerciser SW License and LTSSM for PCIe 5Gb/s"},{"$f":"VLOOKUP(N52,'Detailed Product Structure'!$E$10:$J$171,6,FALSE)","v":49054},null,null,null,null,null,null,null,null,"N5309A-EX2",{"$f":"VLOOKUP(Y52,'Detailed Product Structure'!$E$10:$J$171,4,FALSE)","v":"Exerciser SW License and LTSSM for PCIe 5Gb/s"},{"$f":"VLOOKUP(Y52,'Detailed Product Structure'!$E$10:$J$171,6,FALSE)","v":49054}]
[]
[]
[null,"x16",null,null,null,null,null,null,null,null,null,null,null,null,null,{"$f":"SUM(P56:P57)","v":92545},null,null,null,null,null,null,null,null,null,null,{"$f":"SUM(AA56:AA57)","v":92545}]
[null,null,null,null,null,null,null,null,null,null,null,null,null,"N5309A-E16",{"$f":"VLOOKUP(N56,'Detailed Product Structure'!$E$10:$J$171,4,FALSE)","v":"Half Sized Exerciser and LTSSM Board x16 for PCIe 5Gb/s"},{"$f":"VLOOKUP(N56,'Detailed Product Structure'!$E$10:$J$171,6,FALSE)","v":43491},null,null,null,null,null,null,null,null,"N5309A-E16",{"$f":"VLOOKUP(Y56,'Detailed Product Structure'!$E$10:$J$171,4,FALSE)","v":"Half Sized Exerciser and LTSSM Board x16 for PCIe 5Gb/s"},{"$f":"VLOOKUP(Y56,'Detailed Product Structure'!$E$10:$J$171,6,FALSE)","v":43491}]
[null,null,null,null,null,null,null,null,null,null,null,null,null,"N5309A-EX2",{"$f":"VLOOKUP(N57,'Detailed Product Structure'!$E$10:$J$171,4,FALSE)","v":"Exerciser SW License and LTSSM for PCIe 5Gb/s"},{"$f":"VLOOKUP(N57,'Detailed Product Structure'!$E$10:$J$171,6,FALSE)","v":49054},null,null,null,null,null,null,null,null,"N5309A-EX2",{"$f":"VLOOKUP(Y57,'Detailed Product Structure'!$E$10:$J$171,4,FALSE)","v":"Exerciser SW License and LTSSM for PCIe 5Gb/s"},{"$f":"VLOOKUP(Y57,'Detailed Product Structure'!$E$10:$J$171,6,FALSE)","v":49054}]
[null,null,null,null,null,null,null,null,null,null,null,null,null,null,null,null,29950]
[]
[]
[]
[]
["Gen1 ","Gen1 Analyzer"]
[null,null,"2004 Prices"]
[null,"Link",null,null,null,"LeCroy Pricing (2004)",null,null,null,"Tek Pricing (2004)",null,null,null,null,null,null,"LeCroy Pricing ",null,null,null,"Tek Pricing",null,null,null,null,null,null,"LeCroy Pricing ",null,null,null,"Tek Pricing"]
[null,null,"Gen2 Ready Configuration - with Gen1 Probes",null,null,"US","Japan","Asia","Europe","US","Japan","Asia","Europe","Gen2 Ready Configuration - with Gen1 Probes",null,null,"US","Japan","Asia","Europe","US","Japan","Asia","Europe","Gen2 Ready Configuration - with Gen1 Probes",null,null,"US","Japan","Asia","Europe","US","Japan","Asia","Europe"]
[null,"x1",null,null,{"$f":"SUM(E68:E72)","v":{"$error":"#N/A"}},26950,null,null,null,{"$f":"SUM(J68:J72)","v":105850},null,null,null,null,null,{"$f":"SUM(P68:P72)","v":{"$error":"#N/A"}},null,null,null,null,null,null,null,null,null,null,{"$f":"SUM(AA68:AA72)","v":{"$error":"#N/A"}},15950]
[null,null,"E2960A-A01",{"$f":"VLOOKUP(C68,'Detailed Product Structure'!$E$10:$J$171,4,FALSE)","v":{"$error":"#N/A"}},{"$f":"VLOOKUP(C68,'Detailed Product Structure'!$E$10:$J$171,6,FALSE)","v":{"$error":"#N/A"}},null,null,null,null,{"$f":"16750*2","v":33500},null,null,null,"N5306A",{"$f":"VLOOKUP(N68,'Detailed Product Structure'!$E$10:$J$171,4,FALSE)","v":"Analyzer Module for PCIe 5Gb/s (requires 2 for x 16)"},{"$f":"VLOOKUP(N68,'Detailed Product Structure'!$E$10:$J$171,6,FALSE)","v":30300},null,null,null,null,null,null,null,null,"N5306A",{"$f":"VLOOKUP(Y68,'Detailed Product Structure'!$E$10:$J$171,4,FALSE)","v":"Analyzer Module for PCIe 5Gb/s (requires 2 for x 16)"},{"$f":"VLOOKUP(Y68,'Detailed Product Structure'!$E$10:$J$171,6,FALSE)","v":30300}]
[null,null,null,null,null,null,null,null,null,null,null,null,null,"N5306A-G01",{"$f":"VLOOKUP(N69,'Detailed Product Structure'!$E$10:$J$171,4,FALSE)","v":"Analyzer SW License x1 for PCIe 2.5 Gb/s"},{"$f":"VLOOKUP(N69,'Detailed Product Structure'!$E$10:$J$171,6,FALSE)","v":-24886},null,null,null,null,null,null,null,null,"N5306A-G01",{"$f":"VLOOKUP(Y69,'Detailed Product Structure'!$E$10:$J$171,4,FALSE)","v":"Analyzer SW License x1 for PCIe 2.5 Gb/s"},{"$f":"VLOOKUP(Y69,'Detailed Product Structure'!$E$10:$J$171,6,FALSE)","v":-24886}]
[null,null,null,null,null,3000,null,null,null,60000,null,null,null,"E2945A","Passive x1 probe for Gen1 Only",2754,null,null,null,null,null,null,null,null,"E2945A","Passive x1 probe for Gen1 Only",2754]
[null,null,null,null,null,null,null,null,null,null,null,null,null,"N5540A",{"$f":"VLOOKUP(N71,'Detailed Product Structure'!$E$10:$J$171,4,FALSE)","v":{"$error":"#N/A"}},{"$f":"VLOOKUP(N71,'Detailed Product Structure'!$E$10:$J$171,6,FALSE)","v":{"$error":"#N/A"}},null,null,null,null,null,null,null,null,"N5540A",{"$f":"VLOOKUP(Y71,'Detailed Product Structure'!$E$10:$J$171,4,FALSE)","v":{"$error":"#N/A"}},{"$f":"VLOOKUP(Y71,'Detailed Product Structure'!$E$10:$J$171,6,FALSE)","v":{"$error":"#N/A"}}]
[null,null,null,null,null,null,null,null,null,12350,null,null,null,"N5317A",{"$f":"VLOOKUP(N72,'Detailed Product Structure'!$E$10:$J$171,4,FALSE)","v":"Cable to connect E2960A probe to E2960B series"},{"$f":"VLOOKUP(N72,'Detailed Product Structure'!$E$10:$J$171,6,FALSE)","v":2708},null,null,null,null,null,null,null,null,"N5317A",{"$f":"VLOOKUP(Y72,'Detailed Product Structure'!$E$10:$J$171,4,FALSE)","v":"Cable to connect E2960A probe to E2960B series"},{"$f":"VLOOKUP(Y72,'Detailed Product Structure'!$E$10:$J$171,6,FALSE)","v":2708}]
[null,"x4",null,null,{"$f":"SUM(E74:E78)","v":{"$error":"#N/A"}},34750,null,null,null,{"$f":"SUM(J74:J78)","v":105860},null,null,null,null,null,{"$f":"SUM(P74:P78)","v":{"$error":"#N/A"}},null,null,null,null,null,null,null,null,null,null,{"$f":"SUM(AA74:AA78)","v":{"$error":"#N/A"}},24950]
[null,null,"E2960A-A04",{"$f":"VLOOKUP(C74,'Detailed Product Structure'!$E$10:$J$171,4,FALSE)","v":{"$error":"#N/A"}},{"$f":"VLOOKUP(C74,'Detailed Product Structure'!$E$10:$J$171,6,FALSE)","v":{"$error":"#N/A"}},null,null,null,null,{"$f":"16750*2","v":33500},null,null,null,"N5306A",{"$f":"VLOOKUP(N74,'Detailed Product Structure'!$E$10:$J$171,4,FALSE)","v":"Analyzer Module for PCIe 5Gb/s (requires 2 for x 16)"},{"$f":"VLOOKUP(N74,'Detailed Product Structure'!$E$10:$J$171,6,FALSE)","v":30300},null,null,null,null,null,null,null,null,"N5306A",{"$f":"VLOOKUP(Y74,'Detailed Product Structure'!$E$10:$J$171,4,FALSE)","v":"Analyzer Module for PCIe 5Gb/s (requires 2 for x 16)"},{"$f":"VLOOKUP(Y74,'Detailed Product Structure'!$E$10:$J$171,6,FALSE)","v":30300}]
[null,null,null,null,null,null,null,null,null,null,null,null,null,"N5306A-G04",{"$f":"VLOOKUP(N75,'Detailed Product Structure'!$E$10:$J$171,4,FALSE)","v":"Analyzer SW License x4 for PCIe 2.5 Gb/s"},{"$f":"VLOOKUP(N75,'Detailed Product Structure'!$E$10:$J$171,6,FALSE)","v":-19416},null,null,null,null,null,null,null,null,"N5306A-G04",{"$f":"VLOOKUP(Y75,'Detailed Product Structure'!$E$10:$J$171,4,FALSE)","v":"Analyzer SW License x4 for PCIe 2.5 Gb/s"},{"$f":"VLOOKUP(Y75,'Detailed Product Structure'!$E$10:$J$171,6,FALSE)","v":-19416}]
[null,null,null,null,null,3200,null,null,null,60000,null,null,null,"E2946A","Passive x4 probe for Gen1 Only",2907,null,null,null,null,null,null,null,null,"E2946A","Passive x4 probe for Gen1 Only",2907]
[null,null,null,null,null,null,null,null,null,null,null,null,null,"N5317A",{"$f":"VLOOKUP(N77,'Detailed Product Structure'!$E$10:$J$171,4,FALSE)","v":"Cable to connect E2960A probe to E2960B series"},{"$f":"VLOOKUP(N77,'Detailed Product Structure'!$E$10:$J$171,6,FALSE)","v":2708},null,null,null,null,null,null,null,null,"N5317A",{"$f":"VLOOKUP(Y77,'Detailed Product Structure'!$E$10:$J$171,4,FALSE)","v":"Cable to connect E2960A probe to E2960B series"},{"$f":"VLOOKUP(Y77,'Detailed Product Structure'!$E$10:$J$171,6,FALSE)","v":2708}]
[null,null,null,null,null,null,null,null,null,12360,null,null,null,"N5540A",{"$f":"VLOOKUP(N78,'Detailed Product Structure'!$E$10:$J$171,4,FALSE)","v":{"$error":"#N/A"}},{"$f":"VLOOKUP(N78,'Detailed Product Structure'!$E$10:$J$171,6,FALSE)","v":{"$error":"#N/A"}},null,null,null,null,null,null,null,null,"N5540A",{"$f":"VLOOKUP(Y78,'Detailed Product Structure'!$E$10:$J$171,4,FALSE)","v":{"$error":"#N/A"}},{"$f":"VLOOKUP(Y78,'Detailed Product Structure'!$E$10:$J$171,6,FALSE)","v":{"$error":"#N/A"}}]
[null,"x8",null,null,{"$f":"SUM(E80:E84)","v":{"$error":"#N/A"}},69950,null,null,null,{"$f":"SUM(J80:J84)","v":116960},null,null,null,null,null,{"$f":"SUM(P80:P84)","v":{"$error":"#N/A"}},55950,null,null,null,null,null,null,null,null,null,{"$f":"SUM(AA80:AA84)","v":{"$error":"#N/A"}}]
[null,null,"E2960A-A08",{"$f":"VLOOKUP(C80,'Detailed Product Structure'!$E$10:$J$171,4,FALSE)","v":{"$error":"#N/A"}},{"$f":"VLOOKUP(C80,'Detailed Product Structure'!$E$10:$J$171,6,FALSE)","v":{"$error":"#N/A"}},null,null,null,null,{"$f":"22300*2","v":44600},null,null,null,"N5306A",{"$f":"VLOOKUP(N80,'Detailed Product Structure'!$E$10:$J$171,4,FALSE)","v":"Analyzer Module for PCIe 5Gb/s (requires 2 for x 16)"},{"$f":"VLOOKUP(N80,'Detailed Product Structure'!$E$10:$J$171,6,FALSE)","v":30300},null,null,null,null,null,null,null,null,"N5306A",{"$f":"VLOOKUP(Y80,'Detailed Product Structure'!$E$10:$J$171,4,FALSE)","v":"Analyzer Module for PCIe 5Gb/s (requires 2 for x 16)"},{"$f":"VLOOKUP(Y80,'Detailed Product Structure'!$E$10:$J$171,6,FALSE)","v":30300}]
[null,null,null,null,null,null,null,null,null,null,null,null,null,"N5306A-G08",{"$f":"VLOOKUP(N81,'Detailed Product Structure'!$E$10:$J$171,4,FALSE)","v":"Analyzer SW License x8 for PCIe 2.5 Gb/s"},{"$f":"VLOOKUP(N81,'Detailed Product Structure'!$E$10:$J$171,6,FALSE)","v":179},null,null,null,null,null,null,null,null,"N5306A-G08",{"$f":"VLOOKUP(Y81,'Detailed Product Structure'!$E$10:$J$171,4,FALSE)","v":"Analyzer SW License x8 for PCIe 2.5 Gb/s"},{"$f":"VLOOKUP(Y81,'Detailed Product Structure'!$E$10:$J$171,6,FALSE)","v":179}]
[null,null,null,null,null,3400,null,null,null,60000,null,null,null,"E2947A","Passive x8 probe for Gen1 Only",3009,null,null,null,null,null,null,null,null,"E2947A","Passive x8 probe for Gen1 Only",3009]
[null,null,null,null,null,null,null,null,null,null,null,null,null,"N5317A",{"$f":"VLOOKUP(N83,'Detailed Product Structure'!$E$10:$J$171,4,FALSE)","v":"Cable to connect E2960A probe to E2960B series"},{"$f":"VLOOKUP(N83,'Detailed Product Structure'!$E$10:$J$171,6,FALSE)","v":2708},null,null,null,null,null,null,null,null,"N5317A",{"$f":"VLOOKUP(Y83,'Detailed Product Structure'!$E$10:$J$171,4,FALSE)","v":"Cable to connect E2960A probe to E2960B series"},{"$f":"VLOOKUP(Y83,'Detailed Product Structure'!$E$10:$J$171,6,FALSE)","v":2708}]
[null,null,null,null,null,null,null,null,null,12360,null,null,null,"N5540A",{"$f":"VLOOKUP(N84,'Detailed Product Structure'!$E$10:$J$171,4,FALSE)","v":{"$error":"#N/A"}},{"$f":"VLOOKUP(N84,'Detailed Product Structure'!$E$10:$J$171,6,FALSE)","v":{"$error":"#N/A"}},null,null,null,null,null,null,null,null,"N5540A",{"$f":"VLOOKUP(Y84,'Detailed Product Structure'!$E$10:$J$171,4,FALSE)","v":{"$error":"#N/A"}},{"$f":"VLOOKUP(Y84,'Detailed Product Structure'!$E$10:$J$171,6,FALSE)","v":{"$error":"#N/A"}}]
[null,"x16",null,null,{"$f":"SUM(E86:E92)","v":0},79950,null,null,null,{"$f":"SUM(J86:J92)","v":168255},null,null,null,null,null,{"$f":"SUM(P86:P92)","v":{"$error":"#N/A"}},62950,null,null,null,null,null,null,null,null,null,{"$f":"SUM(AA86:AA92)","v":{"$error":"#N/A"}},62950]
[null,null,"N/A",null,null,null,null,null,null,{"$f":"22300*4","v":89200},null,null,null,"N5306A",{"$f":"VLOOKUP(N86,'Detailed Product Structure'!$E$10:$J$171,4,FALSE)","v":"Analyzer Module for PCIe 5Gb/s (requires 2 for x 16)"},{"$f":"VLOOKUP(N86,'Detailed Product Structure'!$E$10:$J$171,6,FALSE)","v":30300},null,null,null,null,null,null,null,null,"N5306A",{"$f":"VLOOKUP(Y86,'Detailed Product Structure'!$E$10:$J$171,4,FALSE)","v":"Analyzer Module for PCIe 5Gb/s (requires 2 for x 16)"},{"$f":"VLOOKUP(Y86,'Detailed Product Structure'!$E$10:$J$171,6,FALSE)","v":30300}]
[null,null,null,null,null,null,null,null,null,null,null,null,null,"N5306A",{"$f":"VLOOKUP(N87,'Detailed Product Structure'!$E$10:$J$171,4,FALSE)","v":"Analyzer Module for PCIe 5Gb/s (requires 2 for x 16)"},{"$f":"VLOOKUP(N87,'Detailed Product Structure'!$E$10:$J$171,6,FALSE)","v":30300},null,null,null,null,null,null,null,null,"N5306A",{"$f":"VLOOKUP(Y87,'Detailed Product Structure'!$E$10:$J$171,4,FALSE)","v":"Analyzer Module for PCIe 5Gb/s (requires 2 for x 16)"},{"$f":"VLOOKUP(Y87,'Detailed Product Structure'!$E$10:$J$171,6,FALSE)","v":30300}]
[null,null,null,null,null,null,null,null,null,null,null,null,null,"N5306A-G16",{"$f":"VLOOKUP(N88,'Detailed Product Structure'!$E$10:$J$171,4,FALSE)","v":"Analyzer SW License x16 for PCIe 2.5Gb/s"},{"$f":"VLOOKUP(N88,'Detailed Product Structure'!$E$10:$J$171,6,FALSE)","v":-8639},null,null,null,null,null,null,null,null,"N5306A-G16",{"$f":"VLOOKUP(Y88,'Detailed Product Structure'!$E$10:$J$171,4,FALSE)","v":"Analyzer SW License x16 for PCIe 2.5Gb/s"},{"$f":"VLOOKUP(Y88,'Detailed Product Structure'!$E$10:$J$171,6,FALSE)","v":-8639}]
[null,null,null,null,null,null,null,null,null,null,null,null,null,"N5306A-G16",{"$f":"VLOOKUP(N89,'Detailed Product Structure'!$E$10:$J$171,4,FALSE)","v":"Analyzer SW License x16 for PCIe 2.5Gb/s"},{"$f":"VLOOKUP(N89,'Detailed Product Structure'!$E$10:$J$171,6,FALSE)","v":-8639},null,null,null,null,null,null,null,null,"N5306A-G16",{"$f":"VLOOKUP(Y89,'Detailed Product Structure'!$E$10:$J$171,4,FALSE)","v":"Analyzer SW License x16 for PCIe 2.5Gb/s"},{"$f":"VLOOKUP(Y89,'Detailed Product Structure'!$E$10:$J$171,6,FALSE)","v":-8639}]
[null,null,null,null,null,4000,null,null,null,60000,null,null,null,"N5315A-A16",{"$f":"VLOOKUP(N90,'Detailed Product Structure'!$E$10:$J$171,4,FALSE)","v":"Slot Interposer x16 for PCIe 5Gb/s"},{"$f":"VLOOKUP(N90,'Detailed Product Structure'!$E$10:$J$171,6,FALSE)","v":16861},null,null,null,null,null,null,null,null,"N5315A-A16",{"$f":"VLOOKUP(Y90,'Detailed Product Structure'!$E$10:$J$171,4,FALSE)","v":"Slot Interposer x16 for PCIe 5Gb/s"},{"$f":"VLOOKUP(Y90,'Detailed Product Structure'!$E$10:$J$171,6,FALSE)","v":16861}]
[null,null,null,null,null,null,null,null,null,null,null,null,null,"N5317A",{"$f":"VLOOKUP(N91,'Detailed Product Structure'!$E$10:$J$171,4,FALSE)","v":"Cable to connect E2960A probe to E2960B series"},{"$f":"VLOOKUP(N91,'Detailed Product Structure'!$E$10:$J$171,6,FALSE)","v":2708},null,null,null,null,null,null,null,null,"N5317A",{"$f":"VLOOKUP(Y91,'Detailed Product Structure'!$E$10:$J$171,4,FALSE)","v":"Cable to connect E2960A probe to E2960B series"},{"$f":"VLOOKUP(Y91,'Detailed Product Structure'!$E$10:$J$171,6,FALSE)","v":2708}]
[null,null,null,null,null,null,null,null,null,19055,null,null,null,"N5540A",{"$f":"VLOOKUP(N92,'Detailed Product Structure'!$E$10:$J$171,4,FALSE)","v":{"$error":"#N/A"}},{"$f":"VLOOKUP(N92,'Detailed Product Structure'!$E$10:$J$171,6,FALSE)","v":{"$error":"#N/A"}},null,null,null,null,null,null,null,null,"N5540A",{"$f":"VLOOKUP(Y92,'Detailed Product Structure'!$E$10:$J$171,4,FALSE)","v":{"$error":"#N/A"}},{"$f":"VLOOKUP(Y92,'Detailed Product Structure'!$E$10:$J$171,6,FALSE)","v":{"$error":"#N/A"}}]
[null,"Probes"]
[null,null,"N4221A","Mid-bus Probe Gen1 (Optional)",{"$f":"'Detailed Product Structure'!#REF!","v":{"$error":"#REF!"}},12500,null,null,null,null,null,null,null,"N4221A","Mid-bus Probe Gen1 (Optional)",{"$f":"'Detailed Product Structure'!#REF!","v":{"$error":"#REF!"}},null,null,null,null,null,null,null,null,"N4221A","Mid-bus Probe Gen1 (Optional)",{"$f":"'Detailed Product Structure'!J140","v":0}]
[null,null,"N4221F","Flying Leads Probe",{"$f":"'Detailed Product Structure'!#REF!","v":{"$error":"#REF!"}},null,null,null,null,null,null,null,null,"N4221F","Flying Leads Probe",{"$f":"'Detailed Product Structure'!#REF!","v":{"$error":"#REF!"}},null,null,null,null,null,null,null,null,"N4221F","Flying Leads Probe",{"$f":"'Detailed Product Structure'!J145","v":0},"Available in Nov 2008?"]
[]
[]
[]
[null,"Gen1 Exerciser"]
[]
[null,"Link",null,null,null,"LeCroy Pricing (2004)",null,null,null,"Tek Pricing (2004)",null,null,null,null,null,null,"LeCroy Pricing",null,null,null,"Tek Pricing",null,null,null,null,null,null,"LeCroy Pricing",null,null,null,"Tek Pricing"]
[null,null,"Gen2 Ready Configuration",null,null,"US","Japan","Asia","Europe","US","Japan","Asia","Europe","Gen2 Ready Configuration",null,null,"US","Japan","Asia","Europe","US","Japan","Asia","Europe","Gen2 Ready Configuration",null,null,"US","Japan","Asia","Europe","US","Japan","Asia","Europe"]
[null,"x1",null,null,{"$f":"SUM(E104:E105)","v":37287},null,null,null,null,null,null,null,null,null,null,{"$f":"SUM(P104:P105)","v":37287},null,null,null,null,null,null,null,null,null,null,{"$f":"SUM(AA104:AA105)","v":37287}]
[null,null,"N5309A-E01",{"$f":"VLOOKUP(C104,'Detailed Product Structure'!$E$10:$J$171,4,FALSE)","v":"Exerciser for PCIe 5Gb/s"},{"$f":"VLOOKUP(C104,'Detailed Product Structure'!$E$10:$J$171,6,FALSE)","v":9158},null,null,null,null,null,null,null,null,"N5309A-E01",{"$f":"VLOOKUP(N104,'Detailed Product Structure'!$E$10:$J$171,4,FALSE)","v":"Exerciser for PCIe 5Gb/s"},{"$f":"VLOOKUP(N104,'Detailed Product Structure'!$E$10:$J$171,6,FALSE)","v":9158},null,null,null,null,null,null,null,null,"N5309A-E01",{"$f":"VLOOKUP(Y104,'Detailed Product Structure'!$E$10:$J$171,4,FALSE)","v":"Exerciser for PCIe 5Gb/s"},{"$f":"VLOOKUP(Y104,'Detailed Product Structure'!$E$10:$J$171,6,FALSE)","v":9158}]
[null,null,"N5309A-EX1",{"$f":"VLOOKUP(C105,'Detailed Product Structure'!$E$10:$J$171,4,FALSE)","v":"Exerciser SW License and LTSSM for PCIe 2.5Gb/s"},{"$f":"VLOOKUP(C105,'Detailed Product Structure'!$E$10:$J$171,6,FALSE)","v":28129},null,null,null,null,null,null,null,null,"N5309A-EX1",{"$f":"VLOOKUP(N105,'Detailed Product Structure'!$E$10:$J$171,4,FALSE)","v":"Exerciser SW License and LTSSM for PCIe 2.5Gb/s"},{"$f":"VLOOKUP(N105,'Detailed Product Structure'!$E$10:$J$171,6,FALSE)","v":28129},null,null,null,null,null,null,null,null,"N5309A-EX1",{"$f":"VLOOKUP(Y105,'Detailed Product Structure'!$E$10:$J$171,4,FALSE)","v":"Exerciser SW License and LTSSM for PCIe 2.5Gb/s"},{"$f":"VLOOKUP(Y105,'Detailed Product Structure'!$E$10:$J$171,6,FALSE)","v":28129}]
[]
[]
[null,"x4",null,null,{"$f":"SUM(E109:E110)","v":49355},36750,null,null,null,null,null,null,null,null,null,{"$f":"SUM(P109:P110)","v":49355},null,null,null,null,null,null,null,null,null,null,{"$f":"SUM(AA109:AA110)","v":49355}]
[null,null,"N5309A-E04",{"$f":"VLOOKUP(C109,'Detailed Product Structure'!$E$10:$J$171,4,FALSE)","v":"Half Sized Exerciser and LTSSM Board x4 for PCIe 5Gb/s"},{"$f":"VLOOKUP(C109,'Detailed Product Structure'!$E$10:$J$171,6,FALSE)","v":21226},null,null,null,null,null,null,null,null,"N5309A-E04",{"$f":"VLOOKUP(N109,'Detailed Product Structure'!$E$10:$J$171,4,FALSE)","v":"Half Sized Exerciser and LTSSM Board x4 for PCIe 5Gb/s"},{"$f":"VLOOKUP(N109,'Detailed Product Structure'!$E$10:$J$171,6,FALSE)","v":21226},null,null,null,null,null,null,null,null,"N5309A-E04",{"$f":"VLOOKUP(Y109,'Detailed Product Structure'!$E$10:$J$171,4,FALSE)","v":"Half Sized Exerciser and LTSSM Board x4 for PCIe 5Gb/s"},{"$f":"VLOOKUP(Y109,'Detailed Product Structure'!$E$10:$J$171,6,FALSE)","v":21226}]
[null,null,"N5309A-EX1",{"$f":"VLOOKUP(C110,'Detailed Product Structure'!$E$10:$J$171,4,FALSE)","v":"Exerciser SW License and LTSSM for PCIe 2.5Gb/s"},{"$f":"VLOOKUP(C110,'Detailed Product Structure'!$E$10:$J$171,6,FALSE)","v":28129},null,null,null,null,null,null,null,null,"N5309A-EX1",{"$f":"VLOOKUP(N110,'Detailed Product Structure'!$E$10:$J$171,4,FALSE)","v":"Exerciser SW License and LTSSM for PCIe 2.5Gb/s"},{"$f":"VLOOKUP(N110,'Detailed Product Structure'!$E$10:$J$171,6,FALSE)","v":28129},null,null,null,null,null,null,null,null,"N5309A-EX1",{"$f":"VLOOKUP(Y110,'Detailed Product Structure'!$E$10:$J$171,4,FALSE)","v":"Exerciser SW License and LTSSM for PCIe 2.5Gb/s"},{"$f":"VLOOKUP(Y110,'Detailed Product Structure'!$E$10:$J$171,6,FALSE)","v":28129}]
[]
[]
[null,"x8",null,null,{"$f":"SUM(E114:E115)","v":60389},69950,null,null,null,null,null,null,null,null,null,{"$f":"SUM(P114:P115)","v":60389},null,null,null,null,null,null,null,null,null,null,{"$f":"SUM(AA114:AA115)","v":60389}]
[null,null,"N5309A-E08",{"$f":"VLOOKUP(C114,'Detailed Product Structure'!$E$10:$J$171,4,FALSE)","v":"Half Sized Exerciser and LTSSM Board x8 for PCIe 5Gb/s"},{"$f":"VLOOKUP(C114,'Detailed Product Structure'!$E$10:$J$171,6,FALSE)","v":32260},null,null,null,null,null,null,null,null,"N5309A-E08",{"$f":"VLOOKUP(N114,'Detailed Product Structure'!$E$10:$J$171,4,FALSE)","v":"Half Sized Exerciser and LTSSM Board x8 for PCIe 5Gb/s"},{"$f":"VLOOKUP(N114,'Detailed Product Structure'!$E$10:$J$171,6,FALSE)","v":32260},null,null,null,null,null,null,null,null,"N5309A-E08",{"$f":"VLOOKUP(Y114,'Detailed Product Structure'!$E$10:$J$171,4,FALSE)","v":"Half Sized Exerciser and LTSSM Board x8 for PCIe 5Gb/s"},{"$f":"VLOOKUP(Y114,'Detailed Product Structure'!$E$10:$J$171,6,FALSE)","v":32260}]
[null,null,"N5309A-EX1",{"$f":"VLOOKUP(C115,'Detailed Product Structure'!$E$10:$J$171,4,FALSE)","v":"Exerciser SW License and LTSSM for PCIe 2.5Gb/s"},{"$f":"VLOOKUP(C115,'Detailed Product Structure'!$E$10:$J$171,6,FALSE)","v":28129},null,null,null,null,null,null,null,null,"N5309A-EX1",{"$f":"VLOOKUP(N115,'Detailed Product Structure'!$E$10:$J$171,4,FALSE)","v":"Exerciser SW License and LTSSM for PCIe 2.5Gb/s"},{"$f":"VLOOKUP(N115,'Detailed Product Structure'!$E$10:$J$171,6,FALSE)","v":28129},null,null,null,null,null,null,null,null,"N5309A-EX1",{"$f":"VLOOKUP(Y115,'Detailed Product Structure'!$E$10:$J$171,4,FALSE)","v":"Exerciser SW License and LTSSM for PCIe 2.5Gb/s"},{"$f":"VLOOKUP(Y115,'Detailed Product Structure'!$E$10:$J$171,6,FALSE)","v":28129}]
[]
[]
[null,"x16",null,null,{"$f":"SUM(E119:E120)","v":71620},null,null,null,null,null,null,null,null,null,null,{"$f":"SUM(P119:P120)","v":71620},null,null,null,null,null,null,null,null,null,null,{"$f":"SUM(AA119:AA120)","v":71620}]
[null,null,"N5309A-E16",{"$f":"VLOOKUP(C119,'Detailed Product Structure'!$E$10:$J$171,4,FALSE)","v":"Half Sized Exerciser and LTSSM Board x16 for PCIe 5Gb/s"},{"$f":"VLOOKUP(C119,'Detailed Product Structure'!$E$10:$J$171,6,FALSE)","v":43491},null,null,null,null,null,null,null,null,"N5309A-E16",{"$f":"VLOOKUP(N119,'Detailed Product Structure'!$E$10:$J$171,4,FALSE)","v":"Half Sized Exerciser and LTSSM Board x16 for PCIe 5Gb/s"},{"$f":"VLOOKUP(N119,'Detailed Product Structure'!$E$10:$J$171,6,FALSE)","v":43491},null,null,null,null,null,null,null,null,"N5309A-E16",{"$f":"VLOOKUP(Y119,'Detailed Product Structure'!$E$10:$J$171,4,FALSE)","v":"Half Sized Exerciser and LTSSM Board x16 for PCIe 5Gb/s"},{"$f":"VLOOKUP(Y119,'Detailed Product Structure'!$E$10:$J$171,6,FALSE)","v":43491}]
[null,null,"N5309A-EX1",{"$f":"VLOOKUP(C120,'Detailed Product Structure'!$E$10:$J$171,4,FALSE)","v":"Exerciser SW License and LTSSM for PCIe 2.5Gb/s"},{"$f":"VLOOKUP(C120,'Detailed Product Structure'!$E$10:$J$171,6,FALSE)","v":28129},null,null,null,null,null,null,null,null,"N5309A-EX1",{"$f":"VLOOKUP(N120,'Detailed Product Structure'!$E$10:$J$171,4,FALSE)","v":"Exerciser SW License and LTSSM for PCIe 2.5Gb/s"},{"$f":"VLOOKUP(N120,'Detailed Product Structure'!$E$10:$J$171,6,FALSE)","v":28129},null,null,null,null,null,null,null,null,"N5309A-EX1",{"$f":"VLOOKUP(Y120,'Detailed Product Structure'!$E$10:$J$171,4,FALSE)","v":"Exerciser SW License and LTSSM for PCIe 2.5Gb/s"},{"$f":"VLOOKUP(Y120,'Detailed Product Structure'!$E$10:$J$171,6,FALSE)","v":28129}]

{"sheet":"Version History","index":6,"n_rows":121,"n_cols":2,"rows_kept":121,"cut":false,"hidden":false,"merged":[]}
["Version 2.12"]
["July 21st, 2010"]
[]
["Changes/Enhancements/Bug Fixes"]
[]
["Enhancement","Added U4305A-004 optioin"]
["Enhancement","Changed option \"LTSSM\" to option \"LT3\""]
["Enhancement","Removed Gen1 Probes"]
[]
["Version 2.11"]
["May 12th, 2010"]
[]
["Changes/Enhancements/Bug Fixes"]
[]
["Enhancement","Changed the chassis to N5302A/N5304A"]
["Enhancement","Changed the recommended configuration for Gen3 exerciser to include Gen2 backplane (N5316A)"]
[]
["Version 2.10"]
["August 27th"]
[]
["Changes/Enhancements/Bug Fixes"]
[]
["Enhancement","Changed pricing to include latest June Pricing"]
["Enhancement","Added the N4241Z ZIF probe"]
["Enhancement","Add comments about what Gen2 ready is."]
["Enhancement","Remove comments regarding Gen1 in the Gen2 Ready config tab."]
[]
[]
["Version 2.9"]
["2009-05-08"]
[]
["Changes/Enhancements/Bug Fixes"]
[]
["Enhancement","Added 1/2 size probes to the configurator"]
["Bug Fix","Price was not configured correctly, was $1K over the real price."]
[]
["Version 2.8"]
["2009-03-30"]
[]
["Changes/Enhancements/Bug Fixes"]
[]
["Bug Fix","Mid-bus was not configured correctly after removing the direction category in the configurator"]
["Bug Fix","Pricing was not configured correctly, was $2.7K over the real price."]
[]
["Version 2.7"]
["2009-03-17"]
[]
["Changes/Enhancements/Bug Fixes"]
[]
["Bug Fix","Removed N5310A product numbers"]
["Bug Fix","Updated pricing of the N5310U-U26 part number (split into 2 so that 2 license are required)"]
["Enhancement","Removed macros at the first page of the spreadsheet to make it easier to localize in each country."]
[]
["Version 2.6"]
["2008-10-27"]
[]
["Changes/Enhancements/Bug Fixes"]
[]
["Enhancements","Changed the reference price for Gen1 products, due to the new Gen1 pricing effective Nov 1st"]
["Enhancements","Updated the LeCroy competitive pricing from LeCroy newsletter"]
[]
[]
["Version 2.5"]
["2008-09-15"]
[]
["Changes/Enhancements/Bug Fixes"]
[]
["Bug Fix","Include the E2960B-LAN in the recommendations"]
["Bug Fix","Updated latest prices in OPAL (Sept Opal prices)"]
["Bug Fix","Gen2 Rdy system sets the Gen1 Flying leads qty to '0'.  Fixed"]
["Enhancements","Added recommendation for 4-slot chassis when using x16 analyzer and extended interface module."]
["Enhancements","Added P2l Gateway with Flags support"]
[]
["Version 2.4"]
["2008-06-24"]
[]
["Changes/Enhancements/Bug Fixes"]
[]
["Bug Fix","Mid bus interposer does not have pricing"]
["Bug Fix","Wrong description for N5306A-G04"]
[]
["Version 2.3"]
["2008-06-19"]
[]
["Changes/Enhancements/Bug Fixes"]
[]
["Bug Fix","Was recommending the N5312A when the N5315A-A16 was ordered.  This is incorrect."]
["Enhancements","Added Midbus interposer to the spreadsheet"]
[]
[]
["Version 2.2"]
["2008-04-08"]
[]
["Changes/Enhancements/Bug Fixes"]
[]
["Enhancements","Added Gen2Ready configurations and price comparisons to the spreadsheet."]
["Enhancements ","Added chassis to chassis cable for chassis ordering."]
["Enhancements","Added PTC as an type in the ordering guide."]
[]
[]
["Version 2.1"]
["2008-03-05"]
[]
["Changes/Enhancements/Bug Fixes"]
[]
["Bug Fix","Incorrect calculation of quantity and discount price"]
["Bug Fix","Changed name of the N5322A module"]
["Bug Fix","Was not including E2941B in configuration"]
["Enhancements","Added Express Card Probe"]
["Enhancements","Added Pricing of N5322A and N4241F"]
[]
["Version 2.0"]
["2007-12-26"]
[]
["Changes/Enhancements/Bug Fixes"]
[]
["Enhancements","Added Slot Interposer"]
["Enhancements","Added Gen2 Ready Exerciser numbers"]
["Enhancements","Added PTC 2, and Compliance Assured Test Package"]
["Enhancements","Added Flying Lead Product Numbers"]
["Enhancements","Added Extended Reciever Module Number and Selection capability."]

{"sheet":"Bundles","index":7,"n_rows":78,"n_cols":4,"rows_kept":78,"cut":false,"hidden":true,"merged":[]}
["Configuration","Products#","Description","Prices"]
["Analyzer and Midbus Configuration x8"]
[null,"N5306A",{"$f":"VLOOKUP(B3,'Detailed Product Structure'!$E$9:$I$134,4,FALSE)","v":"Analyzer Module for PCIe 5Gb/s (requires 2 for x 16)"},{"$f":"VLOOKUP(B3,'Detailed Product Structure'!$E$9:$I$134,5,FALSE)","v":26700}]
[null,"N5306A-A08",{"$f":"VLOOKUP(B4,'Detailed Product Structure'!$E$9:$I$134,4,FALSE)","v":"Analyzer SW License x8 for PCIe 5Gb/s"},{"$f":"VLOOKUP(B4,'Detailed Product Structure'!$E$9:$I$134,5,FALSE)","v":0}]
[null,"N4241A",{"$f":"VLOOKUP(B5,'Detailed Product Structure'!$E$9:$I$134,4,FALSE)","v":"Midbus Probe 2.0 bi-directional x8 for PCIe 5Gb/s"},{"$f":"VLOOKUP(B5,'Detailed Product Structure'!$E$9:$I$134,5,FALSE)","v":0}]
[null,"N5540A",{"$f":"VLOOKUP(B6,'Detailed Product Structure'!$E$9:$I$134,4,FALSE)","v":{"$error":"#N/A"}},{"$f":"VLOOKUP(B6,'Detailed Product Structure'!$E$9:$I$134,5,FALSE)","v":{"$error":"#N/A"}}]
[null,null,null,{"$f":"SUM(D6:D6)","v":{"$error":"#N/A"}}]
[]
["Analyzer and Midbus Configuration x16"]
[null,"N5306A",{"$f":"VLOOKUP(B10,'Detailed Product Structure'!$E$9:$I$134,4,FALSE)","v":"Analyzer Module for PCIe 5Gb/s (requires 2 for x 16)"},{"$f":"VLOOKUP(B10,'Detailed Product Structure'!$E$9:$I$134,5,FALSE)","v":26700}]
[null,"N5306A",{"$f":"VLOOKUP(B11,'Detailed Product Structure'!$E$9:$I$134,4,FALSE)","v":"Analyzer Module for PCIe 5Gb/s (requires 2 for x 16)"},{"$f":"VLOOKUP(B11,'Detailed Product Structure'!$E$9:$I$134,5,FALSE)","v":26700}]
[null,"N5306A-A16",{"$f":"VLOOKUP(B12,'Detailed Product Structure'!$E$9:$I$134,4,FALSE)","v":"Analyzer SW License x16 for PCIe 5Gb/s"},{"$f":"VLOOKUP(B12,'Detailed Product Structure'!$E$9:$I$134,5,FALSE)","v":0}]
[null,"N4241A",{"$f":"VLOOKUP(B13,'Detailed Product Structure'!$E$9:$I$134,4,FALSE)","v":"Midbus Probe 2.0 bi-directional x8 for PCIe 5Gb/s"},{"$f":"VLOOKUP(B13,'Detailed Product Structure'!$E$9:$I$134,5,FALSE)","v":0}]
[null,"N4241A",{"$f":"VLOOKUP(B14,'Detailed Product Structure'!$E$9:$I$134,4,FALSE)","v":"Midbus Probe 2.0 bi-directional x8 for PCIe 5Gb/s"},{"$f":"VLOOKUP(B14,'Detailed Product Structure'!$E$9:$I$134,5,FALSE)","v":0}]
[null,"N5541A",{"$f":"VLOOKUP(B15,'Detailed Product Structure'!$E$9:$I$134,4,FALSE)","v":{"$error":"#N/A"}},{"$f":"VLOOKUP(B15,'Detailed Product Structure'!$E$9:$I$134,5,FALSE)","v":{"$error":"#N/A"}}]
[null,null,null,{"$f":"SUM(D10:D15)","v":{"$error":"#N/A"}}]
[]
["Analyzer and Interposer x1"]
[null,"N5306A",{"$f":"VLOOKUP(B19,'Detailed Product Structure'!$E$9:$I$134,4,FALSE)","v":"Analyzer Module for PCIe 5Gb/s (requires 2 for x 16)"},{"$f":"VLOOKUP(B19,'Detailed Product Structure'!$E$9:$I$134,5,FALSE)","v":26700}]
[null,"N5306A-A08",{"$f":"VLOOKUP(B20,'Detailed Product Structure'!$E$9:$I$134,4,FALSE)","v":"Analyzer SW License x8 for PCIe 5Gb/s"},{"$f":"VLOOKUP(B20,'Detailed Product Structure'!$E$9:$I$134,5,FALSE)","v":0}]
[null,"N5307A-A01",{"$f":"VLOOKUP(B21,'Detailed Product Structure'!$E$9:$I$134,4,FALSE)","v":{"$error":"#N/A"}},{"$f":"VLOOKUP(B21,'Detailed Product Structure'!$E$9:$I$134,5,FALSE)","v":{"$error":"#N/A"}}]
[null,"N5540A",{"$f":"VLOOKUP(B22,'Detailed Product Structure'!$E$9:$I$134,4,FALSE)","v":{"$error":"#N/A"}},{"$f":"VLOOKUP(B22,'Detailed Product Structure'!$E$9:$I$134,5,FALSE)","v":{"$error":"#N/A"}}]
[null,null,null,{"$f":"SUM(D19:D22)","v":{"$error":"#N/A"}}]
[]
["Exerciser and LTSSM x1"]
[null,"N5308A-E01",{"$f":"VLOOKUP(B26,'Detailed Product Structure'!$E$9:$I$134,4,FALSE)","v":{"$error":"#N/A"}},{"$f":"VLOOKUP(B26,'Detailed Product Structure'!$E$9:$I$134,5,FALSE)","v":{"$error":"#N/A"}}]
[null,null,null,{"$f":"SUM(D26)","v":{"$error":"#N/A"}}]
[]
["Exerciser and LTSSM x4"]
[null,"N5308A-E04",{"$f":"VLOOKUP(B30,'Detailed Product Structure'!$E$9:$I$134,4,FALSE)","v":{"$error":"#N/A"}},{"$f":"VLOOKUP(B30,'Detailed Product Structure'!$E$9:$I$134,5,FALSE)","v":{"$error":"#N/A"}}]
[null,null,null,{"$f":"SUM(D30)","v":{"$error":"#N/A"}}]
[]
["LTSSM x8"]
[null,"N5308A-L08",{"$f":"VLOOKUP(B34,'Detailed Product Structure'!$E$9:$I$134,4,FALSE)","v":{"$error":"#N/A"}},{"$f":"VLOOKUP(B34,'Detailed Product Structure'!$E$9:$I$134,5,FALSE)","v":{"$error":"#N/A"}}]
[null,null,null,{"$f":"SUM(D34)","v":{"$error":"#N/A"}}]
[]
["LTSSM x16"]
[null,"N5308A-L16",{"$f":"VLOOKUP(B38,'Detailed Product Structure'!$E$9:$I$134,4,FALSE)","v":{"$error":"#N/A"}},{"$f":"VLOOKUP(B38,'Detailed Product Structure'!$E$9:$I$134,5,FALSE)","v":{"$error":"#N/A"}}]
[null,null,null,{"$f":"SUM(D38)","v":{"$error":"#N/A"}}]
[]
["Bundle Analyzer and Exerciser with Interposer x1"]
[null,"N5306A",{"$f":"VLOOKUP(B42,'Detailed Product Structure'!$E$9:$I$134,4,FALSE)","v":"Analyzer Module for PCIe 5Gb/s (requires 2 for x 16)"},{"$f":"VLOOKUP(B42,'Detailed Product Structure'!$E$9:$I$134,5,FALSE)","v":26700}]
[null,"N5306A-A08",{"$f":"VLOOKUP(B43,'Detailed Product Structure'!$E$9:$I$134,4,FALSE)","v":"Analyzer SW License x8 for PCIe 5Gb/s"},{"$f":"VLOOKUP(B43,'Detailed Product Structure'!$E$9:$I$134,5,FALSE)","v":0}]
[null,"N4241A",{"$f":"VLOOKUP(B44,'Detailed Product Structure'!$E$9:$I$134,4,FALSE)","v":"Midbus Probe 2.0 bi-directional x8 for PCIe 5Gb/s"},{"$f":"VLOOKUP(B44,'Detailed Product Structure'!$E$9:$I$134,5,FALSE)","v":0}]
[null,"N5540A",{"$f":"VLOOKUP(B45,'Detailed Product Structure'!$E$9:$I$134,4,FALSE)","v":{"$error":"#N/A"}},{"$f":"VLOOKUP(B45,'Detailed Product Structure'!$E$9:$I$134,5,FALSE)","v":{"$error":"#N/A"}}]
[null,"N5308A-E01",{"$f":"VLOOKUP(B46,'Detailed Product Structure'!$E$9:$I$134,4,FALSE)","v":{"$error":"#N/A"}},{"$f":"VLOOKUP(B46,'Detailed Product Structure'!$E$9:$I$134,5,FALSE)","v":{"$error":"#N/A"}}]
[null,null,null,{"$f":"SUM(D42:D46)","v":{"$error":"#N/A"}}]
[]
["Bundle Anlyzer and Exerciser with Midbus 2.0 x8"]
[null,"N5306A",{"$f":"VLOOKUP(B50,'Detailed Product Structure'!$E$9:$I$134,4,FALSE)","v":"Analyzer Module for PCIe 5Gb/s (requires 2 for x 16)"},{"$f":"VLOOKUP(B50,'Detailed Product Structure'!$E$9:$I$134,5,FALSE)","v":26700}]
[null,"N5306A",{"$f":"VLOOKUP(B51,'Detailed Product Structure'!$E$9:$I$134,4,FALSE)","v":"Analyzer Module for PCIe 5Gb/s (requires 2 for x 16)"},{"$f":"VLOOKUP(B51,'Detailed Product Structure'!$E$9:$I$134,5,FALSE)","v":26700}]
[null,"N5306A-A16",{"$f":"VLOOKUP(B52,'Detailed Product Structure'!$E$9:$I$134,4,FALSE)","v":"Analyzer SW License x16 for PCIe 5Gb/s"},{"$f":"VLOOKUP(B52,'Detailed Product Structure'!$E$9:$I$134,5,FALSE)","v":0}]
[null,"N4241A",{"$f":"VLOOKUP(B53,'Detailed Product Structure'!$E$9:$I$134,4,FALSE)","v":"Midbus Probe 2.0 bi-directional x8 for PCIe 5Gb/s"},{"$f":"VLOOKUP(B53,'Detailed Product Structure'!$E$9:$I$134,5,FALSE)","v":0}]
[null,"N4241A",{"$f":"VLOOKUP(B54,'Detailed Product Structure'!$E$9:$I$134,4,FALSE)","v":"Midbus Probe 2.0 bi-directional x8 for PCIe 5Gb/s"},{"$f":"VLOOKUP(B54,'Detailed Product Structure'!$E$9:$I$134,5,FALSE)","v":0}]
[null,"N5541A",{"$f":"VLOOKUP(B55,'Detailed Product Structure'!$E$9:$I$134,4,FALSE)","v":{"$error":"#N/A"}},{"$f":"VLOOKUP(B55,'Detailed Product Structure'!$E$9:$I$134,5,FALSE)","v":{"$error":"#N/A"}}]
[null,"N5308A-L08",{"$f":"VLOOKUP(B56,'Detailed Product Structure'!$E$9:$I$134,4,FALSE)","v":{"$error":"#N/A"}},{"$f":"VLOOKUP(B56,'Detailed Product Structure'!$E$9:$I$134,5,FALSE)","v":{"$error":"#N/A"}}]
[null,null,{"$f":"VLOOKUP(B57,'Detailed Product Structure'!$E$9:$I$134,4,FALSE)","v":{"$error":"#N/A"}},{"$f":"SUM(D50:D56)","v":{"$error":"#N/A"}}]
[null,null,{"$f":"VLOOKUP(B58,'Detailed Product Structure'!$E$9:$I$134,4,FALSE)","v":{"$error":"#N/A"}},{"$f":"VLOOKUP(B58,'Detailed Product Structure'!$E$9:$I$134,5,FALSE)","v":{"$error":"#N/A"}}]
[null,null,{"$f":"VLOOKUP(B59,'Detailed Product Structure'!$E$9:$I$134,4,FALSE)","v":{"$error":"#N/A"}},{"$f":"VLOOKUP(B59,'Detailed Product Structure'!$E$9:$I$134,5,FALSE)","v":{"$error":"#N/A"}}]
[null,null,{"$f":"VLOOKUP(B60,'Detailed Product Structure'!$E$9:$I$134,4,FALSE)","v":{"$error":"#N/A"}},{"$f":"VLOOKUP(B60,'Detailed Product Structure'!$E$9:$I$134,5,FALSE)","v":{"$error":"#N/A"}}]
[null,null,{"$f":"VLOOKUP(B61,'Detailed Product Structure'!$E$9:$I$134,4,FALSE)","v":{"$error":"#N/A"}},{"$f":"VLOOKUP(B61,'Detailed Product Structure'!$E$9:$I$134,5,FALSE)","v":{"$error":"#N/A"}}]
[null,null,{"$f":"VLOOKUP(B62,'Detailed Product Structure'!$E$9:$I$134,4,FALSE)","v":{"$error":"#N/A"}},{"$f":"VLOOKUP(B62,'Detailed Product Structure'!$E$9:$I$134,5,FALSE)","v":{"$error":"#N/A"}}]
[null,null,{"$f":"VLOOKUP(B63,'Detailed Product Structure'!$E$9:$I$134,4,FALSE)","v":{"$error":"#N/A"}},{"$f":"VLOOKUP(B63,'Detailed Product Structure'!$E$9:$I$134,5,FALSE)","v":{"$error":"#N/A"}}]
[null,null,{"$f":"VLOOKUP(B64,'Detailed Product Structure'!$E$9:$I$134,4,FALSE)","v":{"$error":"#N/A"}},{"$f":"VLOOKUP(B64,'Detailed Product Structure'!$E$9:$I$134,5,FALSE)","v":{"$error":"#N/A"}}]
[null,null,{"$f":"VLOOKUP(B65,'Detailed Product Structure'!$E$9:$I$134,4,FALSE)","v":{"$error":"#N/A"}},{"$f":"VLOOKUP(B65,'Detailed Product Structure'!$E$9:$I$134,5,FALSE)","v":{"$error":"#N/A"}}]
[null,null,{"$f":"VLOOKUP(B66,'Detailed Product Structure'!$E$9:$I$134,4,FALSE)","v":{"$error":"#N/A"}},{"$f":"VLOOKUP(B66,'Detailed Product Structure'!$E$9:$I$134,5,FALSE)","v":{"$error":"#N/A"}}]
[null,null,{"$f":"VLOOKUP(B67,'Detailed Product Structure'!$E$9:$I$134,4,FALSE)","v":{"$error":"#N/A"}},{"$f":"VLOOKUP(B67,'Detailed Product Structure'!$E$9:$I$134,5,FALSE)","v":{"$error":"#N/A"}}]
[null,null,{"$f":"VLOOKUP(B68,'Detailed Product Structure'!$E$9:$I$134,4,FALSE)","v":{"$error":"#N/A"}},{"$f":"VLOOKUP(B68,'Detailed Product Structure'!$E$9:$I$134,5,FALSE)","v":{"$error":"#N/A"}}]
[null,null,{"$f":"VLOOKUP(B69,'Detailed Product Structure'!$E$9:$I$134,4,FALSE)","v":{"$error":"#N/A"}},{"$f":"VLOOKUP(B69,'Detailed Product Structure'!$E$9:$I$134,5,FALSE)","v":{"$error":"#N/A"}}]
[null,null,{"$f":"VLOOKUP(B70,'Detailed Product Structure'!$E$9:$I$134,4,FALSE)","v":{"$error":"#N/A"}},{"$f":"VLOOKUP(B70,'Detailed Product Structure'!$E$9:$I$134,5,FALSE)","v":{"$error":"#N/A"}}]
[null,null,{"$f":"VLOOKUP(B71,'Detailed Product Structure'!$E$9:$I$134,4,FALSE)","v":{"$error":"#N/A"}},{"$f":"VLOOKUP(B71,'Detailed Product Structure'!$E$9:$I$134,5,FALSE)","v":{"$error":"#N/A"}}]
[null,null,{"$f":"VLOOKUP(B72,'Detailed Product Structure'!$E$9:$I$134,4,FALSE)","v":{"$error":"#N/A"}},{"$f":"VLOOKUP(B72,'Detailed Product Structure'!$E$9:$I$134,5,FALSE)","v":{"$error":"#N/A"}}]
[null,null,{"$f":"VLOOKUP(B73,'Detailed Product Structure'!$E$9:$I$134,4,FALSE)","v":{"$error":"#N/A"}},{"$f":"VLOOKUP(B73,'Detailed Product Structure'!$E$9:$I$134,5,FALSE)","v":{"$error":"#N/A"}}]
[null,null,{"$f":"VLOOKUP(B74,'Detailed Product Structure'!$E$9:$I$134,4,FALSE)","v":{"$error":"#N/A"}},{"$f":"VLOOKUP(B74,'Detailed Product Structure'!$E$9:$I$134,5,FALSE)","v":{"$error":"#N/A"}}]
[null,null,{"$f":"VLOOKUP(B75,'Detailed Product Structure'!$E$9:$I$134,4,FALSE)","v":{"$error":"#N/A"}},{"$f":"VLOOKUP(B75,'Detailed Product Structure'!$E$9:$I$134,5,FALSE)","v":{"$error":"#N/A"}}]
[null,null,{"$f":"VLOOKUP(B76,'Detailed Product Structure'!$E$9:$I$134,4,FALSE)","v":{"$error":"#N/A"}},{"$f":"VLOOKUP(B76,'Detailed Product Structure'!$E$9:$I$134,5,FALSE)","v":{"$error":"#N/A"}}]
[null,null,{"$f":"VLOOKUP(B77,'Detailed Product Structure'!$E$9:$I$134,4,FALSE)","v":{"$error":"#N/A"}},{"$f":"VLOOKUP(B77,'Detailed Product Structure'!$E$9:$I$134,5,FALSE)","v":{"$error":"#N/A"}}]
[null,null,{"$f":"VLOOKUP(B78,'Detailed Product Structure'!$E$9:$I$134,4,FALSE)","v":{"$error":"#N/A"}},{"$f":"VLOOKUP(B78,'Detailed Product Structure'!$E$9:$I$134,5,FALSE)","v":{"$error":"#N/A"}}]

{"sheet":"Pulldowns","index":8,"n_rows":30,"n_cols":9,"rows_kept":30,"cut":false,"hidden":true,"merged":[[3,0,10,0],[20,0,20,2],[21,0,21,2],[22,0,22,2],[23,0,23,2],[29,0,29,2],[24,0,24,2],[25,0,25,2],[26,0,26,2],[27,0,27,2],[28,0,28,2]]}
["Product Group","Product Category","RMU :Sub-Family",null,"Owner","Warranty","Calibration \nInterval",null,"New / \nChange"]
["ParBERT",null,"256459 : ParBERT",null,"Thorsten Goetzelmann / TN 778 -1215","1 Year RTA","1 Year",null,"New"]
["Serial BERT",null,"259637 : Serial_BERT",null,"Ellen Spindler / TN 778-8326","1 Year RTA with extension to 3 & 5 year","2 Year",null,"Remove"]
["Pulse Generator","Starbase","256460 : PPGs",null,"Beate Hoehne / TN 778-3024","3 Year RTA","3 Year",null,"Change"]
[null,"8110A","256462 : SPT",null,"Michael Droemmer / TN 778-3321","1 Year Onsite","4 Year"]
[null,"8114A",null,null,"Sandra Oberdorfer / TN 590-2221","1 Year Onsite with extension to 3 & 5 years","5 Year"]
[null,"8133A",null,null,"Joerg Striegel / TN 778-8329","???","N.A."]
[null,"81133A",null,null,"Alexander Schmidt (Bitifye)"," ","???"]
[null,"8305A, 8306A CASS",null,null,"???"]
[null,"Others, 3324, Accessories"]
[null,null,"???"]
["RMD"]
["SPT"]
[]
[]
[]
[]
[]
[]
[]
["DATA VALIDATION PULL-DOWN MENUS:"]
["1. Setup the list on sheet 2 (THIS SHEET) under the headers"]
["2. On sheet 1 (FastTrack Form) select Insert, Name, Define"]
["3. Enter a name (no spaces) - remember name"]
["4. For the range select the list range on sheet 2"]
["5. Click Add, then OK."]
["6. Pick the cell where the data is to be entered"]
["7. Select Data, Validation…"]
["8. Choose List"]
["9. In the source box put in the name you created with preceding = sign"]